Workbook

Sheet Orientações
B2: ORIENTAÇÕES DE USO – CALCULADORA DE CRÉDITO NÃO TRIBUTÁRIO
B4: Como usar a calculadora
B5: 1. Ao Abrir o arquivo habilite a execução da macro. 2. Acesse a aba CALCULADORA. 3. Informe a DATA INICIAL (célula C7): deve ser o mês subsequente ao mês do vencimento do crédito. Exemplo: vencimento em 15/01/2024 → Data Inicial = 02/2024. 4. Informe a DATA FINAL (célula C8): mês de apuração (data do cálculo). 5. Informe o VALOR PRINCIPAL (célula C9): valor original do crédito em R$. 6. Os resultados aparecem automaticamente na seção RESULTADO DO CÁLCULO. 7. A memória detalhada mês a mês é exibida na tabela abaixo.
B7: Entendendo os períodos de cálculo
B8: • 02/2000 a 02/2018 → Taxa SELIC acumulada (correção monetária já inclusa nos juros). O valor nominal do principal e da multa permanece inalterado. • 03/2018 a 09/2023 → Correção: IPCA do mês anterior (Decreto 45.708/2018). Juros: 1% a.m. fixo sobre o total do débito (Lei 16.226/2017). • 10/2023 em diante → Correção: IPCA limitado à SELIC. Juros: diferença positiva entre SELIC e IPCA (quando IPCA ≥ SELIC, juros = 0). Base: decisão do STF que vedou índices estaduais superiores aos da União.
B11: Base legal e referências
B12: • Lei Estadual nº 10.654/1991, arts. 86 e 90 (atualização monetária e juros de tributos estaduais) • Lei Estadual nº 16.226/2017 (retorno aos 1% de juros a partir de 03/2018) • Decreto Estadual nº 45.708/2018 (uso do IPCA como índice de correção) • Lei Estadual nº 13.178/2006, art. 3º (prazo de 10 dias no TCC para crédito não tributário) • Decisão do STF (ADPF/RE) – vedação a índices estaduais superiores aos federais (vigência 10/2023) • STJ – EDcl no AgInt no AREsp 948395/RS, DJ 19/08/2019 (irretroatividade de normas de juros) • Nota Técnica nº 2/2026 – Diretoria de Sistemas Corporativos Tributários – SEFAZ/PE

Sheet CALCULADORA
B4: CALCULADORA DE ATUALIZAÇÃO DE CRÉDITO NÃO TRIBUTÁRIO
B5: Atualização Monetária e Juros Moratórios – Boletim GCI Nº 03/2026
B7: DADOS DE ENTRADA
B8: DATA INICIAL (Mês seguinte ao vencimento) | C8: 2018-11-01 | D8: Devedor
B9: DATA FINAL (Data de apuração) | C9: 2026-03-01 | D9: Origem do Débito | E9: Ex. não aplicação dos recursos da emenda parlamentar nº xxxxxxxx
B10: Valor Principal (R$) | C10: 200000 | D10: Responsável pela atualização
B12: RESULTADO DO CÁLCULO
B13: Índice de Correção Aplicado | C13: Período 02/2000–02/2018: SELIC (correção+juros inclusos) Período 03/2018–09/2023: IPCA (correção) + 1% a.m. (juros) Período 10/2023–atual: IPCA limitado SELIC (correção) + máx(SELIC–IPCA) (juros)
B14: Valor Principal | C14: =C10 -> 200000
B15: Valor da Atualização Monetária | C15: =IFERROR(INDEX(E21:E420,MATCH(2,1/(E21:E420<>""),1))-C10,0) -> 92770.00637
B16: Valor dos Juros | C16: =IFERROR(LOOKUP(2,1/(F21:F420<>""),F21:F420),0) -> 229297.469
B17: Valor Final a Pagar | C17: =C10+C15+C16 -> 522067.4754
B19: MEMÓRIA DE CÁLCULO DETALHADA
B20: Mês | C20: Atualiz. % | D20: Juros % | E20: Crédito Corrigido (R$) | F20: Juros Acumulados (R$)
B21: =IFERROR(IF(EDATE($C$8,0)>$C$9,"",IF(EDATE($C$8,0)>DATE(2099,12,1),"",EDATE($C$8,0))),"") -> 2018-11-01 | C21: =IFERROR(IF(B21="","",VLOOKUP(B21,Índices!$A:$H,5,0)),"") -> 0.0048 | D21: =IFERROR(IF(B21="","",VLOOKUP(B21,Índices!$A:$H,6,0)),"") -> 0.01 | E21: =IFERROR(IF(B21="","",$C$10*VLOOKUP(B21,Índices!$A:$H,7,0)/VLOOKUP(EDATE($C$8,-1),Índices!$A:$H,7,0)),"") -> 200960 | F21: =IFERROR(IF(B21="","",E21*(VLOOKUP(B21,Índices!$A:$H,8,0)-VLOOKUP(EDATE($C$8,-1),Índices!$A:$H,8,0))),"") -> 2009.6 | H21: =IF(B21="","vazia","1") -> 1
B22: =IFERROR(IF(EDATE($C$8,1)>$C$9,"",IF(EDATE($C$8,1)>DATE(2099,12,1),"",EDATE($C$8,1))),"") -> 2018-12-01 | C22: =IFERROR(IF(B22="","",VLOOKUP(B22,Índices!$A:$H,5,0)),"") -> 0.0045 | D22: =IFERROR(IF(B22="","",VLOOKUP(B22,Índices!$A:$H,6,0)),"") -> 0.01 | E22: =IFERROR(IF(B22="","",$C$10*VLOOKUP(B22,Índices!$A:$H,7,0)/VLOOKUP(EDATE($C$8,-1),Índices!$A:$H,7,0)),"") -> 201864.32 | F22: =IFERROR(IF(B22="","",E22*(VLOOKUP(B22,Índices!$A:$H,8,0)-VLOOKUP(EDATE($C$8,-1),Índices!$A:$H,8,0))),"") -> 4037.2864 | H22: =IF(B22="","vazia","1") -> 1
B23: =IFERROR(IF(EDATE($C$8,2)>$C$9,"",IF(EDATE($C$8,2)>DATE(2099,12,1),"",EDATE($C$8,2))),"") -> 2019-01-01 | C23: =IFERROR(IF(B23="","",VLOOKUP(B23,Índices!$A:$H,5,0)),"") -> -0.0021 | D23: =IFERROR(IF(B23="","",VLOOKUP(B23,Índices!$A:$H,6,0)),"") -> 0.01 | E23: =IFERROR(IF(B23="","",$C$10*VLOOKUP(B23,Índices!$A:$H,7,0)/VLOOKUP(EDATE($C$8,-1),Índices!$A:$H,7,0)),"") -> 201440.4049 | F23: =IFERROR(IF(B23="","",E23*(VLOOKUP(B23,Índices!$A:$H,8,0)-VLOOKUP(EDATE($C$8,-1),Índices!$A:$H,8,0))),"") -> 6043.212148 | H23: 1
B24: =IFERROR(IF(EDATE($C$8,3)>$C$9,"",IF(EDATE($C$8,3)>DATE(2099,12,1),"",EDATE($C$8,3))),"") -> 2019-02-01 | C24: =IFERROR(IF(B24="","",VLOOKUP(B24,Índices!$A:$H,5,0)),"") -> 0.0015 | D24: =IFERROR(IF(B24="","",VLOOKUP(B24,Índices!$A:$H,6,0)),"") -> 0.01 | E24: =IFERROR(IF(B24="","",$C$10*VLOOKUP(B24,Índices!$A:$H,7,0)/VLOOKUP(EDATE($C$8,-1),Índices!$A:$H,7,0)),"") -> 201742.5655 | F24: =IFERROR(IF(B24="","",E24*(VLOOKUP(B24,Índices!$A:$H,8,0)-VLOOKUP(EDATE($C$8,-1),Índices!$A:$H,8,0))),"") -> 8069.702621 | H24: 1
B25: =IFERROR(IF(EDATE($C$8,4)>$C$9,"",IF(EDATE($C$8,4)>DATE(2099,12,1),"",EDATE($C$8,4))),"") -> 2019-03-01 | C25: =IFERROR(IF(B25="","",VLOOKUP(B25,Índices!$A:$H,5,0)),"") -> 0.0032 | D25: =IFERROR(IF(B25="","",VLOOKUP(B25,Índices!$A:$H,6,0)),"") -> 0.01 | E25: =IFERROR(IF(B25="","",$C$10*VLOOKUP(B25,Índices!$A:$H,7,0)/VLOOKUP(EDATE($C$8,-1),Índices!$A:$H,7,0)),"") -> 202388.1417 | F25: =IFERROR(IF(B25="","",E25*(VLOOKUP(B25,Índices!$A:$H,8,0)-VLOOKUP(EDATE($C$8,-1),Índices!$A:$H,8,0))),"") -> 10119.40709 | H25: 1
B26: =IFERROR(IF(EDATE($C$8,5)>$C$9,"",IF(EDATE($C$8,5)>DATE(2099,12,1),"",EDATE($C$8,5))),"") -> 2019-04-01 | C26: =IFERROR(IF(B26="","",VLOOKUP(B26,Índices!$A:$H,5,0)),"") -> 0.0043 | D26: =IFERROR(IF(B26="","",VLOOKUP(B26,Índices!$A:$H,6,0)),"") -> 0.01 | E26: =IFERROR(IF(B26="","",$C$10*VLOOKUP(B26,Índices!$A:$H,7,0)/VLOOKUP(EDATE($C$8,-1),Índices!$A:$H,7,0)),"") -> 203258.4108 | F26: =IFERROR(IF(B26="","",E26*(VLOOKUP(B26,Índices!$A:$H,8,0)-VLOOKUP(EDATE($C$8,-1),Índices!$A:$H,8,0))),"") -> 12195.50465 | H26: 1
B27: =IFERROR(IF(EDATE($C$8,6)>$C$9,"",IF(EDATE($C$8,6)>DATE(2099,12,1),"",EDATE($C$8,6))),"") -> 2019-05-01 | C27: =IFERROR(IF(B27="","",VLOOKUP(B27,Índices!$A:$H,5,0)),"") -> 0.0075 | D27: =IFERROR(IF(B27="","",VLOOKUP(B27,Índices!$A:$H,6,0)),"") -> 0.01 | E27: =IFERROR(IF(B27="","",$C$10*VLOOKUP(B27,Índices!$A:$H,7,0)/VLOOKUP(EDATE($C$8,-1),Índices!$A:$H,7,0)),"") -> 204782.8488 | F27: =IFERROR(IF(B27="","",E27*(VLOOKUP(B27,Índices!$A:$H,8,0)-VLOOKUP(EDATE($C$8,-1),Índices!$A:$H,8,0))),"") -> 14334.79942 | H27: 1
B28: =IFERROR(IF(EDATE($C$8,7)>$C$9,"",IF(EDATE($C$8,7)>DATE(2099,12,1),"",EDATE($C$8,7))),"") -> 2019-06-01 | C28: =IFERROR(IF(B28="","",VLOOKUP(B28,Índices!$A:$H,5,0)),"") -> 0.0057 | D28: =IFERROR(IF(B28="","",VLOOKUP(B28,Índices!$A:$H,6,0)),"") -> 0.01 | E28: =IFERROR(IF(B28="","",$C$10*VLOOKUP(B28,Índices!$A:$H,7,0)/VLOOKUP(EDATE($C$8,-1),Índices!$A:$H,7,0)),"") -> 205950.1111 | F28: =IFERROR(IF(B28="","",E28*(VLOOKUP(B28,Índices!$A:$H,8,0)-VLOOKUP(EDATE($C$8,-1),Índices!$A:$H,8,0))),"") -> 16476.00889 | H28: 1
B29: =IFERROR(IF(EDATE($C$8,8)>$C$9,"",IF(EDATE($C$8,8)>DATE(2099,12,1),"",EDATE($C$8,8))),"") -> 2019-07-01 | C29: =IFERROR(IF(B29="","",VLOOKUP(B29,Índices!$A:$H,5,0)),"") -> 0.0013 | D29: =IFERROR(IF(B29="","",VLOOKUP(B29,Índices!$A:$H,6,0)),"") -> 0.01 | E29: =IFERROR(IF(B29="","",$C$10*VLOOKUP(B29,Índices!$A:$H,7,0)/VLOOKUP(EDATE($C$8,-1),Índices!$A:$H,7,0)),"") -> 206217.8462 | F29: =IFERROR(IF(B29="","",E29*(VLOOKUP(B29,Índices!$A:$H,8,0)-VLOOKUP(EDATE($C$8,-1),Índices!$A:$H,8,0))),"") -> 18559.60616 | H29: 1
B30: =IFERROR(IF(EDATE($C$8,9)>$C$9,"",IF(EDATE($C$8,9)>DATE(2099,12,1),"",EDATE($C$8,9))),"") -> 2019-08-01 | C30: =IFERROR(IF(B30="","",VLOOKUP(B30,Índices!$A:$H,5,0)),"") -> 0.0001 | D30: =IFERROR(IF(B30="","",VLOOKUP(B30,Índices!$A:$H,6,0)),"") -> 0.01 | E30: =IFERROR(IF(B30="","",$C$10*VLOOKUP(B30,Índices!$A:$H,7,0)/VLOOKUP(EDATE($C$8,-1),Índices!$A:$H,7,0)),"") -> 206238.468 | F30: =IFERROR(IF(B30="","",E30*(VLOOKUP(B30,Índices!$A:$H,8,0)-VLOOKUP(EDATE($C$8,-1),Índices!$A:$H,8,0))),"") -> 20623.8468 | H30: 1
B31: =IFERROR(IF(EDATE($C$8,10)>$C$9,"",IF(EDATE($C$8,10)>DATE(2099,12,1),"",EDATE($C$8,10))),"") -> 2019-09-01 | C31: =IFERROR(IF(B31="","",VLOOKUP(B31,Índices!$A:$H,5,0)),"") -> 0.0019 | D31: =IFERROR(IF(B31="","",VLOOKUP(B31,Índices!$A:$H,6,0)),"") -> 0.01 | E31: =IFERROR(IF(B31="","",$C$10*VLOOKUP(B31,Índices!$A:$H,7,0)/VLOOKUP(EDATE($C$8,-1),Índices!$A:$H,7,0)),"") -> 206630.3211 | F31: =IFERROR(IF(B31="","",E31*(VLOOKUP(B31,Índices!$A:$H,8,0)-VLOOKUP(EDATE($C$8,-1),Índices!$A:$H,8,0))),"") -> 22729.33532 | H31: 1
B32: =IFERROR(IF(EDATE($C$8,11)>$C$9,"",IF(EDATE($C$8,11)>DATE(2099,12,1),"",EDATE($C$8,11))),"") -> 2019-10-01 | C32: =IFERROR(IF(B32="","",VLOOKUP(B32,Índices!$A:$H,5,0)),"") -> 0.0011 | D32: =IFERROR(IF(B32="","",VLOOKUP(B32,Índices!$A:$H,6,0)),"") -> 0.01 | E32: =IFERROR(IF(B32="","",$C$10*VLOOKUP(B32,Índices!$A:$H,7,0)/VLOOKUP(EDATE($C$8,-1),Índices!$A:$H,7,0)),"") -> 206857.6144 | F32: =IFERROR(IF(B32="","",E32*(VLOOKUP(B32,Índices!$A:$H,8,0)-VLOOKUP(EDATE($C$8,-1),Índices!$A:$H,8,0))),"") -> 24822.91373 | H32: 1
B33: =IFERROR(IF(EDATE($C$8,12)>$C$9,"",IF(EDATE($C$8,12)>DATE(2099,12,1),"",EDATE($C$8,12))),"") -> 2019-11-01 | C33: =IFERROR(IF(B33="","",VLOOKUP(B33,Índices!$A:$H,5,0)),"") -> -0.0004 | D33: =IFERROR(IF(B33="","",VLOOKUP(B33,Índices!$A:$H,6,0)),"") -> 0.01 | E33: =IFERROR(IF(B33="","",$C$10*VLOOKUP(B33,Índices!$A:$H,7,0)/VLOOKUP(EDATE($C$8,-1),Índices!$A:$H,7,0)),"") -> 206774.8714 | F33: =IFERROR(IF(B33="","",E33*(VLOOKUP(B33,Índices!$A:$H,8,0)-VLOOKUP(EDATE($C$8,-1),Índices!$A:$H,8,0))),"") -> 26880.73328 | H33: 1
B34: =IFERROR(IF(EDATE($C$8,13)>$C$9,"",IF(EDATE($C$8,13)>DATE(2099,12,1),"",EDATE($C$8,13))),"") -> 2019-12-01 | C34: =IFERROR(IF(B34="","",VLOOKUP(B34,Índices!$A:$H,5,0)),"") -> 0.001 | D34: =IFERROR(IF(B34="","",VLOOKUP(B34,Índices!$A:$H,6,0)),"") -> 0.01 | E34: =IFERROR(IF(B34="","",$C$10*VLOOKUP(B34,Índices!$A:$H,7,0)/VLOOKUP(EDATE($C$8,-1),Índices!$A:$H,7,0)),"") -> 206981.6463 | F34: =IFERROR(IF(B34="","",E34*(VLOOKUP(B34,Índices!$A:$H,8,0)-VLOOKUP(EDATE($C$8,-1),Índices!$A:$H,8,0))),"") -> 28977.43048 | H34: 1
B35: =IFERROR(IF(EDATE($C$8,14)>$C$9,"",IF(EDATE($C$8,14)>DATE(2099,12,1),"",EDATE($C$8,14))),"") -> 2020-01-01 | C35: =IFERROR(IF(B35="","",VLOOKUP(B35,Índices!$A:$H,5,0)),"") -> 0.0051 | D35: =IFERROR(IF(B35="","",VLOOKUP(B35,Índices!$A:$H,6,0)),"") -> 0.01 | E35: =IFERROR(IF(B35="","",$C$10*VLOOKUP(B35,Índices!$A:$H,7,0)/VLOOKUP(EDATE($C$8,-1),Índices!$A:$H,7,0)),"") -> 208037.2527 | F35: =IFERROR(IF(B35="","",E35*(VLOOKUP(B35,Índices!$A:$H,8,0)-VLOOKUP(EDATE($C$8,-1),Índices!$A:$H,8,0))),"") -> 31205.5879 | H35: 1
B36: =IFERROR(IF(EDATE($C$8,15)>$C$9,"",IF(EDATE($C$8,15)>DATE(2099,12,1),"",EDATE($C$8,15))),"") -> 2020-02-01 | C36: =IFERROR(IF(B36="","",VLOOKUP(B36,Índices!$A:$H,5,0)),"") -> 0.0115 | D36: =IFERROR(IF(B36="","",VLOOKUP(B36,Índices!$A:$H,6,0)),"") -> 0.01 | E36: =IFERROR(IF(B36="","",$C$10*VLOOKUP(B36,Índices!$A:$H,7,0)/VLOOKUP(EDATE($C$8,-1),Índices!$A:$H,7,0)),"") -> 210429.6811 | F36: =IFERROR(IF(B36="","",E36*(VLOOKUP(B36,Índices!$A:$H,8,0)-VLOOKUP(EDATE($C$8,-1),Índices!$A:$H,8,0))),"") -> 33668.74897 | H36: 1
B37: =IFERROR(IF(EDATE($C$8,16)>$C$9,"",IF(EDATE($C$8,16)>DATE(2099,12,1),"",EDATE($C$8,16))),"") -> 2020-03-01 | C37: =IFERROR(IF(B37="","",VLOOKUP(B37,Índices!$A:$H,5,0)),"") -> 0.0021 | D37: =IFERROR(IF(B37="","",VLOOKUP(B37,Índices!$A:$H,6,0)),"") -> 0.01 | E37: =IFERROR(IF(B37="","",$C$10*VLOOKUP(B37,Índices!$A:$H,7,0)/VLOOKUP(EDATE($C$8,-1),Índices!$A:$H,7,0)),"") -> 210871.5834 | F37: =IFERROR(IF(B37="","",E37*(VLOOKUP(B37,Índices!$A:$H,8,0)-VLOOKUP(EDATE($C$8,-1),Índices!$A:$H,8,0))),"") -> 35848.16918 | H37: 1
B38: =IFERROR(IF(EDATE($C$8,17)>$C$9,"",IF(EDATE($C$8,17)>DATE(2099,12,1),"",EDATE($C$8,17))),"") -> 2020-04-01 | C38: =IFERROR(IF(B38="","",VLOOKUP(B38,Índices!$A:$H,5,0)),"") -> 0.0025 | D38: =IFERROR(IF(B38="","",VLOOKUP(B38,Índices!$A:$H,6,0)),"") -> 0.01 | E38: =IFERROR(IF(B38="","",$C$10*VLOOKUP(B38,Índices!$A:$H,7,0)/VLOOKUP(EDATE($C$8,-1),Índices!$A:$H,7,0)),"") -> 211398.7624 | F38: =IFERROR(IF(B38="","",E38*(VLOOKUP(B38,Índices!$A:$H,8,0)-VLOOKUP(EDATE($C$8,-1),Índices!$A:$H,8,0))),"") -> 38051.77722 | H38: 1
B39: =IFERROR(IF(EDATE($C$8,18)>$C$9,"",IF(EDATE($C$8,18)>DATE(2099,12,1),"",EDATE($C$8,18))),"") -> 2020-05-01 | C39: =IFERROR(IF(B39="","",VLOOKUP(B39,Índices!$A:$H,5,0)),"") -> 0.0007 | D39: =IFERROR(IF(B39="","",VLOOKUP(B39,Índices!$A:$H,6,0)),"") -> 0.01 | E39: =IFERROR(IF(B39="","",$C$10*VLOOKUP(B39,Índices!$A:$H,7,0)/VLOOKUP(EDATE($C$8,-1),Índices!$A:$H,7,0)),"") -> 211546.7415 | F39: =IFERROR(IF(B39="","",E39*(VLOOKUP(B39,Índices!$A:$H,8,0)-VLOOKUP(EDATE($C$8,-1),Índices!$A:$H,8,0))),"") -> 40193.88088 | H39: 1
B40: =IFERROR(IF(EDATE($C$8,19)>$C$9,"",IF(EDATE($C$8,19)>DATE(2099,12,1),"",EDATE($C$8,19))),"") -> 2020-06-01 | C40: =IFERROR(IF(B40="","",VLOOKUP(B40,Índices!$A:$H,5,0)),"") -> -0.0031 | D40: =IFERROR(IF(B40="","",VLOOKUP(B40,Índices!$A:$H,6,0)),"") -> 0.01 | E40: =IFERROR(IF(B40="","",$C$10*VLOOKUP(B40,Índices!$A:$H,7,0)/VLOOKUP(EDATE($C$8,-1),Índices!$A:$H,7,0)),"") -> 210890.9466 | F40: =IFERROR(IF(B40="","",E40*(VLOOKUP(B40,Índices!$A:$H,8,0)-VLOOKUP(EDATE($C$8,-1),Índices!$A:$H,8,0))),"") -> 42178.18932 | H40: 1
B41: =IFERROR(IF(EDATE($C$8,20)>$C$9,"",IF(EDATE($C$8,20)>DATE(2099,12,1),"",EDATE($C$8,20))),"") -> 2020-07-01 | C41: =IFERROR(IF(B41="","",VLOOKUP(B41,Índices!$A:$H,5,0)),"") -> -0.0038 | D41: =IFERROR(IF(B41="","",VLOOKUP(B41,Índices!$A:$H,6,0)),"") -> 0.01 | E41: =IFERROR(IF(B41="","",$C$10*VLOOKUP(B41,Índices!$A:$H,7,0)/VLOOKUP(EDATE($C$8,-1),Índices!$A:$H,7,0)),"") -> 210089.561 | F41: =IFERROR(IF(B41="","",E41*(VLOOKUP(B41,Índices!$A:$H,8,0)-VLOOKUP(EDATE($C$8,-1),Índices!$A:$H,8,0))),"") -> 44118.80781 | H41: 1
B42: =IFERROR(IF(EDATE($C$8,21)>$C$9,"",IF(EDATE($C$8,21)>DATE(2099,12,1),"",EDATE($C$8,21))),"") -> 2020-08-01 | C42: =IFERROR(IF(B42="","",VLOOKUP(B42,Índices!$A:$H,5,0)),"") -> 0.0026 | D42: =IFERROR(IF(B42="","",VLOOKUP(B42,Índices!$A:$H,6,0)),"") -> 0.01 | E42: =IFERROR(IF(B42="","",$C$10*VLOOKUP(B42,Índices!$A:$H,7,0)/VLOOKUP(EDATE($C$8,-1),Índices!$A:$H,7,0)),"") -> 210635.7939 | F42: =IFERROR(IF(B42="","",E42*(VLOOKUP(B42,Índices!$A:$H,8,0)-VLOOKUP(EDATE($C$8,-1),Índices!$A:$H,8,0))),"") -> 46339.87465 | H42: 1
B43: =IFERROR(IF(EDATE($C$8,22)>$C$9,"",IF(EDATE($C$8,22)>DATE(2099,12,1),"",EDATE($C$8,22))),"") -> 2020-09-01 | C43: =IFERROR(IF(B43="","",VLOOKUP(B43,Índices!$A:$H,5,0)),"") -> 0.0036 | D43: =IFERROR(IF(B43="","",VLOOKUP(B43,Índices!$A:$H,6,0)),"") -> 0.01 | E43: =IFERROR(IF(B43="","",$C$10*VLOOKUP(B43,Índices!$A:$H,7,0)/VLOOKUP(EDATE($C$8,-1),Índices!$A:$H,7,0)),"") -> 211394.0827 | F43: =IFERROR(IF(B43="","",E43*(VLOOKUP(B43,Índices!$A:$H,8,0)-VLOOKUP(EDATE($C$8,-1),Índices!$A:$H,8,0))),"") -> 48620.63902 | H43: 1
B44: =IFERROR(IF(EDATE($C$8,23)>$C$9,"",IF(EDATE($C$8,23)>DATE(2099,12,1),"",EDATE($C$8,23))),"") -> 2020-10-01 | C44: =IFERROR(IF(B44="","",VLOOKUP(B44,Índices!$A:$H,5,0)),"") -> 0.0024 | D44: =IFERROR(IF(B44="","",VLOOKUP(B44,Índices!$A:$H,6,0)),"") -> 0.01 | E44: =IFERROR(IF(B44="","",$C$10*VLOOKUP(B44,Índices!$A:$H,7,0)/VLOOKUP(EDATE($C$8,-1),Índices!$A:$H,7,0)),"") -> 211901.4285 | F44: =IFERROR(IF(B44="","",E44*(VLOOKUP(B44,Índices!$A:$H,8,0)-VLOOKUP(EDATE($C$8,-1),Índices!$A:$H,8,0))),"") -> 50856.34284 | H44: 1
B45: =IFERROR(IF(EDATE($C$8,24)>$C$9,"",IF(EDATE($C$8,24)>DATE(2099,12,1),"",EDATE($C$8,24))),"") -> 2020-11-01 | C45: =IFERROR(IF(B45="","",VLOOKUP(B45,Índices!$A:$H,5,0)),"") -> 0.0064 | D45: =IFERROR(IF(B45="","",VLOOKUP(B45,Índices!$A:$H,6,0)),"") -> 0.01 | E45: =IFERROR(IF(B45="","",$C$10*VLOOKUP(B45,Índices!$A:$H,7,0)/VLOOKUP(EDATE($C$8,-1),Índices!$A:$H,7,0)),"") -> 213257.5977 | F45: =IFERROR(IF(B45="","",E45*(VLOOKUP(B45,Índices!$A:$H,8,0)-VLOOKUP(EDATE($C$8,-1),Índices!$A:$H,8,0))),"") -> 53314.39941 | H45: 1
B46: =IFERROR(IF(EDATE($C$8,25)>$C$9,"",IF(EDATE($C$8,25)>DATE(2099,12,1),"",EDATE($C$8,25))),"") -> 2020-12-01 | C46: =IFERROR(IF(B46="","",VLOOKUP(B46,Índices!$A:$H,5,0)),"") -> 0.0086 | D46: =IFERROR(IF(B46="","",VLOOKUP(B46,Índices!$A:$H,6,0)),"") -> 0.01 | E46: =IFERROR(IF(B46="","",$C$10*VLOOKUP(B46,Índices!$A:$H,7,0)/VLOOKUP(EDATE($C$8,-1),Índices!$A:$H,7,0)),"") -> 215091.613 | F46: =IFERROR(IF(B46="","",E46*(VLOOKUP(B46,Índices!$A:$H,8,0)-VLOOKUP(EDATE($C$8,-1),Índices!$A:$H,8,0))),"") -> 55923.81938 | H46: 1
B47: =IFERROR(IF(EDATE($C$8,26)>$C$9,"",IF(EDATE($C$8,26)>DATE(2099,12,1),"",EDATE($C$8,26))),"") -> 2021-01-01 | C47: =IFERROR(IF(B47="","",VLOOKUP(B47,Índices!$A:$H,5,0)),"") -> 0.0089 | D47: =IFERROR(IF(B47="","",VLOOKUP(B47,Índices!$A:$H,6,0)),"") -> 0.01 | E47: =IFERROR(IF(B47="","",$C$10*VLOOKUP(B47,Índices!$A:$H,7,0)/VLOOKUP(EDATE($C$8,-1),Índices!$A:$H,7,0)),"") -> 217005.9284 | F47: =IFERROR(IF(B47="","",E47*(VLOOKUP(B47,Índices!$A:$H,8,0)-VLOOKUP(EDATE($C$8,-1),Índices!$A:$H,8,0))),"") -> 58591.60066 | H47: 1
B48: =IFERROR(IF(EDATE($C$8,27)>$C$9,"",IF(EDATE($C$8,27)>DATE(2099,12,1),"",EDATE($C$8,27))),"") -> 2021-02-01 | C48: =IFERROR(IF(B48="","",VLOOKUP(B48,Índices!$A:$H,5,0)),"") -> 0.0135 | D48: =IFERROR(IF(B48="","",VLOOKUP(B48,Índices!$A:$H,6,0)),"") -> 0.01 | E48: =IFERROR(IF(B48="","",$C$10*VLOOKUP(B48,Índices!$A:$H,7,0)/VLOOKUP(EDATE($C$8,-1),Índices!$A:$H,7,0)),"") -> 219935.5084 | F48: =IFERROR(IF(B48="","",E48*(VLOOKUP(B48,Índices!$A:$H,8,0)-VLOOKUP(EDATE($C$8,-1),Índices!$A:$H,8,0))),"") -> 61581.94235 | H48: 1
B49: =IFERROR(IF(EDATE($C$8,28)>$C$9,"",IF(EDATE($C$8,28)>DATE(2099,12,1),"",EDATE($C$8,28))),"") -> 2021-03-01 | C49: =IFERROR(IF(B49="","",VLOOKUP(B49,Índices!$A:$H,5,0)),"") -> 0.0025 | D49: =IFERROR(IF(B49="","",VLOOKUP(B49,Índices!$A:$H,6,0)),"") -> 0.01 | E49: =IFERROR(IF(B49="","",$C$10*VLOOKUP(B49,Índices!$A:$H,7,0)/VLOOKUP(EDATE($C$8,-1),Índices!$A:$H,7,0)),"") -> 220485.3472 | F49: =IFERROR(IF(B49="","",E49*(VLOOKUP(B49,Índices!$A:$H,8,0)-VLOOKUP(EDATE($C$8,-1),Índices!$A:$H,8,0))),"") -> 63940.75068 | H49: 1
B50: =IFERROR(IF(EDATE($C$8,29)>$C$9,"",IF(EDATE($C$8,29)>DATE(2099,12,1),"",EDATE($C$8,29))),"") -> 2021-04-01 | C50: =IFERROR(IF(B50="","",VLOOKUP(B50,Índices!$A:$H,5,0)),"") -> 0.0086 | D50: =IFERROR(IF(B50="","",VLOOKUP(B50,Índices!$A:$H,6,0)),"") -> 0.01 | E50: =IFERROR(IF(B50="","",$C$10*VLOOKUP(B50,Índices!$A:$H,7,0)/VLOOKUP(EDATE($C$8,-1),Índices!$A:$H,7,0)),"") -> 222381.5211 | F50: =IFERROR(IF(B50="","",E50*(VLOOKUP(B50,Índices!$A:$H,8,0)-VLOOKUP(EDATE($C$8,-1),Índices!$A:$H,8,0))),"") -> 66714.45634 | H50: 1
B51: =IFERROR(IF(EDATE($C$8,30)>$C$9,"",IF(EDATE($C$8,30)>DATE(2099,12,1),"",EDATE($C$8,30))),"") -> 2021-05-01 | C51: =IFERROR(IF(B51="","",VLOOKUP(B51,Índices!$A:$H,5,0)),"") -> 0.0093 | D51: =IFERROR(IF(B51="","",VLOOKUP(B51,Índices!$A:$H,6,0)),"") -> 0.01 | E51: =IFERROR(IF(B51="","",$C$10*VLOOKUP(B51,Índices!$A:$H,7,0)/VLOOKUP(EDATE($C$8,-1),Índices!$A:$H,7,0)),"") -> 224449.6693 | F51: =IFERROR(IF(B51="","",E51*(VLOOKUP(B51,Índices!$A:$H,8,0)-VLOOKUP(EDATE($C$8,-1),Índices!$A:$H,8,0))),"") -> 69579.39748 | H51: 1
B52: =IFERROR(IF(EDATE($C$8,31)>$C$9,"",IF(EDATE($C$8,31)>DATE(2099,12,1),"",EDATE($C$8,31))),"") -> 2021-06-01 | C52: =IFERROR(IF(B52="","",VLOOKUP(B52,Índices!$A:$H,5,0)),"") -> 0.0031 | D52: =IFERROR(IF(B52="","",VLOOKUP(B52,Índices!$A:$H,6,0)),"") -> 0.01 | E52: =IFERROR(IF(B52="","",$C$10*VLOOKUP(B52,Índices!$A:$H,7,0)/VLOOKUP(EDATE($C$8,-1),Índices!$A:$H,7,0)),"") -> 225145.4633 | F52: =IFERROR(IF(B52="","",E52*(VLOOKUP(B52,Índices!$A:$H,8,0)-VLOOKUP(EDATE($C$8,-1),Índices!$A:$H,8,0))),"") -> 72046.54824 | H52: 1
B53: =IFERROR(IF(EDATE($C$8,32)>$C$9,"",IF(EDATE($C$8,32)>DATE(2099,12,1),"",EDATE($C$8,32))),"") -> 2021-07-01 | C53: =IFERROR(IF(B53="","",VLOOKUP(B53,Índices!$A:$H,5,0)),"") -> 0.0083 | D53: =IFERROR(IF(B53="","",VLOOKUP(B53,Índices!$A:$H,6,0)),"") -> 0.01 | E53: =IFERROR(IF(B53="","",$C$10*VLOOKUP(B53,Índices!$A:$H,7,0)/VLOOKUP(EDATE($C$8,-1),Índices!$A:$H,7,0)),"") -> 227014.1706 | F53: =IFERROR(IF(B53="","",E53*(VLOOKUP(B53,Índices!$A:$H,8,0)-VLOOKUP(EDATE($C$8,-1),Índices!$A:$H,8,0))),"") -> 74914.6763 | H53: 1
B54: =IFERROR(IF(EDATE($C$8,33)>$C$9,"",IF(EDATE($C$8,33)>DATE(2099,12,1),"",EDATE($C$8,33))),"") -> 2021-08-01 | C54: =IFERROR(IF(B54="","",VLOOKUP(B54,Índices!$A:$H,5,0)),"") -> 0.0053 | D54: =IFERROR(IF(B54="","",VLOOKUP(B54,Índices!$A:$H,6,0)),"") -> 0.01 | E54: =IFERROR(IF(B54="","",$C$10*VLOOKUP(B54,Índices!$A:$H,7,0)/VLOOKUP(EDATE($C$8,-1),Índices!$A:$H,7,0)),"") -> 228217.3457 | F54: =IFERROR(IF(B54="","",E54*(VLOOKUP(B54,Índices!$A:$H,8,0)-VLOOKUP(EDATE($C$8,-1),Índices!$A:$H,8,0))),"") -> 77593.89754 | H54: 1
B55: =IFERROR(IF(EDATE($C$8,34)>$C$9,"",IF(EDATE($C$8,34)>DATE(2099,12,1),"",EDATE($C$8,34))),"") -> 2021-09-01 | C55: =IFERROR(IF(B55="","",VLOOKUP(B55,Índices!$A:$H,5,0)),"") -> 0.0096 | D55: =IFERROR(IF(B55="","",VLOOKUP(B55,Índices!$A:$H,6,0)),"") -> 0.01 | E55: =IFERROR(IF(B55="","",$C$10*VLOOKUP(B55,Índices!$A:$H,7,0)/VLOOKUP(EDATE($C$8,-1),Índices!$A:$H,7,0)),"") -> 230408.2322 | F55: =IFERROR(IF(B55="","",E55*(VLOOKUP(B55,Índices!$A:$H,8,0)-VLOOKUP(EDATE($C$8,-1),Índices!$A:$H,8,0))),"") -> 80642.88128 | H55: 1
B56: =IFERROR(IF(EDATE($C$8,35)>$C$9,"",IF(EDATE($C$8,35)>DATE(2099,12,1),"",EDATE($C$8,35))),"") -> 2021-10-01 | C56: =IFERROR(IF(B56="","",VLOOKUP(B56,Índices!$A:$H,5,0)),"") -> 0.0087 | D56: =IFERROR(IF(B56="","",VLOOKUP(B56,Índices!$A:$H,6,0)),"") -> 0.01 | E56: =IFERROR(IF(B56="","",$C$10*VLOOKUP(B56,Índices!$A:$H,7,0)/VLOOKUP(EDATE($C$8,-1),Índices!$A:$H,7,0)),"") -> 232412.7839 | F56: =IFERROR(IF(B56="","",E56*(VLOOKUP(B56,Índices!$A:$H,8,0)-VLOOKUP(EDATE($C$8,-1),Índices!$A:$H,8,0))),"") -> 83668.60219 | H56: 1
B57: =IFERROR(IF(EDATE($C$8,36)>$C$9,"",IF(EDATE($C$8,36)>DATE(2099,12,1),"",EDATE($C$8,36))),"") -> 2021-11-01 | C57: =IFERROR(IF(B57="","",VLOOKUP(B57,Índices!$A:$H,5,0)),"") -> 0.0116 | D57: =IFERROR(IF(B57="","",VLOOKUP(B57,Índices!$A:$H,6,0)),"") -> 0.01 | E57: =IFERROR(IF(B57="","",$C$10*VLOOKUP(B57,Índices!$A:$H,7,0)/VLOOKUP(EDATE($C$8,-1),Índices!$A:$H,7,0)),"") -> 235108.7721 | F57: =IFERROR(IF(B57="","",E57*(VLOOKUP(B57,Índices!$A:$H,8,0)-VLOOKUP(EDATE($C$8,-1),Índices!$A:$H,8,0))),"") -> 86990.24569 | H57: 1
B58: =IFERROR(IF(EDATE($C$8,37)>$C$9,"",IF(EDATE($C$8,37)>DATE(2099,12,1),"",EDATE($C$8,37))),"") -> 2021-12-01 | C58: =IFERROR(IF(B58="","",VLOOKUP(B58,Índices!$A:$H,5,0)),"") -> 0.0125 | D58: =IFERROR(IF(B58="","",VLOOKUP(B58,Índices!$A:$H,6,0)),"") -> 0.01 | E58: =IFERROR(IF(B58="","",$C$10*VLOOKUP(B58,Índices!$A:$H,7,0)/VLOOKUP(EDATE($C$8,-1),Índices!$A:$H,7,0)),"") -> 238047.6318 | F58: =IFERROR(IF(B58="","",E58*(VLOOKUP(B58,Índices!$A:$H,8,0)-VLOOKUP(EDATE($C$8,-1),Índices!$A:$H,8,0))),"") -> 90458.10008 | H58: 1
B59: =IFERROR(IF(EDATE($C$8,38)>$C$9,"",IF(EDATE($C$8,38)>DATE(2099,12,1),"",EDATE($C$8,38))),"") -> 2022-01-01 | C59: =IFERROR(IF(B59="","",VLOOKUP(B59,Índices!$A:$H,5,0)),"") -> 0.0095 | D59: =IFERROR(IF(B59="","",VLOOKUP(B59,Índices!$A:$H,6,0)),"") -> 0.01 | E59: =IFERROR(IF(B59="","",$C$10*VLOOKUP(B59,Índices!$A:$H,7,0)/VLOOKUP(EDATE($C$8,-1),Índices!$A:$H,7,0)),"") -> 240309.0843 | F59: =IFERROR(IF(B59="","",E59*(VLOOKUP(B59,Índices!$A:$H,8,0)-VLOOKUP(EDATE($C$8,-1),Índices!$A:$H,8,0))),"") -> 93720.54288 | H59: 1
B60: =IFERROR(IF(EDATE($C$8,39)>$C$9,"",IF(EDATE($C$8,39)>DATE(2099,12,1),"",EDATE($C$8,39))),"") -> 2022-02-01 | C60: =IFERROR(IF(B60="","",VLOOKUP(B60,Índices!$A:$H,5,0)),"") -> 0.0073 | D60: =IFERROR(IF(B60="","",VLOOKUP(B60,Índices!$A:$H,6,0)),"") -> 0.01 | E60: =IFERROR(IF(B60="","",$C$10*VLOOKUP(B60,Índices!$A:$H,7,0)/VLOOKUP(EDATE($C$8,-1),Índices!$A:$H,7,0)),"") -> 242063.3406 | F60: =IFERROR(IF(B60="","",E60*(VLOOKUP(B60,Índices!$A:$H,8,0)-VLOOKUP(EDATE($C$8,-1),Índices!$A:$H,8,0))),"") -> 96825.33625 | H60: 1
B61: =IFERROR(IF(EDATE($C$8,40)>$C$9,"",IF(EDATE($C$8,40)>DATE(2099,12,1),"",EDATE($C$8,40))),"") -> 2022-03-01 | C61: =IFERROR(IF(B61="","",VLOOKUP(B61,Índices!$A:$H,5,0)),"") -> 0.0054 | D61: =IFERROR(IF(B61="","",VLOOKUP(B61,Índices!$A:$H,6,0)),"") -> 0.01 | E61: =IFERROR(IF(B61="","",$C$10*VLOOKUP(B61,Índices!$A:$H,7,0)/VLOOKUP(EDATE($C$8,-1),Índices!$A:$H,7,0)),"") -> 243370.4827 | F61: =IFERROR(IF(B61="","",E61*(VLOOKUP(B61,Índices!$A:$H,8,0)-VLOOKUP(EDATE($C$8,-1),Índices!$A:$H,8,0))),"") -> 99781.89789 | H61: 1
B62: =IFERROR(IF(EDATE($C$8,41)>$C$9,"",IF(EDATE($C$8,41)>DATE(2099,12,1),"",EDATE($C$8,41))),"") -> 2022-04-01 | C62: =IFERROR(IF(B62="","",VLOOKUP(B62,Índices!$A:$H,5,0)),"") -> 0.0101 | D62: =IFERROR(IF(B62="","",VLOOKUP(B62,Índices!$A:$H,6,0)),"") -> 0.01 | E62: =IFERROR(IF(B62="","",$C$10*VLOOKUP(B62,Índices!$A:$H,7,0)/VLOOKUP(EDATE($C$8,-1),Índices!$A:$H,7,0)),"") -> 245828.5245 | F62: =IFERROR(IF(B62="","",E62*(VLOOKUP(B62,Índices!$A:$H,8,0)-VLOOKUP(EDATE($C$8,-1),Índices!$A:$H,8,0))),"") -> 103247.9803 | H62: 1
B63: =IFERROR(IF(EDATE($C$8,42)>$C$9,"",IF(EDATE($C$8,42)>DATE(2099,12,1),"",EDATE($C$8,42))),"") -> 2022-05-01 | C63: =IFERROR(IF(B63="","",VLOOKUP(B63,Índices!$A:$H,5,0)),"") -> 0.0162 | D63: =IFERROR(IF(B63="","",VLOOKUP(B63,Índices!$A:$H,6,0)),"") -> 0.01 | E63: =IFERROR(IF(B63="","",$C$10*VLOOKUP(B63,Índices!$A:$H,7,0)/VLOOKUP(EDATE($C$8,-1),Índices!$A:$H,7,0)),"") -> 249810.9466 | F63: =IFERROR(IF(B63="","",E63*(VLOOKUP(B63,Índices!$A:$H,8,0)-VLOOKUP(EDATE($C$8,-1),Índices!$A:$H,8,0))),"") -> 107418.707 | H63: 1
B64: =IFERROR(IF(EDATE($C$8,43)>$C$9,"",IF(EDATE($C$8,43)>DATE(2099,12,1),"",EDATE($C$8,43))),"") -> 2022-06-01 | C64: =IFERROR(IF(B64="","",VLOOKUP(B64,Índices!$A:$H,5,0)),"") -> 0.0106 | D64: =IFERROR(IF(B64="","",VLOOKUP(B64,Índices!$A:$H,6,0)),"") -> 0.01 | E64: =IFERROR(IF(B64="","",$C$10*VLOOKUP(B64,Índices!$A:$H,7,0)/VLOOKUP(EDATE($C$8,-1),Índices!$A:$H,7,0)),"") -> 252458.9427 | F64: =IFERROR(IF(B64="","",E64*(VLOOKUP(B64,Índices!$A:$H,8,0)-VLOOKUP(EDATE($C$8,-1),Índices!$A:$H,8,0))),"") -> 111081.9348 | H64: 1
B65: =IFERROR(IF(EDATE($C$8,44)>$C$9,"",IF(EDATE($C$8,44)>DATE(2099,12,1),"",EDATE($C$8,44))),"") -> 2022-07-01 | C65: =IFERROR(IF(B65="","",VLOOKUP(B65,Índices!$A:$H,5,0)),"") -> 0.0047 | D65: =IFERROR(IF(B65="","",VLOOKUP(B65,Índices!$A:$H,6,0)),"") -> 0.01 | E65: =IFERROR(IF(B65="","",$C$10*VLOOKUP(B65,Índices!$A:$H,7,0)/VLOOKUP(EDATE($C$8,-1),Índices!$A:$H,7,0)),"") -> 253645.4997 | F65: =IFERROR(IF(B65="","",E65*(VLOOKUP(B65,Índices!$A:$H,8,0)-VLOOKUP(EDATE($C$8,-1),Índices!$A:$H,8,0))),"") -> 114140.4749 | H65: 1
B66: =IFERROR(IF(EDATE($C$8,45)>$C$9,"",IF(EDATE($C$8,45)>DATE(2099,12,1),"",EDATE($C$8,45))),"") -> 2022-08-01 | C66: =IFERROR(IF(B66="","",VLOOKUP(B66,Índices!$A:$H,5,0)),"") -> 0.0067 | D66: =IFERROR(IF(B66="","",VLOOKUP(B66,Índices!$A:$H,6,0)),"") -> 0.01 | E66: =IFERROR(IF(B66="","",$C$10*VLOOKUP(B66,Índices!$A:$H,7,0)/VLOOKUP(EDATE($C$8,-1),Índices!$A:$H,7,0)),"") -> 255344.9245 | F66: =IFERROR(IF(B66="","",E66*(VLOOKUP(B66,Índices!$A:$H,8,0)-VLOOKUP(EDATE($C$8,-1),Índices!$A:$H,8,0))),"") -> 117458.6653 | H66: 1
B67: =IFERROR(IF(EDATE($C$8,46)>$C$9,"",IF(EDATE($C$8,46)>DATE(2099,12,1),"",EDATE($C$8,46))),"") -> 2022-09-01 | C67: =IFERROR(IF(B67="","",VLOOKUP(B67,Índices!$A:$H,5,0)),"") -> -0.0068 | D67: =IFERROR(IF(B67="","",VLOOKUP(B67,Índices!$A:$H,6,0)),"") -> 0.01 | E67: =IFERROR(IF(B67="","",$C$10*VLOOKUP(B67,Índices!$A:$H,7,0)/VLOOKUP(EDATE($C$8,-1),Índices!$A:$H,7,0)),"") -> 253608.5791 | F67: =IFERROR(IF(B67="","",E67*(VLOOKUP(B67,Índices!$A:$H,8,0)-VLOOKUP(EDATE($C$8,-1),Índices!$A:$H,8,0))),"") -> 119196.0322 | H67: 1
B68: =IFERROR(IF(EDATE($C$8,47)>$C$9,"",IF(EDATE($C$8,47)>DATE(2099,12,1),"",EDATE($C$8,47))),"") -> 2022-10-01 | C68: =IFERROR(IF(B68="","",VLOOKUP(B68,Índices!$A:$H,5,0)),"") -> -0.0036 | D68: =IFERROR(IF(B68="","",VLOOKUP(B68,Índices!$A:$H,6,0)),"") -> 0.01 | E68: =IFERROR(IF(B68="","",$C$10*VLOOKUP(B68,Índices!$A:$H,7,0)/VLOOKUP(EDATE($C$8,-1),Índices!$A:$H,7,0)),"") -> 252695.5882 | F68: =IFERROR(IF(B68="","",E68*(VLOOKUP(B68,Índices!$A:$H,8,0)-VLOOKUP(EDATE($C$8,-1),Índices!$A:$H,8,0))),"") -> 121293.8823 | H68: 1
B69: =IFERROR(IF(EDATE($C$8,48)>$C$9,"",IF(EDATE($C$8,48)>DATE(2099,12,1),"",EDATE($C$8,48))),"") -> 2022-11-01 | C69: =IFERROR(IF(B69="","",VLOOKUP(B69,Índices!$A:$H,5,0)),"") -> -0.0029 | D69: =IFERROR(IF(B69="","",VLOOKUP(B69,Índices!$A:$H,6,0)),"") -> 0.01 | E69: =IFERROR(IF(B69="","",$C$10*VLOOKUP(B69,Índices!$A:$H,7,0)/VLOOKUP(EDATE($C$8,-1),Índices!$A:$H,7,0)),"") -> 251962.771 | F69: =IFERROR(IF(B69="","",E69*(VLOOKUP(B69,Índices!$A:$H,8,0)-VLOOKUP(EDATE($C$8,-1),Índices!$A:$H,8,0))),"") -> 123461.7578 | H69: 1
B70: =IFERROR(IF(EDATE($C$8,49)>$C$9,"",IF(EDATE($C$8,49)>DATE(2099,12,1),"",EDATE($C$8,49))),"") -> 2022-12-01 | C70: =IFERROR(IF(B70="","",VLOOKUP(B70,Índices!$A:$H,5,0)),"") -> 0.0059 | D70: =IFERROR(IF(B70="","",VLOOKUP(B70,Índices!$A:$H,6,0)),"") -> 0.01 | E70: =IFERROR(IF(B70="","",$C$10*VLOOKUP(B70,Índices!$A:$H,7,0)/VLOOKUP(EDATE($C$8,-1),Índices!$A:$H,7,0)),"") -> 253449.3513 | F70: =IFERROR(IF(B70="","",E70*(VLOOKUP(B70,Índices!$A:$H,8,0)-VLOOKUP(EDATE($C$8,-1),Índices!$A:$H,8,0))),"") -> 126724.6757 | H70: 1
B71: =IFERROR(IF(EDATE($C$8,50)>$C$9,"",IF(EDATE($C$8,50)>DATE(2099,12,1),"",EDATE($C$8,50))),"") -> 2023-01-01 | C71: =IFERROR(IF(B71="","",VLOOKUP(B71,Índices!$A:$H,5,0)),"") -> 0.0041 | D71: =IFERROR(IF(B71="","",VLOOKUP(B71,Índices!$A:$H,6,0)),"") -> 0.01 | E71: =IFERROR(IF(B71="","",$C$10*VLOOKUP(B71,Índices!$A:$H,7,0)/VLOOKUP(EDATE($C$8,-1),Índices!$A:$H,7,0)),"") -> 254488.4936 | F71: =IFERROR(IF(B71="","",E71*(VLOOKUP(B71,Índices!$A:$H,8,0)-VLOOKUP(EDATE($C$8,-1),Índices!$A:$H,8,0))),"") -> 129789.1318 | H71: 1
B72: =IFERROR(IF(EDATE($C$8,51)>$C$9,"",IF(EDATE($C$8,51)>DATE(2099,12,1),"",EDATE($C$8,51))),"") -> 2023-02-01 | C72: =IFERROR(IF(B72="","",VLOOKUP(B72,Índices!$A:$H,5,0)),"") -> 0.0062 | D72: =IFERROR(IF(B72="","",VLOOKUP(B72,Índices!$A:$H,6,0)),"") -> 0.01 | E72: =IFERROR(IF(B72="","",$C$10*VLOOKUP(B72,Índices!$A:$H,7,0)/VLOOKUP(EDATE($C$8,-1),Índices!$A:$H,7,0)),"") -> 256066.3223 | F72: =IFERROR(IF(B72="","",E72*(VLOOKUP(B72,Índices!$A:$H,8,0)-VLOOKUP(EDATE($C$8,-1),Índices!$A:$H,8,0))),"") -> 133154.4876 | H72: 1
B73: =IFERROR(IF(EDATE($C$8,52)>$C$9,"",IF(EDATE($C$8,52)>DATE(2099,12,1),"",EDATE($C$8,52))),"") -> 2023-03-01 | C73: =IFERROR(IF(B73="","",VLOOKUP(B73,Índices!$A:$H,5,0)),"") -> 0.0053 | D73: =IFERROR(IF(B73="","",VLOOKUP(B73,Índices!$A:$H,6,0)),"") -> 0.01 | E73: =IFERROR(IF(B73="","",$C$10*VLOOKUP(B73,Índices!$A:$H,7,0)/VLOOKUP(EDATE($C$8,-1),Índices!$A:$H,7,0)),"") -> 257423.4738 | F73: =IFERROR(IF(B73="","",E73*(VLOOKUP(B73,Índices!$A:$H,8,0)-VLOOKUP(EDATE($C$8,-1),Índices!$A:$H,8,0))),"") -> 136434.4411 | H73: 1
B74: =IFERROR(IF(EDATE($C$8,53)>$C$9,"",IF(EDATE($C$8,53)>DATE(2099,12,1),"",EDATE($C$8,53))),"") -> 2023-04-01 | C74: =IFERROR(IF(B74="","",VLOOKUP(B74,Índices!$A:$H,5,0)),"") -> 0.0084 | D74: =IFERROR(IF(B74="","",VLOOKUP(B74,Índices!$A:$H,6,0)),"") -> 0.01 | E74: =IFERROR(IF(B74="","",$C$10*VLOOKUP(B74,Índices!$A:$H,7,0)/VLOOKUP(EDATE($C$8,-1),Índices!$A:$H,7,0)),"") -> 259585.831 | F74: =IFERROR(IF(B74="","",E74*(VLOOKUP(B74,Índices!$A:$H,8,0)-VLOOKUP(EDATE($C$8,-1),Índices!$A:$H,8,0))),"") -> 140176.3487 | H74: 1
B75: =IFERROR(IF(EDATE($C$8,54)>$C$9,"",IF(EDATE($C$8,54)>DATE(2099,12,1),"",EDATE($C$8,54))),"") -> 2023-05-01 | C75: =IFERROR(IF(B75="","",VLOOKUP(B75,Índices!$A:$H,5,0)),"") -> 0.0071 | D75: =IFERROR(IF(B75="","",VLOOKUP(B75,Índices!$A:$H,6,0)),"") -> 0.01 | E75: =IFERROR(IF(B75="","",$C$10*VLOOKUP(B75,Índices!$A:$H,7,0)/VLOOKUP(EDATE($C$8,-1),Índices!$A:$H,7,0)),"") -> 261428.8904 | F75: =IFERROR(IF(B75="","",E75*(VLOOKUP(B75,Índices!$A:$H,8,0)-VLOOKUP(EDATE($C$8,-1),Índices!$A:$H,8,0))),"") -> 143785.8897 | H75: 1
B76: =IFERROR(IF(EDATE($C$8,55)>$C$9,"",IF(EDATE($C$8,55)>DATE(2099,12,1),"",EDATE($C$8,55))),"") -> 2023-06-01 | C76: =IFERROR(IF(B76="","",VLOOKUP(B76,Índices!$A:$H,5,0)),"") -> 0.0061 | D76: =IFERROR(IF(B76="","",VLOOKUP(B76,Índices!$A:$H,6,0)),"") -> 0.01 | E76: =IFERROR(IF(B76="","",$C$10*VLOOKUP(B76,Índices!$A:$H,7,0)/VLOOKUP(EDATE($C$8,-1),Índices!$A:$H,7,0)),"") -> 263023.6066 | F76: =IFERROR(IF(B76="","",E76*(VLOOKUP(B76,Índices!$A:$H,8,0)-VLOOKUP(EDATE($C$8,-1),Índices!$A:$H,8,0))),"") -> 147293.2197 | H76: 1
B77: =IFERROR(IF(EDATE($C$8,56)>$C$9,"",IF(EDATE($C$8,56)>DATE(2099,12,1),"",EDATE($C$8,56))),"") -> 2023-07-01 | C77: =IFERROR(IF(B77="","",VLOOKUP(B77,Índices!$A:$H,5,0)),"") -> 0.0023 | D77: =IFERROR(IF(B77="","",VLOOKUP(B77,Índices!$A:$H,6,0)),"") -> 0.01 | E77: =IFERROR(IF(B77="","",$C$10*VLOOKUP(B77,Índices!$A:$H,7,0)/VLOOKUP(EDATE($C$8,-1),Índices!$A:$H,7,0)),"") -> 263628.5609 | F77: =IFERROR(IF(B77="","",E77*(VLOOKUP(B77,Índices!$A:$H,8,0)-VLOOKUP(EDATE($C$8,-1),Índices!$A:$H,8,0))),"") -> 150268.2797 | H77: 1
B78: =IFERROR(IF(EDATE($C$8,57)>$C$9,"",IF(EDATE($C$8,57)>DATE(2099,12,1),"",EDATE($C$8,57))),"") -> 2023-08-01 | C78: =IFERROR(IF(B78="","",VLOOKUP(B78,Índices!$A:$H,5,0)),"") -> -0.0008 | D78: =IFERROR(IF(B78="","",VLOOKUP(B78,Índices!$A:$H,6,0)),"") -> 0.01 | E78: =IFERROR(IF(B78="","",$C$10*VLOOKUP(B78,Índices!$A:$H,7,0)/VLOOKUP(EDATE($C$8,-1),Índices!$A:$H,7,0)),"") -> 263417.6581 | F78: =IFERROR(IF(B78="","",E78*(VLOOKUP(B78,Índices!$A:$H,8,0)-VLOOKUP(EDATE($C$8,-1),Índices!$A:$H,8,0))),"") -> 152782.2417 | H78: 1
B79: =IFERROR(IF(EDATE($C$8,58)>$C$9,"",IF(EDATE($C$8,58)>DATE(2099,12,1),"",EDATE($C$8,58))),"") -> 2023-09-01 | C79: =IFERROR(IF(B79="","",VLOOKUP(B79,Índices!$A:$H,5,0)),"") -> 0.0012 | D79: =IFERROR(IF(B79="","",VLOOKUP(B79,Índices!$A:$H,6,0)),"") -> 0.01 | E79: =IFERROR(IF(B79="","",$C$10*VLOOKUP(B79,Índices!$A:$H,7,0)/VLOOKUP(EDATE($C$8,-1),Índices!$A:$H,7,0)),"") -> 263733.7593 | F79: =IFERROR(IF(B79="","",E79*(VLOOKUP(B79,Índices!$A:$H,8,0)-VLOOKUP(EDATE($C$8,-1),Índices!$A:$H,8,0))),"") -> 155602.918 | H79: 1
B80: =IFERROR(IF(EDATE($C$8,59)>$C$9,"",IF(EDATE($C$8,59)>DATE(2099,12,1),"",EDATE($C$8,59))),"") -> 2023-10-01 | C80: =IFERROR(IF(B80="","",VLOOKUP(B80,Índices!$A:$H,5,0)),"") -> 0.0023 | D80: =IFERROR(IF(B80="","",VLOOKUP(B80,Índices!$A:$H,6,0)),"") -> 0.0074 | E80: =IFERROR(IF(B80="","",$C$10*VLOOKUP(B80,Índices!$A:$H,7,0)/VLOOKUP(EDATE($C$8,-1),Índices!$A:$H,7,0)),"") -> 264340.3469 | F80: =IFERROR(IF(B80="","",E80*(VLOOKUP(B80,Índices!$A:$H,8,0)-VLOOKUP(EDATE($C$8,-1),Índices!$A:$H,8,0))),"") -> 157916.9232 | H80: 1
B81: =IFERROR(IF(EDATE($C$8,60)>$C$9,"",IF(EDATE($C$8,60)>DATE(2099,12,1),"",EDATE($C$8,60))),"") -> 2023-11-01 | C81: =IFERROR(IF(B81="","",VLOOKUP(B81,Índices!$A:$H,5,0)),"") -> 0.0026 | D81: =IFERROR(IF(B81="","",VLOOKUP(B81,Índices!$A:$H,6,0)),"") -> 0.0074 | E81: =IFERROR(IF(B81="","",$C$10*VLOOKUP(B81,Índices!$A:$H,7,0)/VLOOKUP(EDATE($C$8,-1),Índices!$A:$H,7,0)),"") -> 265027.6318 | F81: =IFERROR(IF(B81="","",E81*(VLOOKUP(B81,Índices!$A:$H,8,0)-VLOOKUP(EDATE($C$8,-1),Índices!$A:$H,8,0))),"") -> 160288.7117 | H81: 1
B82: =IFERROR(IF(EDATE($C$8,61)>$C$9,"",IF(EDATE($C$8,61)>DATE(2099,12,1),"",EDATE($C$8,61))),"") -> 2023-12-01 | C82: =IFERROR(IF(B82="","",VLOOKUP(B82,Índices!$A:$H,5,0)),"") -> 0.0024 | D82: =IFERROR(IF(B82="","",VLOOKUP(B82,Índices!$A:$H,6,0)),"") -> 0.0068 | E82: =IFERROR(IF(B82="","",$C$10*VLOOKUP(B82,Índices!$A:$H,7,0)/VLOOKUP(EDATE($C$8,-1),Índices!$A:$H,7,0)),"") -> 265663.6981 | F82: =IFERROR(IF(B82="","",E82*(VLOOKUP(B82,Índices!$A:$H,8,0)-VLOOKUP(EDATE($C$8,-1),Índices!$A:$H,8,0))),"") -> 162479.9178 | H82: 1
B83: =IFERROR(IF(EDATE($C$8,62)>$C$9,"",IF(EDATE($C$8,62)>DATE(2099,12,1),"",EDATE($C$8,62))),"") -> 2024-01-01 | C83: =IFERROR(IF(B83="","",VLOOKUP(B83,Índices!$A:$H,5,0)),"") -> 0.0028 | D83: =IFERROR(IF(B83="","",VLOOKUP(B83,Índices!$A:$H,6,0)),"") -> 0.0061 | E83: =IFERROR(IF(B83="","",$C$10*VLOOKUP(B83,Índices!$A:$H,7,0)/VLOOKUP(EDATE($C$8,-1),Índices!$A:$H,7,0)),"") -> 266407.5565 | F83: =IFERROR(IF(B83="","",E83*(VLOOKUP(B83,Índices!$A:$H,8,0)-VLOOKUP(EDATE($C$8,-1),Índices!$A:$H,8,0))),"") -> 164559.9476 | H83: 1
B84: =IFERROR(IF(EDATE($C$8,63)>$C$9,"",IF(EDATE($C$8,63)>DATE(2099,12,1),"",EDATE($C$8,63))),"") -> 2024-02-01 | C84: =IFERROR(IF(B84="","",VLOOKUP(B84,Índices!$A:$H,5,0)),"") -> 0.0056 | D84: =IFERROR(IF(B84="","",VLOOKUP(B84,Índices!$A:$H,6,0)),"") -> 0.0041 | E84: =IFERROR(IF(B84="","",$C$10*VLOOKUP(B84,Índices!$A:$H,7,0)/VLOOKUP(EDATE($C$8,-1),Índices!$A:$H,7,0)),"") -> 267899.4388 | F84: =IFERROR(IF(B84="","",E84*(VLOOKUP(B84,Índices!$A:$H,8,0)-VLOOKUP(EDATE($C$8,-1),Índices!$A:$H,8,0))),"") -> 166579.871 | H84: 1
B85: =IFERROR(IF(EDATE($C$8,64)>$C$9,"",IF(EDATE($C$8,64)>DATE(2099,12,1),"",EDATE($C$8,64))),"") -> 2024-03-01 | C85: =IFERROR(IF(B85="","",VLOOKUP(B85,Índices!$A:$H,5,0)),"") -> 0.0042 | D85: =IFERROR(IF(B85="","",VLOOKUP(B85,Índices!$A:$H,6,0)),"") -> 0.0038 | E85: =IFERROR(IF(B85="","",$C$10*VLOOKUP(B85,Índices!$A:$H,7,0)/VLOOKUP(EDATE($C$8,-1),Índices!$A:$H,7,0)),"") -> 269024.6164 | F85: =IFERROR(IF(B85="","",E85*(VLOOKUP(B85,Índices!$A:$H,8,0)-VLOOKUP(EDATE($C$8,-1),Índices!$A:$H,8,0))),"") -> 168301.8 | H85: 1
B86: =IFERROR(IF(EDATE($C$8,65)>$C$9,"",IF(EDATE($C$8,65)>DATE(2099,12,1),"",EDATE($C$8,65))),"") -> 2024-04-01 | C86: =IFERROR(IF(B86="","",VLOOKUP(B86,Índices!$A:$H,5,0)),"") -> 0.0083 | D86: =IFERROR(IF(B86="","",VLOOKUP(B86,Índices!$A:$H,6,0)),"") -> 0 | E86: =IFERROR(IF(B86="","",$C$10*VLOOKUP(B86,Índices!$A:$H,7,0)/VLOOKUP(EDATE($C$8,-1),Índices!$A:$H,7,0)),"") -> 271257.5208 | F86: =IFERROR(IF(B86="","",E86*(VLOOKUP(B86,Índices!$A:$H,8,0)-VLOOKUP(EDATE($C$8,-1),Índices!$A:$H,8,0))),"") -> 169698.705 | H86: =IF(B86="","vazia","1") -> 1
B87: =IFERROR(IF(EDATE($C$8,66)>$C$9,"",IF(EDATE($C$8,66)>DATE(2099,12,1),"",EDATE($C$8,66))),"") -> 2024-05-01 | C87: =IFERROR(IF(B87="","",VLOOKUP(B87,Índices!$A:$H,5,0)),"") -> 0.0016 | D87: =IFERROR(IF(B87="","",VLOOKUP(B87,Índices!$A:$H,6,0)),"") -> 0.0073 | E87: =IFERROR(IF(B87="","",$C$10*VLOOKUP(B87,Índices!$A:$H,7,0)/VLOOKUP(EDATE($C$8,-1),Índices!$A:$H,7,0)),"") -> 271691.5328 | F87: =IFERROR(IF(B87="","",E87*(VLOOKUP(B87,Índices!$A:$H,8,0)-VLOOKUP(EDATE($C$8,-1),Índices!$A:$H,8,0))),"") -> 171953.5711 | H87: 1
B88: =IFERROR(IF(EDATE($C$8,67)>$C$9,"",IF(EDATE($C$8,67)>DATE(2099,12,1),"",EDATE($C$8,67))),"") -> 2024-06-01 | C88: =IFERROR(IF(B88="","",VLOOKUP(B88,Índices!$A:$H,5,0)),"") -> 0.0038 | D88: =IFERROR(IF(B88="","",VLOOKUP(B88,Índices!$A:$H,6,0)),"") -> 0.0045 | E88: =IFERROR(IF(B88="","",$C$10*VLOOKUP(B88,Índices!$A:$H,7,0)/VLOOKUP(EDATE($C$8,-1),Índices!$A:$H,7,0)),"") -> 272723.9606 | F88: =IFERROR(IF(B88="","",E88*(VLOOKUP(B88,Índices!$A:$H,8,0)-VLOOKUP(EDATE($C$8,-1),Índices!$A:$H,8,0))),"") -> 173834.2525 | H88: 1
B89: =IFERROR(IF(EDATE($C$8,68)>$C$9,"",IF(EDATE($C$8,68)>DATE(2099,12,1),"",EDATE($C$8,68))),"") -> 2024-07-01 | C89: =IFERROR(IF(B89="","",VLOOKUP(B89,Índices!$A:$H,5,0)),"") -> 0.0046 | D89: =IFERROR(IF(B89="","",VLOOKUP(B89,Índices!$A:$H,6,0)),"") -> 0.0033 | E89: =IFERROR(IF(B89="","",$C$10*VLOOKUP(B89,Índices!$A:$H,7,0)/VLOOKUP(EDATE($C$8,-1),Índices!$A:$H,7,0)),"") -> 273978.4908 | F89: =IFERROR(IF(B89="","",E89*(VLOOKUP(B89,Índices!$A:$H,8,0)-VLOOKUP(EDATE($C$8,-1),Índices!$A:$H,8,0))),"") -> 175538.0191 | H89: 1
B90: =IFERROR(IF(EDATE($C$8,69)>$C$9,"",IF(EDATE($C$8,69)>DATE(2099,12,1),"",EDATE($C$8,69))),"") -> 2024-08-01 | C90: =IFERROR(IF(B90="","",VLOOKUP(B90,Índices!$A:$H,5,0)),"") -> 0.0021 | D90: =IFERROR(IF(B90="","",VLOOKUP(B90,Índices!$A:$H,6,0)),"") -> 0.007 | E90: =IFERROR(IF(B90="","",$C$10*VLOOKUP(B90,Índices!$A:$H,7,0)/VLOOKUP(EDATE($C$8,-1),Índices!$A:$H,7,0)),"") -> 274553.8457 | F90: =IFERROR(IF(B90="","",E90*(VLOOKUP(B90,Índices!$A:$H,8,0)-VLOOKUP(EDATE($C$8,-1),Índices!$A:$H,8,0))),"") -> 177828.5258 | H90: 1
B91: =IFERROR(IF(EDATE($C$8,70)>$C$9,"",IF(EDATE($C$8,70)>DATE(2099,12,1),"",EDATE($C$8,70))),"") -> 2024-09-01 | C91: =IFERROR(IF(B91="","",VLOOKUP(B91,Índices!$A:$H,5,0)),"") -> 0.0038 | D91: =IFERROR(IF(B91="","",VLOOKUP(B91,Índices!$A:$H,6,0)),"") -> 0.0049 | E91: =IFERROR(IF(B91="","",$C$10*VLOOKUP(B91,Índices!$A:$H,7,0)/VLOOKUP(EDATE($C$8,-1),Índices!$A:$H,7,0)),"") -> 275597.1503 | F91: =IFERROR(IF(B91="","",E91*(VLOOKUP(B91,Índices!$A:$H,8,0)-VLOOKUP(EDATE($C$8,-1),Índices!$A:$H,8,0))),"") -> 179854.7003 | H91: 1
B92: =IFERROR(IF(EDATE($C$8,71)>$C$9,"",IF(EDATE($C$8,71)>DATE(2099,12,1),"",EDATE($C$8,71))),"") -> 2024-10-01 | C92: =IFERROR(IF(B92="","",VLOOKUP(B92,Índices!$A:$H,5,0)),"") -> -0.0002 | D92: =IFERROR(IF(B92="","",VLOOKUP(B92,Índices!$A:$H,6,0)),"") -> 0.0086 | E92: =IFERROR(IF(B92="","",$C$10*VLOOKUP(B92,Índices!$A:$H,7,0)/VLOOKUP(EDATE($C$8,-1),Índices!$A:$H,7,0)),"") -> 275542.0309 | F92: =IFERROR(IF(B92="","",E92*(VLOOKUP(B92,Índices!$A:$H,8,0)-VLOOKUP(EDATE($C$8,-1),Índices!$A:$H,8,0))),"") -> 182188.3908 | H92: 1
B93: =IFERROR(IF(EDATE($C$8,72)>$C$9,"",IF(EDATE($C$8,72)>DATE(2099,12,1),"",EDATE($C$8,72))),"") -> 2024-11-01 | C93: =IFERROR(IF(B93="","",VLOOKUP(B93,Índices!$A:$H,5,0)),"") -> 0.0044 | D93: =IFERROR(IF(B93="","",VLOOKUP(B93,Índices!$A:$H,6,0)),"") -> 0.0049 | E93: =IFERROR(IF(B93="","",$C$10*VLOOKUP(B93,Índices!$A:$H,7,0)/VLOOKUP(EDATE($C$8,-1),Índices!$A:$H,7,0)),"") -> 276754.4158 | F93: =IFERROR(IF(B93="","",E93*(VLOOKUP(B93,Índices!$A:$H,8,0)-VLOOKUP(EDATE($C$8,-1),Índices!$A:$H,8,0))),"") -> 184346.1164 | H93: 1
B94: =IFERROR(IF(EDATE($C$8,73)>$C$9,"",IF(EDATE($C$8,73)>DATE(2099,12,1),"",EDATE($C$8,73))),"") -> 2024-12-01 | C94: =IFERROR(IF(B94="","",VLOOKUP(B94,Índices!$A:$H,5,0)),"") -> 0.0056 | D94: =IFERROR(IF(B94="","",VLOOKUP(B94,Índices!$A:$H,6,0)),"") -> 0.0023 | E94: =IFERROR(IF(B94="","",$C$10*VLOOKUP(B94,Índices!$A:$H,7,0)/VLOOKUP(EDATE($C$8,-1),Índices!$A:$H,7,0)),"") -> 278304.2405 | F94: =IFERROR(IF(B94="","",E94*(VLOOKUP(B94,Índices!$A:$H,8,0)-VLOOKUP(EDATE($C$8,-1),Índices!$A:$H,8,0))),"") -> 186018.5544 | H94: 1
B95: =IFERROR(IF(EDATE($C$8,74)>$C$9,"",IF(EDATE($C$8,74)>DATE(2099,12,1),"",EDATE($C$8,74))),"") -> 2025-01-01 | C95: =IFERROR(IF(B95="","",VLOOKUP(B95,Índices!$A:$H,5,0)),"") -> 0.0039 | D95: =IFERROR(IF(B95="","",VLOOKUP(B95,Índices!$A:$H,6,0)),"") -> 0.0054 | E95: =IFERROR(IF(B95="","",$C$10*VLOOKUP(B95,Índices!$A:$H,7,0)/VLOOKUP(EDATE($C$8,-1),Índices!$A:$H,7,0)),"") -> 279389.6271 | F95: =IFERROR(IF(B95="","",E95*(VLOOKUP(B95,Índices!$A:$H,8,0)-VLOOKUP(EDATE($C$8,-1),Índices!$A:$H,8,0))),"") -> 188252.7307 | H95: 1
B96: =IFERROR(IF(EDATE($C$8,75)>$C$9,"",IF(EDATE($C$8,75)>DATE(2099,12,1),"",EDATE($C$8,75))),"") -> 2025-02-01 | C96: =IFERROR(IF(B96="","",VLOOKUP(B96,Índices!$A:$H,5,0)),"") -> 0.0052 | D96: =IFERROR(IF(B96="","",VLOOKUP(B96,Índices!$A:$H,6,0)),"") -> 0.0049 | E96: =IFERROR(IF(B96="","",$C$10*VLOOKUP(B96,Índices!$A:$H,7,0)/VLOOKUP(EDATE($C$8,-1),Índices!$A:$H,7,0)),"") -> 280842.4531 | F96: =IFERROR(IF(B96="","",E96*(VLOOKUP(B96,Índices!$A:$H,8,0)-VLOOKUP(EDATE($C$8,-1),Índices!$A:$H,8,0))),"") -> 190607.7729 | H96: 1
B97: =IFERROR(IF(EDATE($C$8,76)>$C$9,"",IF(EDATE($C$8,76)>DATE(2099,12,1),"",EDATE($C$8,76))),"") -> 2025-03-01 | C97: =IFERROR(IF(B97="","",VLOOKUP(B97,Índices!$A:$H,5,0)),"") -> 0.0016 | D97: =IFERROR(IF(B97="","",VLOOKUP(B97,Índices!$A:$H,6,0)),"") -> 0.0083 | E97: =IFERROR(IF(B97="","",$C$10*VLOOKUP(B97,Índices!$A:$H,7,0)/VLOOKUP(EDATE($C$8,-1),Índices!$A:$H,7,0)),"") -> 281291.801 | F97: =IFERROR(IF(B97="","",E97*(VLOOKUP(B97,Índices!$A:$H,8,0)-VLOOKUP(EDATE($C$8,-1),Índices!$A:$H,8,0))),"") -> 193247.4673 | H97: 1
B98: =IFERROR(IF(EDATE($C$8,77)>$C$9,"",IF(EDATE($C$8,77)>DATE(2099,12,1),"",EDATE($C$8,77))),"") -> 2025-04-01 | C98: =IFERROR(IF(B98="","",VLOOKUP(B98,Índices!$A:$H,5,0)),"") -> 0.0096 | D98: =IFERROR(IF(B98="","",VLOOKUP(B98,Índices!$A:$H,6,0)),"") -> 0 | E98: =IFERROR(IF(B98="","",$C$10*VLOOKUP(B98,Índices!$A:$H,7,0)/VLOOKUP(EDATE($C$8,-1),Índices!$A:$H,7,0)),"") -> 283992.2023 | F98: =IFERROR(IF(B98="","",E98*(VLOOKUP(B98,Índices!$A:$H,8,0)-VLOOKUP(EDATE($C$8,-1),Índices!$A:$H,8,0))),"") -> 195102.643 | H98: 1
B99: =IFERROR(IF(EDATE($C$8,78)>$C$9,"",IF(EDATE($C$8,78)>DATE(2099,12,1),"",EDATE($C$8,78))),"") -> 2025-05-01 | C99: =IFERROR(IF(B99="","",VLOOKUP(B99,Índices!$A:$H,5,0)),"") -> 0.0056 | D99: =IFERROR(IF(B99="","",VLOOKUP(B99,Índices!$A:$H,6,0)),"") -> 0.005 | E99: =IFERROR(IF(B99="","",$C$10*VLOOKUP(B99,Índices!$A:$H,7,0)/VLOOKUP(EDATE($C$8,-1),Índices!$A:$H,7,0)),"") -> 285582.5587 | F99: =IFERROR(IF(B99="","",E99*(VLOOKUP(B99,Índices!$A:$H,8,0)-VLOOKUP(EDATE($C$8,-1),Índices!$A:$H,8,0))),"") -> 197623.1306 | H99: 1
B100: =IFERROR(IF(EDATE($C$8,79)>$C$9,"",IF(EDATE($C$8,79)>DATE(2099,12,1),"",EDATE($C$8,79))),"") -> 2025-06-01 | C100: =IFERROR(IF(B100="","",VLOOKUP(B100,Índices!$A:$H,5,0)),"") -> 0.0043 | D100: =IFERROR(IF(B100="","",VLOOKUP(B100,Índices!$A:$H,6,0)),"") -> 0.0071 | E100: =IFERROR(IF(B100="","",$C$10*VLOOKUP(B100,Índices!$A:$H,7,0)/VLOOKUP(EDATE($C$8,-1),Índices!$A:$H,7,0)),"") -> 286810.5637 | F100: =IFERROR(IF(B100="","",E100*(VLOOKUP(B100,Índices!$A:$H,8,0)-VLOOKUP(EDATE($C$8,-1),Índices!$A:$H,8,0))),"") -> 200509.2651 | H100: 1
B101: =IFERROR(IF(EDATE($C$8,80)>$C$9,"",IF(EDATE($C$8,80)>DATE(2099,12,1),"",EDATE($C$8,80))),"") -> 2025-07-01 | C101: =IFERROR(IF(B101="","",VLOOKUP(B101,Índices!$A:$H,5,0)),"") -> 0.0026 | D101: =IFERROR(IF(B101="","",VLOOKUP(B101,Índices!$A:$H,6,0)),"") -> 0.0084 | E101: =IFERROR(IF(B101="","",$C$10*VLOOKUP(B101,Índices!$A:$H,7,0)/VLOOKUP(EDATE($C$8,-1),Índices!$A:$H,7,0)),"") -> 287556.2711 | F101: =IFERROR(IF(B101="","",E101*(VLOOKUP(B101,Índices!$A:$H,8,0)-VLOOKUP(EDATE($C$8,-1),Índices!$A:$H,8,0))),"") -> 203446.0618 | H101: 1
B102: =IFERROR(IF(EDATE($C$8,81)>$C$9,"",IF(EDATE($C$8,81)>DATE(2099,12,1),"",EDATE($C$8,81))),"") -> 2025-08-01 | C102: =IFERROR(IF(B102="","",VLOOKUP(B102,Índices!$A:$H,5,0)),"") -> 0.0024 | D102: =IFERROR(IF(B102="","",VLOOKUP(B102,Índices!$A:$H,6,0)),"") -> 0.0104 | E102: =IFERROR(IF(B102="","",$C$10*VLOOKUP(B102,Índices!$A:$H,7,0)/VLOOKUP(EDATE($C$8,-1),Índices!$A:$H,7,0)),"") -> 288246.4062 | F102: =IFERROR(IF(B102="","",E102*(VLOOKUP(B102,Índices!$A:$H,8,0)-VLOOKUP(EDATE($C$8,-1),Índices!$A:$H,8,0))),"") -> 206932.095 | H102: 1
B103: =IFERROR(IF(EDATE($C$8,82)>$C$9,"",IF(EDATE($C$8,82)>DATE(2099,12,1),"",EDATE($C$8,82))),"") -> 2025-09-01 | C103: =IFERROR(IF(B103="","",VLOOKUP(B103,Índices!$A:$H,5,0)),"") -> 0.0026 | D103: =IFERROR(IF(B103="","",VLOOKUP(B103,Índices!$A:$H,6,0)),"") -> 0.009 | E103: =IFERROR(IF(B103="","",$C$10*VLOOKUP(B103,Índices!$A:$H,7,0)/VLOOKUP(EDATE($C$8,-1),Índices!$A:$H,7,0)),"") -> 288995.8468 | F103: =IFERROR(IF(B103="","",E103*(VLOOKUP(B103,Índices!$A:$H,8,0)-VLOOKUP(EDATE($C$8,-1),Índices!$A:$H,8,0))),"") -> 210071.0811 | H103: 1
B104: =IFERROR(IF(EDATE($C$8,83)>$C$9,"",IF(EDATE($C$8,83)>DATE(2099,12,1),"",EDATE($C$8,83))),"") -> 2025-10-01 | C104: =IFERROR(IF(B104="","",VLOOKUP(B104,Índices!$A:$H,5,0)),"") -> -0.0011 | D104: =IFERROR(IF(B104="","",VLOOKUP(B104,Índices!$A:$H,6,0)),"") -> 0.0133 | E104: =IFERROR(IF(B104="","",$C$10*VLOOKUP(B104,Índices!$A:$H,7,0)/VLOOKUP(EDATE($C$8,-1),Índices!$A:$H,7,0)),"") -> 288677.9514 | F104: =IFERROR(IF(B104="","",E104*(VLOOKUP(B104,Índices!$A:$H,8,0)-VLOOKUP(EDATE($C$8,-1),Índices!$A:$H,8,0))),"") -> 213679.4196 | H104: 1
B105: =IFERROR(IF(EDATE($C$8,84)>$C$9,"",IF(EDATE($C$8,84)>DATE(2099,12,1),"",EDATE($C$8,84))),"") -> 2025-11-01 | C105: =IFERROR(IF(B105="","",VLOOKUP(B105,Índices!$A:$H,5,0)),"") -> 0.0048 | D105: =IFERROR(IF(B105="","",VLOOKUP(B105,Índices!$A:$H,6,0)),"") -> 0.008 | E105: =IFERROR(IF(B105="","",$C$10*VLOOKUP(B105,Índices!$A:$H,7,0)/VLOOKUP(EDATE($C$8,-1),Índices!$A:$H,7,0)),"") -> 290063.6056 | F105: =IFERROR(IF(B105="","",E105*(VLOOKUP(B105,Índices!$A:$H,8,0)-VLOOKUP(EDATE($C$8,-1),Índices!$A:$H,8,0))),"") -> 217025.5897 | H105: 1
B106: =IFERROR(IF(EDATE($C$8,85)>$C$9,"",IF(EDATE($C$8,85)>DATE(2099,12,1),"",EDATE($C$8,85))),"") -> 2025-12-01 | C106: =IFERROR(IF(B106="","",VLOOKUP(B106,Índices!$A:$H,5,0)),"") -> 0.0009 | D106: =IFERROR(IF(B106="","",VLOOKUP(B106,Índices!$A:$H,6,0)),"") -> 0.0096 | E106: =IFERROR(IF(B106="","",$C$10*VLOOKUP(B106,Índices!$A:$H,7,0)/VLOOKUP(EDATE($C$8,-1),Índices!$A:$H,7,0)),"") -> 290324.6628 | F106: =IFERROR(IF(B106="","",E106*(VLOOKUP(B106,Índices!$A:$H,8,0)-VLOOKUP(EDATE($C$8,-1),Índices!$A:$H,8,0))),"") -> 220008.0295 | H106: 1
B107: =IFERROR(IF(EDATE($C$8,86)>$C$9,"",IF(EDATE($C$8,86)>DATE(2099,12,1),"",EDATE($C$8,86))),"") -> 2026-01-01 | C107: =IFERROR(IF(B107="","",VLOOKUP(B107,Índices!$A:$H,5,0)),"") -> 0.0018 | D107: =IFERROR(IF(B107="","",VLOOKUP(B107,Índices!$A:$H,6,0)),"") -> 0.0104 | E107: =IFERROR(IF(B107="","",$C$10*VLOOKUP(B107,Índices!$A:$H,7,0)/VLOOKUP(EDATE($C$8,-1),Índices!$A:$H,7,0)),"") -> 290847.2472 | F107: =IFERROR(IF(B107="","",E107*(VLOOKUP(B107,Índices!$A:$H,8,0)-VLOOKUP(EDATE($C$8,-1),Índices!$A:$H,8,0))),"") -> 223428.8553 | H107: 1
B108: =IFERROR(IF(EDATE($C$8,87)>$C$9,"",IF(EDATE($C$8,87)>DATE(2099,12,1),"",EDATE($C$8,87))),"") -> 2026-02-01 | C108: =IFERROR(IF(B108="","",VLOOKUP(B108,Índices!$A:$H,5,0)),"") -> 0.0033 | D108: =IFERROR(IF(B108="","",VLOOKUP(B108,Índices!$A:$H,6,0)),"") -> 0.0083 | E108: =IFERROR(IF(B108="","",$C$10*VLOOKUP(B108,Índices!$A:$H,7,0)/VLOOKUP(EDATE($C$8,-1),Índices!$A:$H,7,0)),"") -> 291807.0431 | F108: =IFERROR(IF(B108="","",E108*(VLOOKUP(B108,Índices!$A:$H,8,0)-VLOOKUP(EDATE($C$8,-1),Índices!$A:$H,8,0))),"") -> 226588.169 | H108: 1
B109: =IFERROR(IF(EDATE($C$8,88)>$C$9,"",IF(EDATE($C$8,88)>DATE(2099,12,1),"",EDATE($C$8,88))),"") -> 2026-03-01 | C109: =IFERROR(IF(B109="","",VLOOKUP(B109,Índices!$A:$H,5,0)),"") -> 0.0033 | D109: =IFERROR(IF(B109="","",VLOOKUP(B109,Índices!$A:$H,6,0)),"") -> 0.0067 | E109: =IFERROR(IF(B109="","",$C$10*VLOOKUP(B109,Índices!$A:$H,7,0)/VLOOKUP(EDATE($C$8,-1),Índices!$A:$H,7,0)),"") -> 292770.0064 | F109: =IFERROR(IF(B109="","",E109*(VLOOKUP(B109,Índices!$A:$H,8,0)-VLOOKUP(EDATE($C$8,-1),Índices!$A:$H,8,0))),"") -> 229297.469 | H109: 1
B110: =IFERROR(IF(EDATE($C$8,89)>$C$9,"",IF(EDATE($C$8,89)>DATE(2099,12,1),"",EDATE($C$8,89))),"") ->  | C110: =IFERROR(IF(B110="","",VLOOKUP(B110,Índices!$A:$H,5,0)),"") ->  | D110: =IFERROR(IF(B110="","",VLOOKUP(B110,Índices!$A:$H,6,0)),"") ->  | E110: =IFERROR(IF(B110="","",$C$10*VLOOKUP(B110,Índices!$A:$H,7,0)/VLOOKUP(EDATE($C$8,-1),Índices!$A:$H,7,0)),"") ->  | F110: =IFERROR(IF(B110="","",E110*(VLOOKUP(B110,Índices!$A:$H,8,0)-VLOOKUP(EDATE($C$8,-1),Índices!$A:$H,8,0))),"") ->  | H110: vazia
B111: =IFERROR(IF(EDATE($C$8,90)>$C$9,"",IF(EDATE($C$8,90)>DATE(2099,12,1),"",EDATE($C$8,90))),"") ->  | C111: =IFERROR(IF(B111="","",VLOOKUP(B111,Índices!$A:$H,5,0)),"") ->  | D111: =IFERROR(IF(B111="","",VLOOKUP(B111,Índices!$A:$H,6,0)),"") ->  | E111: =IFERROR(IF(B111="","",$C$10*VLOOKUP(B111,Índices!$A:$H,7,0)/VLOOKUP(EDATE($C$8,-1),Índices!$A:$H,7,0)),"") ->  | F111: =IFERROR(IF(B111="","",E111*(VLOOKUP(B111,Índices!$A:$H,8,0)-VLOOKUP(EDATE($C$8,-1),Índices!$A:$H,8,0))),"") ->  | H111: vazia
B112: =IFERROR(IF(EDATE($C$8,91)>$C$9,"",IF(EDATE($C$8,91)>DATE(2099,12,1),"",EDATE($C$8,91))),"") ->  | C112: =IFERROR(IF(B112="","",VLOOKUP(B112,Índices!$A:$H,5,0)),"") ->  | D112: =IFERROR(IF(B112="","",VLOOKUP(B112,Índices!$A:$H,6,0)),"") ->  | E112: =IFERROR(IF(B112="","",$C$10*VLOOKUP(B112,Índices!$A:$H,7,0)/VLOOKUP(EDATE($C$8,-1),Índices!$A:$H,7,0)),"") ->  | F112: =IFERROR(IF(B112="","",E112*(VLOOKUP(B112,Índices!$A:$H,8,0)-VLOOKUP(EDATE($C$8,-1),Índices!$A:$H,8,0))),"") ->  | H112: vazia
B113: =IFERROR(IF(EDATE($C$8,92)>$C$9,"",IF(EDATE($C$8,92)>DATE(2099,12,1),"",EDATE($C$8,92))),"") ->  | C113: =IFERROR(IF(B113="","",VLOOKUP(B113,Índices!$A:$H,5,0)),"") ->  | D113: =IFERROR(IF(B113="","",VLOOKUP(B113,Índices!$A:$H,6,0)),"") ->  | E113: =IFERROR(IF(B113="","",$C$10*VLOOKUP(B113,Índices!$A:$H,7,0)/VLOOKUP(EDATE($C$8,-1),Índices!$A:$H,7,0)),"") ->  | F113: =IFERROR(IF(B113="","",E113*(VLOOKUP(B113,Índices!$A:$H,8,0)-VLOOKUP(EDATE($C$8,-1),Índices!$A:$H,8,0))),"") ->  | H113: vazia
B114: =IFERROR(IF(EDATE($C$8,93)>$C$9,"",IF(EDATE($C$8,93)>DATE(2099,12,1),"",EDATE($C$8,93))),"") ->  | C114: =IFERROR(IF(B114="","",VLOOKUP(B114,Índices!$A:$H,5,0)),"") ->  | D114: =IFERROR(IF(B114="","",VLOOKUP(B114,Índices!$A:$H,6,0)),"") ->  | E114: =IFERROR(IF(B114="","",$C$10*VLOOKUP(B114,Índices!$A:$H,7,0)/VLOOKUP(EDATE($C$8,-1),Índices!$A:$H,7,0)),"") ->  | F114: =IFERROR(IF(B114="","",E114*(VLOOKUP(B114,Índices!$A:$H,8,0)-VLOOKUP(EDATE($C$8,-1),Índices!$A:$H,8,0))),"") ->  | H114: vazia
B115: =IFERROR(IF(EDATE($C$8,94)>$C$9,"",IF(EDATE($C$8,94)>DATE(2099,12,1),"",EDATE($C$8,94))),"") ->  | C115: =IFERROR(IF(B115="","",VLOOKUP(B115,Índices!$A:$H,5,0)),"") ->  | D115: =IFERROR(IF(B115="","",VLOOKUP(B115,Índices!$A:$H,6,0)),"") ->  | E115: =IFERROR(IF(B115="","",$C$10*VLOOKUP(B115,Índices!$A:$H,7,0)/VLOOKUP(EDATE($C$8,-1),Índices!$A:$H,7,0)),"") ->  | F115: =IFERROR(IF(B115="","",E115*(VLOOKUP(B115,Índices!$A:$H,8,0)-VLOOKUP(EDATE($C$8,-1),Índices!$A:$H,8,0))),"") ->  | H115: vazia
B116: =IFERROR(IF(EDATE($C$8,95)>$C$9,"",IF(EDATE($C$8,95)>DATE(2099,12,1),"",EDATE($C$8,95))),"") ->  | C116: =IFERROR(IF(B116="","",VLOOKUP(B116,Índices!$A:$H,5,0)),"") ->  | D116: =IFERROR(IF(B116="","",VLOOKUP(B116,Índices!$A:$H,6,0)),"") ->  | E116: =IFERROR(IF(B116="","",$C$10*VLOOKUP(B116,Índices!$A:$H,7,0)/VLOOKUP(EDATE($C$8,-1),Índices!$A:$H,7,0)),"") ->  | F116: =IFERROR(IF(B116="","",E116*(VLOOKUP(B116,Índices!$A:$H,8,0)-VLOOKUP(EDATE($C$8,-1),Índices!$A:$H,8,0))),"") ->  | H116: vazia
B117: =IFERROR(IF(EDATE($C$8,96)>$C$9,"",IF(EDATE($C$8,96)>DATE(2099,12,1),"",EDATE($C$8,96))),"") ->  | C117: =IFERROR(IF(B117="","",VLOOKUP(B117,Índices!$A:$H,5,0)),"") ->  | D117: =IFERROR(IF(B117="","",VLOOKUP(B117,Índices!$A:$H,6,0)),"") ->  | E117: =IFERROR(IF(B117="","",$C$10*VLOOKUP(B117,Índices!$A:$H,7,0)/VLOOKUP(EDATE($C$8,-1),Índices!$A:$H,7,0)),"") ->  | F117: =IFERROR(IF(B117="","",E117*(VLOOKUP(B117,Índices!$A:$H,8,0)-VLOOKUP(EDATE($C$8,-1),Índices!$A:$H,8,0))),"") ->  | H117: vazia
B118: =IFERROR(IF(EDATE($C$8,97)>$C$9,"",IF(EDATE($C$8,97)>DATE(2099,12,1),"",EDATE($C$8,97))),"") ->  | C118: =IFERROR(IF(B118="","",VLOOKUP(B118,Índices!$A:$H,5,0)),"") ->  | D118: =IFERROR(IF(B118="","",VLOOKUP(B118,Índices!$A:$H,6,0)),"") ->  | E118: =IFERROR(IF(B118="","",$C$10*VLOOKUP(B118,Índices!$A:$H,7,0)/VLOOKUP(EDATE($C$8,-1),Índices!$A:$H,7,0)),"") ->  | F118: =IFERROR(IF(B118="","",E118*(VLOOKUP(B118,Índices!$A:$H,8,0)-VLOOKUP(EDATE($C$8,-1),Índices!$A:$H,8,0))),"") ->  | H118: vazia
B119: =IFERROR(IF(EDATE($C$8,98)>$C$9,"",IF(EDATE($C$8,98)>DATE(2099,12,1),"",EDATE($C$8,98))),"") ->  | C119: =IFERROR(IF(B119="","",VLOOKUP(B119,Índices!$A:$H,5,0)),"") ->  | D119: =IFERROR(IF(B119="","",VLOOKUP(B119,Índices!$A:$H,6,0)),"") ->  | E119: =IFERROR(IF(B119="","",$C$10*VLOOKUP(B119,Índices!$A:$H,7,0)/VLOOKUP(EDATE($C$8,-1),Índices!$A:$H,7,0)),"") ->  | F119: =IFERROR(IF(B119="","",E119*(VLOOKUP(B119,Índices!$A:$H,8,0)-VLOOKUP(EDATE($C$8,-1),Índices!$A:$H,8,0))),"") ->  | H119: vazia
B120: =IFERROR(IF(EDATE($C$8,99)>$C$9,"",IF(EDATE($C$8,99)>DATE(2099,12,1),"",EDATE($C$8,99))),"") ->  | C120: =IFERROR(IF(B120="","",VLOOKUP(B120,Índices!$A:$H,5,0)),"") ->  | D120: =IFERROR(IF(B120="","",VLOOKUP(B120,Índices!$A:$H,6,0)),"") ->  | E120: =IFERROR(IF(B120="","",$C$10*VLOOKUP(B120,Índices!$A:$H,7,0)/VLOOKUP(EDATE($C$8,-1),Índices!$A:$H,7,0)),"") ->  | F120: =IFERROR(IF(B120="","",E120*(VLOOKUP(B120,Índices!$A:$H,8,0)-VLOOKUP(EDATE($C$8,-1),Índices!$A:$H,8,0))),"") ->  | H120: vazia
B121: =IFERROR(IF(EDATE($C$8,100)>$C$9,"",IF(EDATE($C$8,100)>DATE(2099,12,1),"",EDATE($C$8,100))),"") ->  | C121: =IFERROR(IF(B121="","",VLOOKUP(B121,Índices!$A:$H,5,0)),"") ->  | D121: =IFERROR(IF(B121="","",VLOOKUP(B121,Índices!$A:$H,6,0)),"") ->  | E121: =IFERROR(IF(B121="","",$C$10*VLOOKUP(B121,Índices!$A:$H,7,0)/VLOOKUP(EDATE($C$8,-1),Índices!$A:$H,7,0)),"") ->  | F121: =IFERROR(IF(B121="","",E121*(VLOOKUP(B121,Índices!$A:$H,8,0)-VLOOKUP(EDATE($C$8,-1),Índices!$A:$H,8,0))),"") ->  | H121: vazia
B122: =IFERROR(IF(EDATE($C$8,101)>$C$9,"",IF(EDATE($C$8,101)>DATE(2099,12,1),"",EDATE($C$8,101))),"") ->  | C122: =IFERROR(IF(B122="","",VLOOKUP(B122,Índices!$A:$H,5,0)),"") ->  | D122: =IFERROR(IF(B122="","",VLOOKUP(B122,Índices!$A:$H,6,0)),"") ->  | E122: =IFERROR(IF(B122="","",$C$10*VLOOKUP(B122,Índices!$A:$H,7,0)/VLOOKUP(EDATE($C$8,-1),Índices!$A:$H,7,0)),"") ->  | F122: =IFERROR(IF(B122="","",E122*(VLOOKUP(B122,Índices!$A:$H,8,0)-VLOOKUP(EDATE($C$8,-1),Índices!$A:$H,8,0))),"") ->  | H122: vazia
B123: =IFERROR(IF(EDATE($C$8,102)>$C$9,"",IF(EDATE($C$8,102)>DATE(2099,12,1),"",EDATE($C$8,102))),"") ->  | C123: =IFERROR(IF(B123="","",VLOOKUP(B123,Índices!$A:$H,5,0)),"") ->  | D123: =IFERROR(IF(B123="","",VLOOKUP(B123,Índices!$A:$H,6,0)),"") ->  | E123: =IFERROR(IF(B123="","",$C$10*VLOOKUP(B123,Índices!$A:$H,7,0)/VLOOKUP(EDATE($C$8,-1),Índices!$A:$H,7,0)),"") ->  | F123: =IFERROR(IF(B123="","",E123*(VLOOKUP(B123,Índices!$A:$H,8,0)-VLOOKUP(EDATE($C$8,-1),Índices!$A:$H,8,0))),"") ->  | H123: vazia
B124: =IFERROR(IF(EDATE($C$8,103)>$C$9,"",IF(EDATE($C$8,103)>DATE(2099,12,1),"",EDATE($C$8,103))),"") ->  | C124: =IFERROR(IF(B124="","",VLOOKUP(B124,Índices!$A:$H,5,0)),"") ->  | D124: =IFERROR(IF(B124="","",VLOOKUP(B124,Índices!$A:$H,6,0)),"") ->  | E124: =IFERROR(IF(B124="","",$C$10*VLOOKUP(B124,Índices!$A:$H,7,0)/VLOOKUP(EDATE($C$8,-1),Índices!$A:$H,7,0)),"") ->  | F124: =IFERROR(IF(B124="","",E124*(VLOOKUP(B124,Índices!$A:$H,8,0)-VLOOKUP(EDATE($C$8,-1),Índices!$A:$H,8,0))),"") ->  | H124: vazia
B125: =IFERROR(IF(EDATE($C$8,104)>$C$9,"",IF(EDATE($C$8,104)>DATE(2099,12,1),"",EDATE($C$8,104))),"") ->  | C125: =IFERROR(IF(B125="","",VLOOKUP(B125,Índices!$A:$H,5,0)),"") ->  | D125: =IFERROR(IF(B125="","",VLOOKUP(B125,Índices!$A:$H,6,0)),"") ->  | E125: =IFERROR(IF(B125="","",$C$10*VLOOKUP(B125,Índices!$A:$H,7,0)/VLOOKUP(EDATE($C$8,-1),Índices!$A:$H,7,0)),"") ->  | F125: =IFERROR(IF(B125="","",E125*(VLOOKUP(B125,Índices!$A:$H,8,0)-VLOOKUP(EDATE($C$8,-1),Índices!$A:$H,8,0))),"") ->  | H125: vazia
B126: =IFERROR(IF(EDATE($C$8,105)>$C$9,"",IF(EDATE($C$8,105)>DATE(2099,12,1),"",EDATE($C$8,105))),"") ->  | C126: =IFERROR(IF(B126="","",VLOOKUP(B126,Índices!$A:$H,5,0)),"") ->  | D126: =IFERROR(IF(B126="","",VLOOKUP(B126,Índices!$A:$H,6,0)),"") ->  | E126: =IFERROR(IF(B126="","",$C$10*VLOOKUP(B126,Índices!$A:$H,7,0)/VLOOKUP(EDATE($C$8,-1),Índices!$A:$H,7,0)),"") ->  | F126: =IFERROR(IF(B126="","",E126*(VLOOKUP(B126,Índices!$A:$H,8,0)-VLOOKUP(EDATE($C$8,-1),Índices!$A:$H,8,0))),"") ->  | H126: vazia
B127: =IFERROR(IF(EDATE($C$8,106)>$C$9,"",IF(EDATE($C$8,106)>DATE(2099,12,1),"",EDATE($C$8,106))),"") ->  | C127: =IFERROR(IF(B127="","",VLOOKUP(B127,Índices!$A:$H,5,0)),"") ->  | D127: =IFERROR(IF(B127="","",VLOOKUP(B127,Índices!$A:$H,6,0)),"") ->  | E127: =IFERROR(IF(B127="","",$C$10*VLOOKUP(B127,Índices!$A:$H,7,0)/VLOOKUP(EDATE($C$8,-1),Índices!$A:$H,7,0)),"") ->  | F127: =IFERROR(IF(B127="","",E127*(VLOOKUP(B127,Índices!$A:$H,8,0)-VLOOKUP(EDATE($C$8,-1),Índices!$A:$H,8,0))),"") ->  | H127: vazia
B128: =IFERROR(IF(EDATE($C$8,107)>$C$9,"",IF(EDATE($C$8,107)>DATE(2099,12,1),"",EDATE($C$8,107))),"") ->  | C128: =IFERROR(IF(B128="","",VLOOKUP(B128,Índices!$A:$H,5,0)),"") ->  | D128: =IFERROR(IF(B128="","",VLOOKUP(B128,Índices!$A:$H,6,0)),"") ->  | E128: =IFERROR(IF(B128="","",$C$10*VLOOKUP(B128,Índices!$A:$H,7,0)/VLOOKUP(EDATE($C$8,-1),Índices!$A:$H,7,0)),"") ->  | F128: =IFERROR(IF(B128="","",E128*(VLOOKUP(B128,Índices!$A:$H,8,0)-VLOOKUP(EDATE($C$8,-1),Índices!$A:$H,8,0))),"") ->  | H128: vazia
B129: =IFERROR(IF(EDATE($C$8,108)>$C$9,"",IF(EDATE($C$8,108)>DATE(2099,12,1),"",EDATE($C$8,108))),"") ->  | C129: =IFERROR(IF(B129="","",VLOOKUP(B129,Índices!$A:$H,5,0)),"") ->  | D129: =IFERROR(IF(B129="","",VLOOKUP(B129,Índices!$A:$H,6,0)),"") ->  | E129: =IFERROR(IF(B129="","",$C$10*VLOOKUP(B129,Índices!$A:$H,7,0)/VLOOKUP(EDATE($C$8,-1),Índices!$A:$H,7,0)),"") ->  | F129: =IFERROR(IF(B129="","",E129*(VLOOKUP(B129,Índices!$A:$H,8,0)-VLOOKUP(EDATE($C$8,-1),Índices!$A:$H,8,0))),"") ->  | H129: vazia
B130: =IFERROR(IF(EDATE($C$8,109)>$C$9,"",IF(EDATE($C$8,109)>DATE(2099,12,1),"",EDATE($C$8,109))),"") ->  | C130: =IFERROR(IF(B130="","",VLOOKUP(B130,Índices!$A:$H,5,0)),"") ->  | D130: =IFERROR(IF(B130="","",VLOOKUP(B130,Índices!$A:$H,6,0)),"") ->  | E130: =IFERROR(IF(B130="","",$C$10*VLOOKUP(B130,Índices!$A:$H,7,0)/VLOOKUP(EDATE($C$8,-1),Índices!$A:$H,7,0)),"") ->  | F130: =IFERROR(IF(B130="","",E130*(VLOOKUP(B130,Índices!$A:$H,8,0)-VLOOKUP(EDATE($C$8,-1),Índices!$A:$H,8,0))),"") ->  | H130: vazia
B131: =IFERROR(IF(EDATE($C$8,110)>$C$9,"",IF(EDATE($C$8,110)>DATE(2099,12,1),"",EDATE($C$8,110))),"") ->  | C131: =IFERROR(IF(B131="","",VLOOKUP(B131,Índices!$A:$H,5,0)),"") ->  | D131: =IFERROR(IF(B131="","",VLOOKUP(B131,Índices!$A:$H,6,0)),"") ->  | E131: =IFERROR(IF(B131="","",$C$10*VLOOKUP(B131,Índices!$A:$H,7,0)/VLOOKUP(EDATE($C$8,-1),Índices!$A:$H,7,0)),"") ->  | F131: =IFERROR(IF(B131="","",E131*(VLOOKUP(B131,Índices!$A:$H,8,0)-VLOOKUP(EDATE($C$8,-1),Índices!$A:$H,8,0))),"") ->  | H131: vazia
B132: =IFERROR(IF(EDATE($C$8,111)>$C$9,"",IF(EDATE($C$8,111)>DATE(2099,12,1),"",EDATE($C$8,111))),"") ->  | C132: =IFERROR(IF(B132="","",VLOOKUP(B132,Índices!$A:$H,5,0)),"") ->  | D132: =IFERROR(IF(B132="","",VLOOKUP(B132,Índices!$A:$H,6,0)),"") ->  | E132: =IFERROR(IF(B132="","",$C$10*VLOOKUP(B132,Índices!$A:$H,7,0)/VLOOKUP(EDATE($C$8,-1),Índices!$A:$H,7,0)),"") ->  | F132: =IFERROR(IF(B132="","",E132*(VLOOKUP(B132,Índices!$A:$H,8,0)-VLOOKUP(EDATE($C$8,-1),Índices!$A:$H,8,0))),"") ->  | H132: vazia
B133: =IFERROR(IF(EDATE($C$8,112)>$C$9,"",IF(EDATE($C$8,112)>DATE(2099,12,1),"",EDATE($C$8,112))),"") ->  | C133: =IFERROR(IF(B133="","",VLOOKUP(B133,Índices!$A:$H,5,0)),"") ->  | D133: =IFERROR(IF(B133="","",VLOOKUP(B133,Índices!$A:$H,6,0)),"") ->  | E133: =IFERROR(IF(B133="","",$C$10*VLOOKUP(B133,Índices!$A:$H,7,0)/VLOOKUP(EDATE($C$8,-1),Índices!$A:$H,7,0)),"") ->  | F133: =IFERROR(IF(B133="","",E133*(VLOOKUP(B133,Índices!$A:$H,8,0)-VLOOKUP(EDATE($C$8,-1),Índices!$A:$H,8,0))),"") ->  | H133: vazia
B134: =IFERROR(IF(EDATE($C$8,113)>$C$9,"",IF(EDATE($C$8,113)>DATE(2099,12,1),"",EDATE($C$8,113))),"") ->  | C134: =IFERROR(IF(B134="","",VLOOKUP(B134,Índices!$A:$H,5,0)),"") ->  | D134: =IFERROR(IF(B134="","",VLOOKUP(B134,Índices!$A:$H,6,0)),"") ->  | E134: =IFERROR(IF(B134="","",$C$10*VLOOKUP(B134,Índices!$A:$H,7,0)/VLOOKUP(EDATE($C$8,-1),Índices!$A:$H,7,0)),"") ->  | F134: =IFERROR(IF(B134="","",E134*(VLOOKUP(B134,Índices!$A:$H,8,0)-VLOOKUP(EDATE($C$8,-1),Índices!$A:$H,8,0))),"") ->  | H134: vazia
B135: =IFERROR(IF(EDATE($C$8,114)>$C$9,"",IF(EDATE($C$8,114)>DATE(2099,12,1),"",EDATE($C$8,114))),"") ->  | C135: =IFERROR(IF(B135="","",VLOOKUP(B135,Índices!$A:$H,5,0)),"") ->  | D135: =IFERROR(IF(B135="","",VLOOKUP(B135,Índices!$A:$H,6,0)),"") ->  | E135: =IFERROR(IF(B135="","",$C$10*VLOOKUP(B135,Índices!$A:$H,7,0)/VLOOKUP(EDATE($C$8,-1),Índices!$A:$H,7,0)),"") ->  | F135: =IFERROR(IF(B135="","",E135*(VLOOKUP(B135,Índices!$A:$H,8,0)-VLOOKUP(EDATE($C$8,-1),Índices!$A:$H,8,0))),"") ->  | H135: vazia
B136: =IFERROR(IF(EDATE($C$8,115)>$C$9,"",IF(EDATE($C$8,115)>DATE(2099,12,1),"",EDATE($C$8,115))),"") ->  | C136: =IFERROR(IF(B136="","",VLOOKUP(B136,Índices!$A:$H,5,0)),"") ->  | D136: =IFERROR(IF(B136="","",VLOOKUP(B136,Índices!$A:$H,6,0)),"") ->  | E136: =IFERROR(IF(B136="","",$C$10*VLOOKUP(B136,Índices!$A:$H,7,0)/VLOOKUP(EDATE($C$8,-1),Índices!$A:$H,7,0)),"") ->  | F136: =IFERROR(IF(B136="","",E136*(VLOOKUP(B136,Índices!$A:$H,8,0)-VLOOKUP(EDATE($C$8,-1),Índices!$A:$H,8,0))),"") ->  | H136: vazia
B137: =IFERROR(IF(EDATE($C$8,116)>$C$9,"",IF(EDATE($C$8,116)>DATE(2099,12,1),"",EDATE($C$8,116))),"") ->  | C137: =IFERROR(IF(B137="","",VLOOKUP(B137,Índices!$A:$H,5,0)),"") ->  | D137: =IFERROR(IF(B137="","",VLOOKUP(B137,Índices!$A:$H,6,0)),"") ->  | E137: =IFERROR(IF(B137="","",$C$10*VLOOKUP(B137,Índices!$A:$H,7,0)/VLOOKUP(EDATE($C$8,-1),Índices!$A:$H,7,0)),"") ->  | F137: =IFERROR(IF(B137="","",E137*(VLOOKUP(B137,Índices!$A:$H,8,0)-VLOOKUP(EDATE($C$8,-1),Índices!$A:$H,8,0))),"") ->  | H137: vazia
B138: =IFERROR(IF(EDATE($C$8,117)>$C$9,"",IF(EDATE($C$8,117)>DATE(2099,12,1),"",EDATE($C$8,117))),"") ->  | C138: =IFERROR(IF(B138="","",VLOOKUP(B138,Índices!$A:$H,5,0)),"") ->  | D138: =IFERROR(IF(B138="","",VLOOKUP(B138,Índices!$A:$H,6,0)),"") ->  | E138: =IFERROR(IF(B138="","",$C$10*VLOOKUP(B138,Índices!$A:$H,7,0)/VLOOKUP(EDATE($C$8,-1),Índices!$A:$H,7,0)),"") ->  | F138: =IFERROR(IF(B138="","",E138*(VLOOKUP(B138,Índices!$A:$H,8,0)-VLOOKUP(EDATE($C$8,-1),Índices!$A:$H,8,0))),"") ->  | H138: vazia
B139: =IFERROR(IF(EDATE($C$8,118)>$C$9,"",IF(EDATE($C$8,118)>DATE(2099,12,1),"",EDATE($C$8,118))),"") ->  | C139: =IFERROR(IF(B139="","",VLOOKUP(B139,Índices!$A:$H,5,0)),"") ->  | D139: =IFERROR(IF(B139="","",VLOOKUP(B139,Índices!$A:$H,6,0)),"") ->  | E139: =IFERROR(IF(B139="","",$C$10*VLOOKUP(B139,Índices!$A:$H,7,0)/VLOOKUP(EDATE($C$8,-1),Índices!$A:$H,7,0)),"") ->  | F139: =IFERROR(IF(B139="","",E139*(VLOOKUP(B139,Índices!$A:$H,8,0)-VLOOKUP(EDATE($C$8,-1),Índices!$A:$H,8,0))),"") ->  | H139: vazia
B140: =IFERROR(IF(EDATE($C$8,119)>$C$9,"",IF(EDATE($C$8,119)>DATE(2099,12,1),"",EDATE($C$8,119))),"") ->  | C140: =IFERROR(IF(B140="","",VLOOKUP(B140,Índices!$A:$H,5,0)),"") ->  | D140: =IFERROR(IF(B140="","",VLOOKUP(B140,Índices!$A:$H,6,0)),"") ->  | E140: =IFERROR(IF(B140="","",$C$10*VLOOKUP(B140,Índices!$A:$H,7,0)/VLOOKUP(EDATE($C$8,-1),Índices!$A:$H,7,0)),"") ->  | F140: =IFERROR(IF(B140="","",E140*(VLOOKUP(B140,Índices!$A:$H,8,0)-VLOOKUP(EDATE($C$8,-1),Índices!$A:$H,8,0))),"") ->  | H140: vazia
B141: =IFERROR(IF(EDATE($C$8,120)>$C$9,"",IF(EDATE($C$8,120)>DATE(2099,12,1),"",EDATE($C$8,120))),"") ->  | C141: =IFERROR(IF(B141="","",VLOOKUP(B141,Índices!$A:$H,5,0)),"") ->  | D141: =IFERROR(IF(B141="","",VLOOKUP(B141,Índices!$A:$H,6,0)),"") ->  | E141: =IFERROR(IF(B141="","",$C$10*VLOOKUP(B141,Índices!$A:$H,7,0)/VLOOKUP(EDATE($C$8,-1),Índices!$A:$H,7,0)),"") ->  | F141: =IFERROR(IF(B141="","",E141*(VLOOKUP(B141,Índices!$A:$H,8,0)-VLOOKUP(EDATE($C$8,-1),Índices!$A:$H,8,0))),"") ->  | H141: vazia
B142: =IFERROR(IF(EDATE($C$8,121)>$C$9,"",IF(EDATE($C$8,121)>DATE(2099,12,1),"",EDATE($C$8,121))),"") ->  | C142: =IFERROR(IF(B142="","",VLOOKUP(B142,Índices!$A:$H,5,0)),"") ->  | D142: =IFERROR(IF(B142="","",VLOOKUP(B142,Índices!$A:$H,6,0)),"") ->  | E142: =IFERROR(IF(B142="","",$C$10*VLOOKUP(B142,Índices!$A:$H,7,0)/VLOOKUP(EDATE($C$8,-1),Índices!$A:$H,7,0)),"") ->  | F142: =IFERROR(IF(B142="","",E142*(VLOOKUP(B142,Índices!$A:$H,8,0)-VLOOKUP(EDATE($C$8,-1),Índices!$A:$H,8,0))),"") ->  | H142: vazia
B143: =IFERROR(IF(EDATE($C$8,122)>$C$9,"",IF(EDATE($C$8,122)>DATE(2099,12,1),"",EDATE($C$8,122))),"") ->  | C143: =IFERROR(IF(B143="","",VLOOKUP(B143,Índices!$A:$H,5,0)),"") ->  | D143: =IFERROR(IF(B143="","",VLOOKUP(B143,Índices!$A:$H,6,0)),"") ->  | E143: =IFERROR(IF(B143="","",$C$10*VLOOKUP(B143,Índices!$A:$H,7,0)/VLOOKUP(EDATE($C$8,-1),Índices!$A:$H,7,0)),"") ->  | F143: =IFERROR(IF(B143="","",E143*(VLOOKUP(B143,Índices!$A:$H,8,0)-VLOOKUP(EDATE($C$8,-1),Índices!$A:$H,8,0))),"") ->  | H143: vazia
B144: =IFERROR(IF(EDATE($C$8,123)>$C$9,"",IF(EDATE($C$8,123)>DATE(2099,12,1),"",EDATE($C$8,123))),"") ->  | C144: =IFERROR(IF(B144="","",VLOOKUP(B144,Índices!$A:$H,5,0)),"") ->  | D144: =IFERROR(IF(B144="","",VLOOKUP(B144,Índices!$A:$H,6,0)),"") ->  | E144: =IFERROR(IF(B144="","",$C$10*VLOOKUP(B144,Índices!$A:$H,7,0)/VLOOKUP(EDATE($C$8,-1),Índices!$A:$H,7,0)),"") ->  | F144: =IFERROR(IF(B144="","",E144*(VLOOKUP(B144,Índices!$A:$H,8,0)-VLOOKUP(EDATE($C$8,-1),Índices!$A:$H,8,0))),"") ->  | H144: vazia
B145: =IFERROR(IF(EDATE($C$8,124)>$C$9,"",IF(EDATE($C$8,124)>DATE(2099,12,1),"",EDATE($C$8,124))),"") ->  | C145: =IFERROR(IF(B145="","",VLOOKUP(B145,Índices!$A:$H,5,0)),"") ->  | D145: =IFERROR(IF(B145="","",VLOOKUP(B145,Índices!$A:$H,6,0)),"") ->  | E145: =IFERROR(IF(B145="","",$C$10*VLOOKUP(B145,Índices!$A:$H,7,0)/VLOOKUP(EDATE($C$8,-1),Índices!$A:$H,7,0)),"") ->  | F145: =IFERROR(IF(B145="","",E145*(VLOOKUP(B145,Índices!$A:$H,8,0)-VLOOKUP(EDATE($C$8,-1),Índices!$A:$H,8,0))),"") ->  | H145: vazia
B146: =IFERROR(IF(EDATE($C$8,125)>$C$9,"",IF(EDATE($C$8,125)>DATE(2099,12,1),"",EDATE($C$8,125))),"") ->  | C146: =IFERROR(IF(B146="","",VLOOKUP(B146,Índices!$A:$H,5,0)),"") ->  | D146: =IFERROR(IF(B146="","",VLOOKUP(B146,Índices!$A:$H,6,0)),"") ->  | E146: =IFERROR(IF(B146="","",$C$10*VLOOKUP(B146,Índices!$A:$H,7,0)/VLOOKUP(EDATE($C$8,-1),Índices!$A:$H,7,0)),"") ->  | F146: =IFERROR(IF(B146="","",E146*(VLOOKUP(B146,Índices!$A:$H,8,0)-VLOOKUP(EDATE($C$8,-1),Índices!$A:$H,8,0))),"") ->  | H146: vazia
B147: =IFERROR(IF(EDATE($C$8,126)>$C$9,"",IF(EDATE($C$8,126)>DATE(2099,12,1),"",EDATE($C$8,126))),"") ->  | C147: =IFERROR(IF(B147="","",VLOOKUP(B147,Índices!$A:$H,5,0)),"") ->  | D147: =IFERROR(IF(B147="","",VLOOKUP(B147,Índices!$A:$H,6,0)),"") ->  | E147: =IFERROR(IF(B147="","",$C$10*VLOOKUP(B147,Índices!$A:$H,7,0)/VLOOKUP(EDATE($C$8,-1),Índices!$A:$H,7,0)),"") ->  | F147: =IFERROR(IF(B147="","",E147*(VLOOKUP(B147,Índices!$A:$H,8,0)-VLOOKUP(EDATE($C$8,-1),Índices!$A:$H,8,0))),"") ->  | H147: vazia
B148: =IFERROR(IF(EDATE($C$8,127)>$C$9,"",IF(EDATE($C$8,127)>DATE(2099,12,1),"",EDATE($C$8,127))),"") ->  | C148: =IFERROR(IF(B148="","",VLOOKUP(B148,Índices!$A:$H,5,0)),"") ->  | D148: =IFERROR(IF(B148="","",VLOOKUP(B148,Índices!$A:$H,6,0)),"") ->  | E148: =IFERROR(IF(B148="","",$C$10*VLOOKUP(B148,Índices!$A:$H,7,0)/VLOOKUP(EDATE($C$8,-1),Índices!$A:$H,7,0)),"") ->  | F148: =IFERROR(IF(B148="","",E148*(VLOOKUP(B148,Índices!$A:$H,8,0)-VLOOKUP(EDATE($C$8,-1),Índices!$A:$H,8,0))),"") ->  | H148: vazia
B149: =IFERROR(IF(EDATE($C$8,128)>$C$9,"",IF(EDATE($C$8,128)>DATE(2099,12,1),"",EDATE($C$8,128))),"") ->  | C149: =IFERROR(IF(B149="","",VLOOKUP(B149,Índices!$A:$H,5,0)),"") ->  | D149: =IFERROR(IF(B149="","",VLOOKUP(B149,Índices!$A:$H,6,0)),"") ->  | E149: =IFERROR(IF(B149="","",$C$10*VLOOKUP(B149,Índices!$A:$H,7,0)/VLOOKUP(EDATE($C$8,-1),Índices!$A:$H,7,0)),"") ->  | F149: =IFERROR(IF(B149="","",E149*(VLOOKUP(B149,Índices!$A:$H,8,0)-VLOOKUP(EDATE($C$8,-1),Índices!$A:$H,8,0))),"") ->  | H149: vazia
B150: =IFERROR(IF(EDATE($C$8,129)>$C$9,"",IF(EDATE($C$8,129)>DATE(2099,12,1),"",EDATE($C$8,129))),"") ->  | C150: =IFERROR(IF(B150="","",VLOOKUP(B150,Índices!$A:$H,5,0)),"") ->  | D150: =IFERROR(IF(B150="","",VLOOKUP(B150,Índices!$A:$H,6,0)),"") ->  | E150: =IFERROR(IF(B150="","",$C$10*VLOOKUP(B150,Índices!$A:$H,7,0)/VLOOKUP(EDATE($C$8,-1),Índices!$A:$H,7,0)),"") ->  | F150: =IFERROR(IF(B150="","",E150*(VLOOKUP(B150,Índices!$A:$H,8,0)-VLOOKUP(EDATE($C$8,-1),Índices!$A:$H,8,0))),"") ->  | H150: =IF(B150="","vazia","1") -> vazia
B151: =IFERROR(IF(EDATE($C$8,130)>$C$9,"",IF(EDATE($C$8,130)>DATE(2099,12,1),"",EDATE($C$8,130))),"") ->  | C151: =IFERROR(IF(B151="","",VLOOKUP(B151,Índices!$A:$H,5,0)),"") ->  | D151: =IFERROR(IF(B151="","",VLOOKUP(B151,Índices!$A:$H,6,0)),"") ->  | E151: =IFERROR(IF(B151="","",$C$10*VLOOKUP(B151,Índices!$A:$H,7,0)/VLOOKUP(EDATE($C$8,-1),Índices!$A:$H,7,0)),"") ->  | F151: =IFERROR(IF(B151="","",E151*(VLOOKUP(B151,Índices!$A:$H,8,0)-VLOOKUP(EDATE($C$8,-1),Índices!$A:$H,8,0))),"") ->  | H151: vazia
B152: =IFERROR(IF(EDATE($C$8,131)>$C$9,"",IF(EDATE($C$8,131)>DATE(2099,12,1),"",EDATE($C$8,131))),"") ->  | C152: =IFERROR(IF(B152="","",VLOOKUP(B152,Índices!$A:$H,5,0)),"") ->  | D152: =IFERROR(IF(B152="","",VLOOKUP(B152,Índices!$A:$H,6,0)),"") ->  | E152: =IFERROR(IF(B152="","",$C$10*VLOOKUP(B152,Índices!$A:$H,7,0)/VLOOKUP(EDATE($C$8,-1),Índices!$A:$H,7,0)),"") ->  | F152: =IFERROR(IF(B152="","",E152*(VLOOKUP(B152,Índices!$A:$H,8,0)-VLOOKUP(EDATE($C$8,-1),Índices!$A:$H,8,0))),"") ->  | H152: vazia
B153: =IFERROR(IF(EDATE($C$8,132)>$C$9,"",IF(EDATE($C$8,132)>DATE(2099,12,1),"",EDATE($C$8,132))),"") ->  | C153: =IFERROR(IF(B153="","",VLOOKUP(B153,Índices!$A:$H,5,0)),"") ->  | D153: =IFERROR(IF(B153="","",VLOOKUP(B153,Índices!$A:$H,6,0)),"") ->  | E153: =IFERROR(IF(B153="","",$C$10*VLOOKUP(B153,Índices!$A:$H,7,0)/VLOOKUP(EDATE($C$8,-1),Índices!$A:$H,7,0)),"") ->  | F153: =IFERROR(IF(B153="","",E153*(VLOOKUP(B153,Índices!$A:$H,8,0)-VLOOKUP(EDATE($C$8,-1),Índices!$A:$H,8,0))),"") ->  | H153: vazia
B154: =IFERROR(IF(EDATE($C$8,133)>$C$9,"",IF(EDATE($C$8,133)>DATE(2099,12,1),"",EDATE($C$8,133))),"") ->  | C154: =IFERROR(IF(B154="","",VLOOKUP(B154,Índices!$A:$H,5,0)),"") ->  | D154: =IFERROR(IF(B154="","",VLOOKUP(B154,Índices!$A:$H,6,0)),"") ->  | E154: =IFERROR(IF(B154="","",$C$10*VLOOKUP(B154,Índices!$A:$H,7,0)/VLOOKUP(EDATE($C$8,-1),Índices!$A:$H,7,0)),"") ->  | F154: =IFERROR(IF(B154="","",E154*(VLOOKUP(B154,Índices!$A:$H,8,0)-VLOOKUP(EDATE($C$8,-1),Índices!$A:$H,8,0))),"") ->  | H154: vazia
B155: =IFERROR(IF(EDATE($C$8,134)>$C$9,"",IF(EDATE($C$8,134)>DATE(2099,12,1),"",EDATE($C$8,134))),"") ->  | C155: =IFERROR(IF(B155="","",VLOOKUP(B155,Índices!$A:$H,5,0)),"") ->  | D155: =IFERROR(IF(B155="","",VLOOKUP(B155,Índices!$A:$H,6,0)),"") ->  | E155: =IFERROR(IF(B155="","",$C$10*VLOOKUP(B155,Índices!$A:$H,7,0)/VLOOKUP(EDATE($C$8,-1),Índices!$A:$H,7,0)),"") ->  | F155: =IFERROR(IF(B155="","",E155*(VLOOKUP(B155,Índices!$A:$H,8,0)-VLOOKUP(EDATE($C$8,-1),Índices!$A:$H,8,0))),"") ->  | H155: vazia
B156: =IFERROR(IF(EDATE($C$8,135)>$C$9,"",IF(EDATE($C$8,135)>DATE(2099,12,1),"",EDATE($C$8,135))),"") ->  | C156: =IFERROR(IF(B156="","",VLOOKUP(B156,Índices!$A:$H,5,0)),"") ->  | D156: =IFERROR(IF(B156="","",VLOOKUP(B156,Índices!$A:$H,6,0)),"") ->  | E156: =IFERROR(IF(B156="","",$C$10*VLOOKUP(B156,Índices!$A:$H,7,0)/VLOOKUP(EDATE($C$8,-1),Índices!$A:$H,7,0)),"") ->  | F156: =IFERROR(IF(B156="","",E156*(VLOOKUP(B156,Índices!$A:$H,8,0)-VLOOKUP(EDATE($C$8,-1),Índices!$A:$H,8,0))),"") ->  | H156: vazia
B157: =IFERROR(IF(EDATE($C$8,136)>$C$9,"",IF(EDATE($C$8,136)>DATE(2099,12,1),"",EDATE($C$8,136))),"") ->  | C157: =IFERROR(IF(B157="","",VLOOKUP(B157,Índices!$A:$H,5,0)),"") ->  | D157: =IFERROR(IF(B157="","",VLOOKUP(B157,Índices!$A:$H,6,0)),"") ->  | E157: =IFERROR(IF(B157="","",$C$10*VLOOKUP(B157,Índices!$A:$H,7,0)/VLOOKUP(EDATE($C$8,-1),Índices!$A:$H,7,0)),"") ->  | F157: =IFERROR(IF(B157="","",E157*(VLOOKUP(B157,Índices!$A:$H,8,0)-VLOOKUP(EDATE($C$8,-1),Índices!$A:$H,8,0))),"") ->  | H157: vazia
B158: =IFERROR(IF(EDATE($C$8,137)>$C$9,"",IF(EDATE($C$8,137)>DATE(2099,12,1),"",EDATE($C$8,137))),"") ->  | C158: =IFERROR(IF(B158="","",VLOOKUP(B158,Índices!$A:$H,5,0)),"") ->  | D158: =IFERROR(IF(B158="","",VLOOKUP(B158,Índices!$A:$H,6,0)),"") ->  | E158: =IFERROR(IF(B158="","",$C$10*VLOOKUP(B158,Índices!$A:$H,7,0)/VLOOKUP(EDATE($C$8,-1),Índices!$A:$H,7,0)),"") ->  | F158: =IFERROR(IF(B158="","",E158*(VLOOKUP(B158,Índices!$A:$H,8,0)-VLOOKUP(EDATE($C$8,-1),Índices!$A:$H,8,0))),"") ->  | H158: vazia
B159: =IFERROR(IF(EDATE($C$8,138)>$C$9,"",IF(EDATE($C$8,138)>DATE(2099,12,1),"",EDATE($C$8,138))),"") ->  | C159: =IFERROR(IF(B159="","",VLOOKUP(B159,Índices!$A:$H,5,0)),"") ->  | D159: =IFERROR(IF(B159="","",VLOOKUP(B159,Índices!$A:$H,6,0)),"") ->  | E159: =IFERROR(IF(B159="","",$C$10*VLOOKUP(B159,Índices!$A:$H,7,0)/VLOOKUP(EDATE($C$8,-1),Índices!$A:$H,7,0)),"") ->  | F159: =IFERROR(IF(B159="","",E159*(VLOOKUP(B159,Índices!$A:$H,8,0)-VLOOKUP(EDATE($C$8,-1),Índices!$A:$H,8,0))),"") ->  | H159: vazia
B160: =IFERROR(IF(EDATE($C$8,139)>$C$9,"",IF(EDATE($C$8,139)>DATE(2099,12,1),"",EDATE($C$8,139))),"") ->  | C160: =IFERROR(IF(B160="","",VLOOKUP(B160,Índices!$A:$H,5,0)),"") ->  | D160: =IFERROR(IF(B160="","",VLOOKUP(B160,Índices!$A:$H,6,0)),"") ->  | E160: =IFERROR(IF(B160="","",$C$10*VLOOKUP(B160,Índices!$A:$H,7,0)/VLOOKUP(EDATE($C$8,-1),Índices!$A:$H,7,0)),"") ->  | F160: =IFERROR(IF(B160="","",E160*(VLOOKUP(B160,Índices!$A:$H,8,0)-VLOOKUP(EDATE($C$8,-1),Índices!$A:$H,8,0))),"") ->  | H160: vazia
B161: =IFERROR(IF(EDATE($C$8,140)>$C$9,"",IF(EDATE($C$8,140)>DATE(2099,12,1),"",EDATE($C$8,140))),"") ->  | C161: =IFERROR(IF(B161="","",VLOOKUP(B161,Índices!$A:$H,5,0)),"") ->  | D161: =IFERROR(IF(B161="","",VLOOKUP(B161,Índices!$A:$H,6,0)),"") ->  | E161: =IFERROR(IF(B161="","",$C$10*VLOOKUP(B161,Índices!$A:$H,7,0)/VLOOKUP(EDATE($C$8,-1),Índices!$A:$H,7,0)),"") ->  | F161: =IFERROR(IF(B161="","",E161*(VLOOKUP(B161,Índices!$A:$H,8,0)-VLOOKUP(EDATE($C$8,-1),Índices!$A:$H,8,0))),"") ->  | H161: vazia
B162: =IFERROR(IF(EDATE($C$8,141)>$C$9,"",IF(EDATE($C$8,141)>DATE(2099,12,1),"",EDATE($C$8,141))),"") ->  | C162: =IFERROR(IF(B162="","",VLOOKUP(B162,Índices!$A:$H,5,0)),"") ->  | D162: =IFERROR(IF(B162="","",VLOOKUP(B162,Índices!$A:$H,6,0)),"") ->  | E162: =IFERROR(IF(B162="","",$C$10*VLOOKUP(B162,Índices!$A:$H,7,0)/VLOOKUP(EDATE($C$8,-1),Índices!$A:$H,7,0)),"") ->  | F162: =IFERROR(IF(B162="","",E162*(VLOOKUP(B162,Índices!$A:$H,8,0)-VLOOKUP(EDATE($C$8,-1),Índices!$A:$H,8,0))),"") ->  | H162: vazia
B163: =IFERROR(IF(EDATE($C$8,142)>$C$9,"",IF(EDATE($C$8,142)>DATE(2099,12,1),"",EDATE($C$8,142))),"") ->  | C163: =IFERROR(IF(B163="","",VLOOKUP(B163,Índices!$A:$H,5,0)),"") ->  | D163: =IFERROR(IF(B163="","",VLOOKUP(B163,Índices!$A:$H,6,0)),"") ->  | E163: =IFERROR(IF(B163="","",$C$10*VLOOKUP(B163,Índices!$A:$H,7,0)/VLOOKUP(EDATE($C$8,-1),Índices!$A:$H,7,0)),"") ->  | F163: =IFERROR(IF(B163="","",E163*(VLOOKUP(B163,Índices!$A:$H,8,0)-VLOOKUP(EDATE($C$8,-1),Índices!$A:$H,8,0))),"") ->  | H163: vazia
B164: =IFERROR(IF(EDATE($C$8,143)>$C$9,"",IF(EDATE($C$8,143)>DATE(2099,12,1),"",EDATE($C$8,143))),"") ->  | C164: =IFERROR(IF(B164="","",VLOOKUP(B164,Índices!$A:$H,5,0)),"") ->  | D164: =IFERROR(IF(B164="","",VLOOKUP(B164,Índices!$A:$H,6,0)),"") ->  | E164: =IFERROR(IF(B164="","",$C$10*VLOOKUP(B164,Índices!$A:$H,7,0)/VLOOKUP(EDATE($C$8,-1),Índices!$A:$H,7,0)),"") ->  | F164: =IFERROR(IF(B164="","",E164*(VLOOKUP(B164,Índices!$A:$H,8,0)-VLOOKUP(EDATE($C$8,-1),Índices!$A:$H,8,0))),"") ->  | H164: vazia
B165: =IFERROR(IF(EDATE($C$8,144)>$C$9,"",IF(EDATE($C$8,144)>DATE(2099,12,1),"",EDATE($C$8,144))),"") ->  | C165: =IFERROR(IF(B165="","",VLOOKUP(B165,Índices!$A:$H,5,0)),"") ->  | D165: =IFERROR(IF(B165="","",VLOOKUP(B165,Índices!$A:$H,6,0)),"") ->  | E165: =IFERROR(IF(B165="","",$C$10*VLOOKUP(B165,Índices!$A:$H,7,0)/VLOOKUP(EDATE($C$8,-1),Índices!$A:$H,7,0)),"") ->  | F165: =IFERROR(IF(B165="","",E165*(VLOOKUP(B165,Índices!$A:$H,8,0)-VLOOKUP(EDATE($C$8,-1),Índices!$A:$H,8,0))),"") ->  | H165: vazia
B166: =IFERROR(IF(EDATE($C$8,145)>$C$9,"",IF(EDATE($C$8,145)>DATE(2099,12,1),"",EDATE($C$8,145))),"") ->  | C166: =IFERROR(IF(B166="","",VLOOKUP(B166,Índices!$A:$H,5,0)),"") ->  | D166: =IFERROR(IF(B166="","",VLOOKUP(B166,Índices!$A:$H,6,0)),"") ->  | E166: =IFERROR(IF(B166="","",$C$10*VLOOKUP(B166,Índices!$A:$H,7,0)/VLOOKUP(EDATE($C$8,-1),Índices!$A:$H,7,0)),"") ->  | F166: =IFERROR(IF(B166="","",E166*(VLOOKUP(B166,Índices!$A:$H,8,0)-VLOOKUP(EDATE($C$8,-1),Índices!$A:$H,8,0))),"") ->  | H166: vazia
B167: =IFERROR(IF(EDATE($C$8,146)>$C$9,"",IF(EDATE($C$8,146)>DATE(2099,12,1),"",EDATE($C$8,146))),"") ->  | C167: =IFERROR(IF(B167="","",VLOOKUP(B167,Índices!$A:$H,5,0)),"") ->  | D167: =IFERROR(IF(B167="","",VLOOKUP(B167,Índices!$A:$H,6,0)),"") ->  | E167: =IFERROR(IF(B167="","",$C$10*VLOOKUP(B167,Índices!$A:$H,7,0)/VLOOKUP(EDATE($C$8,-1),Índices!$A:$H,7,0)),"") ->  | F167: =IFERROR(IF(B167="","",E167*(VLOOKUP(B167,Índices!$A:$H,8,0)-VLOOKUP(EDATE($C$8,-1),Índices!$A:$H,8,0))),"") ->  | H167: vazia
B168: =IFERROR(IF(EDATE($C$8,147)>$C$9,"",IF(EDATE($C$8,147)>DATE(2099,12,1),"",EDATE($C$8,147))),"") ->  | C168: =IFERROR(IF(B168="","",VLOOKUP(B168,Índices!$A:$H,5,0)),"") ->  | D168: =IFERROR(IF(B168="","",VLOOKUP(B168,Índices!$A:$H,6,0)),"") ->  | E168: =IFERROR(IF(B168="","",$C$10*VLOOKUP(B168,Índices!$A:$H,7,0)/VLOOKUP(EDATE($C$8,-1),Índices!$A:$H,7,0)),"") ->  | F168: =IFERROR(IF(B168="","",E168*(VLOOKUP(B168,Índices!$A:$H,8,0)-VLOOKUP(EDATE($C$8,-1),Índices!$A:$H,8,0))),"") ->  | H168: vazia
B169: =IFERROR(IF(EDATE($C$8,148)>$C$9,"",IF(EDATE($C$8,148)>DATE(2099,12,1),"",EDATE($C$8,148))),"") ->  | C169: =IFERROR(IF(B169="","",VLOOKUP(B169,Índices!$A:$H,5,0)),"") ->  | D169: =IFERROR(IF(B169="","",VLOOKUP(B169,Índices!$A:$H,6,0)),"") ->  | E169: =IFERROR(IF(B169="","",$C$10*VLOOKUP(B169,Índices!$A:$H,7,0)/VLOOKUP(EDATE($C$8,-1),Índices!$A:$H,7,0)),"") ->  | F169: =IFERROR(IF(B169="","",E169*(VLOOKUP(B169,Índices!$A:$H,8,0)-VLOOKUP(EDATE($C$8,-1),Índices!$A:$H,8,0))),"") ->  | H169: vazia
B170: =IFERROR(IF(EDATE($C$8,149)>$C$9,"",IF(EDATE($C$8,149)>DATE(2099,12,1),"",EDATE($C$8,149))),"") ->  | C170: =IFERROR(IF(B170="","",VLOOKUP(B170,Índices!$A:$H,5,0)),"") ->  | D170: =IFERROR(IF(B170="","",VLOOKUP(B170,Índices!$A:$H,6,0)),"") ->  | E170: =IFERROR(IF(B170="","",$C$10*VLOOKUP(B170,Índices!$A:$H,7,0)/VLOOKUP(EDATE($C$8,-1),Índices!$A:$H,7,0)),"") ->  | F170: =IFERROR(IF(B170="","",E170*(VLOOKUP(B170,Índices!$A:$H,8,0)-VLOOKUP(EDATE($C$8,-1),Índices!$A:$H,8,0))),"") ->  | H170: vazia
B171: =IFERROR(IF(EDATE($C$8,150)>$C$9,"",IF(EDATE($C$8,150)>DATE(2099,12,1),"",EDATE($C$8,150))),"") ->  | C171: =IFERROR(IF(B171="","",VLOOKUP(B171,Índices!$A:$H,5,0)),"") ->  | D171: =IFERROR(IF(B171="","",VLOOKUP(B171,Índices!$A:$H,6,0)),"") ->  | E171: =IFERROR(IF(B171="","",$C$10*VLOOKUP(B171,Índices!$A:$H,7,0)/VLOOKUP(EDATE($C$8,-1),Índices!$A:$H,7,0)),"") ->  | F171: =IFERROR(IF(B171="","",E171*(VLOOKUP(B171,Índices!$A:$H,8,0)-VLOOKUP(EDATE($C$8,-1),Índices!$A:$H,8,0))),"") ->  | H171: vazia
B172: =IFERROR(IF(EDATE($C$8,151)>$C$9,"",IF(EDATE($C$8,151)>DATE(2099,12,1),"",EDATE($C$8,151))),"") ->  | C172: =IFERROR(IF(B172="","",VLOOKUP(B172,Índices!$A:$H,5,0)),"") ->  | D172: =IFERROR(IF(B172="","",VLOOKUP(B172,Índices!$A:$H,6,0)),"") ->  | E172: =IFERROR(IF(B172="","",$C$10*VLOOKUP(B172,Índices!$A:$H,7,0)/VLOOKUP(EDATE($C$8,-1),Índices!$A:$H,7,0)),"") ->  | F172: =IFERROR(IF(B172="","",E172*(VLOOKUP(B172,Índices!$A:$H,8,0)-VLOOKUP(EDATE($C$8,-1),Índices!$A:$H,8,0))),"") ->  | H172: vazia
B173: =IFERROR(IF(EDATE($C$8,152)>$C$9,"",IF(EDATE($C$8,152)>DATE(2099,12,1),"",EDATE($C$8,152))),"") ->  | C173: =IFERROR(IF(B173="","",VLOOKUP(B173,Índices!$A:$H,5,0)),"") ->  | D173: =IFERROR(IF(B173="","",VLOOKUP(B173,Índices!$A:$H,6,0)),"") ->  | E173: =IFERROR(IF(B173="","",$C$10*VLOOKUP(B173,Índices!$A:$H,7,0)/VLOOKUP(EDATE($C$8,-1),Índices!$A:$H,7,0)),"") ->  | F173: =IFERROR(IF(B173="","",E173*(VLOOKUP(B173,Índices!$A:$H,8,0)-VLOOKUP(EDATE($C$8,-1),Índices!$A:$H,8,0))),"") ->  | H173: vazia
B174: =IFERROR(IF(EDATE($C$8,153)>$C$9,"",IF(EDATE($C$8,153)>DATE(2099,12,1),"",EDATE($C$8,153))),"") ->  | C174: =IFERROR(IF(B174="","",VLOOKUP(B174,Índices!$A:$H,5,0)),"") ->  | D174: =IFERROR(IF(B174="","",VLOOKUP(B174,Índices!$A:$H,6,0)),"") ->  | E174: =IFERROR(IF(B174="","",$C$10*VLOOKUP(B174,Índices!$A:$H,7,0)/VLOOKUP(EDATE($C$8,-1),Índices!$A:$H,7,0)),"") ->  | F174: =IFERROR(IF(B174="","",E174*(VLOOKUP(B174,Índices!$A:$H,8,0)-VLOOKUP(EDATE($C$8,-1),Índices!$A:$H,8,0))),"") ->  | H174: vazia
B175: =IFERROR(IF(EDATE($C$8,154)>$C$9,"",IF(EDATE($C$8,154)>DATE(2099,12,1),"",EDATE($C$8,154))),"") ->  | C175: =IFERROR(IF(B175="","",VLOOKUP(B175,Índices!$A:$H,5,0)),"") ->  | D175: =IFERROR(IF(B175="","",VLOOKUP(B175,Índices!$A:$H,6,0)),"") ->  | E175: =IFERROR(IF(B175="","",$C$10*VLOOKUP(B175,Índices!$A:$H,7,0)/VLOOKUP(EDATE($C$8,-1),Índices!$A:$H,7,0)),"") ->  | F175: =IFERROR(IF(B175="","",E175*(VLOOKUP(B175,Índices!$A:$H,8,0)-VLOOKUP(EDATE($C$8,-1),Índices!$A:$H,8,0))),"") ->  | H175: vazia
B176: =IFERROR(IF(EDATE($C$8,155)>$C$9,"",IF(EDATE($C$8,155)>DATE(2099,12,1),"",EDATE($C$8,155))),"") ->  | C176: =IFERROR(IF(B176="","",VLOOKUP(B176,Índices!$A:$H,5,0)),"") ->  | D176: =IFERROR(IF(B176="","",VLOOKUP(B176,Índices!$A:$H,6,0)),"") ->  | E176: =IFERROR(IF(B176="","",$C$10*VLOOKUP(B176,Índices!$A:$H,7,0)/VLOOKUP(EDATE($C$8,-1),Índices!$A:$H,7,0)),"") ->  | F176: =IFERROR(IF(B176="","",E176*(VLOOKUP(B176,Índices!$A:$H,8,0)-VLOOKUP(EDATE($C$8,-1),Índices!$A:$H,8,0))),"") ->  | H176: vazia
B177: =IFERROR(IF(EDATE($C$8,156)>$C$9,"",IF(EDATE($C$8,156)>DATE(2099,12,1),"",EDATE($C$8,156))),"") ->  | C177: =IFERROR(IF(B177="","",VLOOKUP(B177,Índices!$A:$H,5,0)),"") ->  | D177: =IFERROR(IF(B177="","",VLOOKUP(B177,Índices!$A:$H,6,0)),"") ->  | E177: =IFERROR(IF(B177="","",$C$10*VLOOKUP(B177,Índices!$A:$H,7,0)/VLOOKUP(EDATE($C$8,-1),Índices!$A:$H,7,0)),"") ->  | F177: =IFERROR(IF(B177="","",E177*(VLOOKUP(B177,Índices!$A:$H,8,0)-VLOOKUP(EDATE($C$8,-1),Índices!$A:$H,8,0))),"") ->  | H177: vazia
B178: =IFERROR(IF(EDATE($C$8,157)>$C$9,"",IF(EDATE($C$8,157)>DATE(2099,12,1),"",EDATE($C$8,157))),"") ->  | C178: =IFERROR(IF(B178="","",VLOOKUP(B178,Índices!$A:$H,5,0)),"") ->  | D178: =IFERROR(IF(B178="","",VLOOKUP(B178,Índices!$A:$H,6,0)),"") ->  | E178: =IFERROR(IF(B178="","",$C$10*VLOOKUP(B178,Índices!$A:$H,7,0)/VLOOKUP(EDATE($C$8,-1),Índices!$A:$H,7,0)),"") ->  | F178: =IFERROR(IF(B178="","",E178*(VLOOKUP(B178,Índices!$A:$H,8,0)-VLOOKUP(EDATE($C$8,-1),Índices!$A:$H,8,0))),"") ->  | H178: vazia
B179: =IFERROR(IF(EDATE($C$8,158)>$C$9,"",IF(EDATE($C$8,158)>DATE(2099,12,1),"",EDATE($C$8,158))),"") ->  | C179: =IFERROR(IF(B179="","",VLOOKUP(B179,Índices!$A:$H,5,0)),"") ->  | D179: =IFERROR(IF(B179="","",VLOOKUP(B179,Índices!$A:$H,6,0)),"") ->  | E179: =IFERROR(IF(B179="","",$C$10*VLOOKUP(B179,Índices!$A:$H,7,0)/VLOOKUP(EDATE($C$8,-1),Índices!$A:$H,7,0)),"") ->  | F179: =IFERROR(IF(B179="","",E179*(VLOOKUP(B179,Índices!$A:$H,8,0)-VLOOKUP(EDATE($C$8,-1),Índices!$A:$H,8,0))),"") ->  | H179: vazia
B180: =IFERROR(IF(EDATE($C$8,159)>$C$9,"",IF(EDATE($C$8,159)>DATE(2099,12,1),"",EDATE($C$8,159))),"") ->  | C180: =IFERROR(IF(B180="","",VLOOKUP(B180,Índices!$A:$H,5,0)),"") ->  | D180: =IFERROR(IF(B180="","",VLOOKUP(B180,Índices!$A:$H,6,0)),"") ->  | E180: =IFERROR(IF(B180="","",$C$10*VLOOKUP(B180,Índices!$A:$H,7,0)/VLOOKUP(EDATE($C$8,-1),Índices!$A:$H,7,0)),"") ->  | F180: =IFERROR(IF(B180="","",E180*(VLOOKUP(B180,Índices!$A:$H,8,0)-VLOOKUP(EDATE($C$8,-1),Índices!$A:$H,8,0))),"") ->  | H180: vazia
B181: =IFERROR(IF(EDATE($C$8,160)>$C$9,"",IF(EDATE($C$8,160)>DATE(2099,12,1),"",EDATE($C$8,160))),"") ->  | C181: =IFERROR(IF(B181="","",VLOOKUP(B181,Índices!$A:$H,5,0)),"") ->  | D181: =IFERROR(IF(B181="","",VLOOKUP(B181,Índices!$A:$H,6,0)),"") ->  | E181: =IFERROR(IF(B181="","",$C$10*VLOOKUP(B181,Índices!$A:$H,7,0)/VLOOKUP(EDATE($C$8,-1),Índices!$A:$H,7,0)),"") ->  | F181: =IFERROR(IF(B181="","",E181*(VLOOKUP(B181,Índices!$A:$H,8,0)-VLOOKUP(EDATE($C$8,-1),Índices!$A:$H,8,0))),"") ->  | H181: vazia
B182: =IFERROR(IF(EDATE($C$8,161)>$C$9,"",IF(EDATE($C$8,161)>DATE(2099,12,1),"",EDATE($C$8,161))),"") ->  | C182: =IFERROR(IF(B182="","",VLOOKUP(B182,Índices!$A:$H,5,0)),"") ->  | D182: =IFERROR(IF(B182="","",VLOOKUP(B182,Índices!$A:$H,6,0)),"") ->  | E182: =IFERROR(IF(B182="","",$C$10*VLOOKUP(B182,Índices!$A:$H,7,0)/VLOOKUP(EDATE($C$8,-1),Índices!$A:$H,7,0)),"") ->  | F182: =IFERROR(IF(B182="","",E182*(VLOOKUP(B182,Índices!$A:$H,8,0)-VLOOKUP(EDATE($C$8,-1),Índices!$A:$H,8,0))),"") ->  | H182: vazia
B183: =IFERROR(IF(EDATE($C$8,162)>$C$9,"",IF(EDATE($C$8,162)>DATE(2099,12,1),"",EDATE($C$8,162))),"") ->  | C183: =IFERROR(IF(B183="","",VLOOKUP(B183,Índices!$A:$H,5,0)),"") ->  | D183: =IFERROR(IF(B183="","",VLOOKUP(B183,Índices!$A:$H,6,0)),"") ->  | E183: =IFERROR(IF(B183="","",$C$10*VLOOKUP(B183,Índices!$A:$H,7,0)/VLOOKUP(EDATE($C$8,-1),Índices!$A:$H,7,0)),"") ->  | F183: =IFERROR(IF(B183="","",E183*(VLOOKUP(B183,Índices!$A:$H,8,0)-VLOOKUP(EDATE($C$8,-1),Índices!$A:$H,8,0))),"") ->  | H183: vazia
B184: =IFERROR(IF(EDATE($C$8,163)>$C$9,"",IF(EDATE($C$8,163)>DATE(2099,12,1),"",EDATE($C$8,163))),"") ->  | C184: =IFERROR(IF(B184="","",VLOOKUP(B184,Índices!$A:$H,5,0)),"") ->  | D184: =IFERROR(IF(B184="","",VLOOKUP(B184,Índices!$A:$H,6,0)),"") ->  | E184: =IFERROR(IF(B184="","",$C$10*VLOOKUP(B184,Índices!$A:$H,7,0)/VLOOKUP(EDATE($C$8,-1),Índices!$A:$H,7,0)),"") ->  | F184: =IFERROR(IF(B184="","",E184*(VLOOKUP(B184,Índices!$A:$H,8,0)-VLOOKUP(EDATE($C$8,-1),Índices!$A:$H,8,0))),"") ->  | H184: vazia
B185: =IFERROR(IF(EDATE($C$8,164)>$C$9,"",IF(EDATE($C$8,164)>DATE(2099,12,1),"",EDATE($C$8,164))),"") ->  | C185: =IFERROR(IF(B185="","",VLOOKUP(B185,Índices!$A:$H,5,0)),"") ->  | D185: =IFERROR(IF(B185="","",VLOOKUP(B185,Índices!$A:$H,6,0)),"") ->  | E185: =IFERROR(IF(B185="","",$C$10*VLOOKUP(B185,Índices!$A:$H,7,0)/VLOOKUP(EDATE($C$8,-1),Índices!$A:$H,7,0)),"") ->  | F185: =IFERROR(IF(B185="","",E185*(VLOOKUP(B185,Índices!$A:$H,8,0)-VLOOKUP(EDATE($C$8,-1),Índices!$A:$H,8,0))),"") ->  | H185: vazia
B186: =IFERROR(IF(EDATE($C$8,165)>$C$9,"",IF(EDATE($C$8,165)>DATE(2099,12,1),"",EDATE($C$8,165))),"") ->  | C186: =IFERROR(IF(B186="","",VLOOKUP(B186,Índices!$A:$H,5,0)),"") ->  | D186: =IFERROR(IF(B186="","",VLOOKUP(B186,Índices!$A:$H,6,0)),"") ->  | E186: =IFERROR(IF(B186="","",$C$10*VLOOKUP(B186,Índices!$A:$H,7,0)/VLOOKUP(EDATE($C$8,-1),Índices!$A:$H,7,0)),"") ->  | F186: =IFERROR(IF(B186="","",E186*(VLOOKUP(B186,Índices!$A:$H,8,0)-VLOOKUP(EDATE($C$8,-1),Índices!$A:$H,8,0))),"") ->  | H186: vazia
B187: =IFERROR(IF(EDATE($C$8,166)>$C$9,"",IF(EDATE($C$8,166)>DATE(2099,12,1),"",EDATE($C$8,166))),"") ->  | C187: =IFERROR(IF(B187="","",VLOOKUP(B187,Índices!$A:$H,5,0)),"") ->  | D187: =IFERROR(IF(B187="","",VLOOKUP(B187,Índices!$A:$H,6,0)),"") ->  | E187: =IFERROR(IF(B187="","",$C$10*VLOOKUP(B187,Índices!$A:$H,7,0)/VLOOKUP(EDATE($C$8,-1),Índices!$A:$H,7,0)),"") ->  | F187: =IFERROR(IF(B187="","",E187*(VLOOKUP(B187,Índices!$A:$H,8,0)-VLOOKUP(EDATE($C$8,-1),Índices!$A:$H,8,0))),"") ->  | H187: vazia
B188: =IFERROR(IF(EDATE($C$8,167)>$C$9,"",IF(EDATE($C$8,167)>DATE(2099,12,1),"",EDATE($C$8,167))),"") ->  | C188: =IFERROR(IF(B188="","",VLOOKUP(B188,Índices!$A:$H,5,0)),"") ->  | D188: =IFERROR(IF(B188="","",VLOOKUP(B188,Índices!$A:$H,6,0)),"") ->  | E188: =IFERROR(IF(B188="","",$C$10*VLOOKUP(B188,Índices!$A:$H,7,0)/VLOOKUP(EDATE($C$8,-1),Índices!$A:$H,7,0)),"") ->  | F188: =IFERROR(IF(B188="","",E188*(VLOOKUP(B188,Índices!$A:$H,8,0)-VLOOKUP(EDATE($C$8,-1),Índices!$A:$H,8,0))),"") ->  | H188: vazia
B189: =IFERROR(IF(EDATE($C$8,168)>$C$9,"",IF(EDATE($C$8,168)>DATE(2099,12,1),"",EDATE($C$8,168))),"") ->  | C189: =IFERROR(IF(B189="","",VLOOKUP(B189,Índices!$A:$H,5,0)),"") ->  | D189: =IFERROR(IF(B189="","",VLOOKUP(B189,Índices!$A:$H,6,0)),"") ->  | E189: =IFERROR(IF(B189="","",$C$10*VLOOKUP(B189,Índices!$A:$H,7,0)/VLOOKUP(EDATE($C$8,-1),Índices!$A:$H,7,0)),"") ->  | F189: =IFERROR(IF(B189="","",E189*(VLOOKUP(B189,Índices!$A:$H,8,0)-VLOOKUP(EDATE($C$8,-1),Índices!$A:$H,8,0))),"") ->  | H189: vazia
B190: =IFERROR(IF(EDATE($C$8,169)>$C$9,"",IF(EDATE($C$8,169)>DATE(2099,12,1),"",EDATE($C$8,169))),"") ->  | C190: =IFERROR(IF(B190="","",VLOOKUP(B190,Índices!$A:$H,5,0)),"") ->  | D190: =IFERROR(IF(B190="","",VLOOKUP(B190,Índices!$A:$H,6,0)),"") ->  | E190: =IFERROR(IF(B190="","",$C$10*VLOOKUP(B190,Índices!$A:$H,7,0)/VLOOKUP(EDATE($C$8,-1),Índices!$A:$H,7,0)),"") ->  | F190: =IFERROR(IF(B190="","",E190*(VLOOKUP(B190,Índices!$A:$H,8,0)-VLOOKUP(EDATE($C$8,-1),Índices!$A:$H,8,0))),"") ->  | H190: vazia
B191: =IFERROR(IF(EDATE($C$8,170)>$C$9,"",IF(EDATE($C$8,170)>DATE(2099,12,1),"",EDATE($C$8,170))),"") ->  | C191: =IFERROR(IF(B191="","",VLOOKUP(B191,Índices!$A:$H,5,0)),"") ->  | D191: =IFERROR(IF(B191="","",VLOOKUP(B191,Índices!$A:$H,6,0)),"") ->  | E191: =IFERROR(IF(B191="","",$C$10*VLOOKUP(B191,Índices!$A:$H,7,0)/VLOOKUP(EDATE($C$8,-1),Índices!$A:$H,7,0)),"") ->  | F191: =IFERROR(IF(B191="","",E191*(VLOOKUP(B191,Índices!$A:$H,8,0)-VLOOKUP(EDATE($C$8,-1),Índices!$A:$H,8,0))),"") ->  | H191: vazia
B192: =IFERROR(IF(EDATE($C$8,171)>$C$9,"",IF(EDATE($C$8,171)>DATE(2099,12,1),"",EDATE($C$8,171))),"") ->  | C192: =IFERROR(IF(B192="","",VLOOKUP(B192,Índices!$A:$H,5,0)),"") ->  | D192: =IFERROR(IF(B192="","",VLOOKUP(B192,Índices!$A:$H,6,0)),"") ->  | E192: =IFERROR(IF(B192="","",$C$10*VLOOKUP(B192,Índices!$A:$H,7,0)/VLOOKUP(EDATE($C$8,-1),Índices!$A:$H,7,0)),"") ->  | F192: =IFERROR(IF(B192="","",E192*(VLOOKUP(B192,Índices!$A:$H,8,0)-VLOOKUP(EDATE($C$8,-1),Índices!$A:$H,8,0))),"") ->  | H192: vazia
B193: =IFERROR(IF(EDATE($C$8,172)>$C$9,"",IF(EDATE($C$8,172)>DATE(2099,12,1),"",EDATE($C$8,172))),"") ->  | C193: =IFERROR(IF(B193="","",VLOOKUP(B193,Índices!$A:$H,5,0)),"") ->  | D193: =IFERROR(IF(B193="","",VLOOKUP(B193,Índices!$A:$H,6,0)),"") ->  | E193: =IFERROR(IF(B193="","",$C$10*VLOOKUP(B193,Índices!$A:$H,7,0)/VLOOKUP(EDATE($C$8,-1),Índices!$A:$H,7,0)),"") ->  | F193: =IFERROR(IF(B193="","",E193*(VLOOKUP(B193,Índices!$A:$H,8,0)-VLOOKUP(EDATE($C$8,-1),Índices!$A:$H,8,0))),"") ->  | H193: vazia
B194: =IFERROR(IF(EDATE($C$8,173)>$C$9,"",IF(EDATE($C$8,173)>DATE(2099,12,1),"",EDATE($C$8,173))),"") ->  | C194: =IFERROR(IF(B194="","",VLOOKUP(B194,Índices!$A:$H,5,0)),"") ->  | D194: =IFERROR(IF(B194="","",VLOOKUP(B194,Índices!$A:$H,6,0)),"") ->  | E194: =IFERROR(IF(B194="","",$C$10*VLOOKUP(B194,Índices!$A:$H,7,0)/VLOOKUP(EDATE($C$8,-1),Índices!$A:$H,7,0)),"") ->  | F194: =IFERROR(IF(B194="","",E194*(VLOOKUP(B194,Índices!$A:$H,8,0)-VLOOKUP(EDATE($C$8,-1),Índices!$A:$H,8,0))),"") ->  | H194: vazia
B195: =IFERROR(IF(EDATE($C$8,174)>$C$9,"",IF(EDATE($C$8,174)>DATE(2099,12,1),"",EDATE($C$8,174))),"") ->  | C195: =IFERROR(IF(B195="","",VLOOKUP(B195,Índices!$A:$H,5,0)),"") ->  | D195: =IFERROR(IF(B195="","",VLOOKUP(B195,Índices!$A:$H,6,0)),"") ->  | E195: =IFERROR(IF(B195="","",$C$10*VLOOKUP(B195,Índices!$A:$H,7,0)/VLOOKUP(EDATE($C$8,-1),Índices!$A:$H,7,0)),"") ->  | F195: =IFERROR(IF(B195="","",E195*(VLOOKUP(B195,Índices!$A:$H,8,0)-VLOOKUP(EDATE($C$8,-1),Índices!$A:$H,8,0))),"") ->  | H195: vazia
B196: =IFERROR(IF(EDATE($C$8,175)>$C$9,"",IF(EDATE($C$8,175)>DATE(2099,12,1),"",EDATE($C$8,175))),"") ->  | C196: =IFERROR(IF(B196="","",VLOOKUP(B196,Índices!$A:$H,5,0)),"") ->  | D196: =IFERROR(IF(B196="","",VLOOKUP(B196,Índices!$A:$H,6,0)),"") ->  | E196: =IFERROR(IF(B196="","",$C$10*VLOOKUP(B196,Índices!$A:$H,7,0)/VLOOKUP(EDATE($C$8,-1),Índices!$A:$H,7,0)),"") ->  | F196: =IFERROR(IF(B196="","",E196*(VLOOKUP(B196,Índices!$A:$H,8,0)-VLOOKUP(EDATE($C$8,-1),Índices!$A:$H,8,0))),"") ->  | H196: vazia
B197: =IFERROR(IF(EDATE($C$8,176)>$C$9,"",IF(EDATE($C$8,176)>DATE(2099,12,1),"",EDATE($C$8,176))),"") ->  | C197: =IFERROR(IF(B197="","",VLOOKUP(B197,Índices!$A:$H,5,0)),"") ->  | D197: =IFERROR(IF(B197="","",VLOOKUP(B197,Índices!$A:$H,6,0)),"") ->  | E197: =IFERROR(IF(B197="","",$C$10*VLOOKUP(B197,Índices!$A:$H,7,0)/VLOOKUP(EDATE($C$8,-1),Índices!$A:$H,7,0)),"") ->  | F197: =IFERROR(IF(B197="","",E197*(VLOOKUP(B197,Índices!$A:$H,8,0)-VLOOKUP(EDATE($C$8,-1),Índices!$A:$H,8,0))),"") ->  | H197: vazia
B198: =IFERROR(IF(EDATE($C$8,177)>$C$9,"",IF(EDATE($C$8,177)>DATE(2099,12,1),"",EDATE($C$8,177))),"") ->  | C198: =IFERROR(IF(B198="","",VLOOKUP(B198,Índices!$A:$H,5,0)),"") ->  | D198: =IFERROR(IF(B198="","",VLOOKUP(B198,Índices!$A:$H,6,0)),"") ->  | E198: =IFERROR(IF(B198="","",$C$10*VLOOKUP(B198,Índices!$A:$H,7,0)/VLOOKUP(EDATE($C$8,-1),Índices!$A:$H,7,0)),"") ->  | F198: =IFERROR(IF(B198="","",E198*(VLOOKUP(B198,Índices!$A:$H,8,0)-VLOOKUP(EDATE($C$8,-1),Índices!$A:$H,8,0))),"") ->  | H198: vazia
B199: =IFERROR(IF(EDATE($C$8,178)>$C$9,"",IF(EDATE($C$8,178)>DATE(2099,12,1),"",EDATE($C$8,178))),"") ->  | C199: =IFERROR(IF(B199="","",VLOOKUP(B199,Índices!$A:$H,5,0)),"") ->  | D199: =IFERROR(IF(B199="","",VLOOKUP(B199,Índices!$A:$H,6,0)),"") ->  | E199: =IFERROR(IF(B199="","",$C$10*VLOOKUP(B199,Índices!$A:$H,7,0)/VLOOKUP(EDATE($C$8,-1),Índices!$A:$H,7,0)),"") ->  | F199: =IFERROR(IF(B199="","",E199*(VLOOKUP(B199,Índices!$A:$H,8,0)-VLOOKUP(EDATE($C$8,-1),Índices!$A:$H,8,0))),"") ->  | H199: vazia
B200: =IFERROR(IF(EDATE($C$8,179)>$C$9,"",IF(EDATE($C$8,179)>DATE(2099,12,1),"",EDATE($C$8,179))),"") ->  | C200: =IFERROR(IF(B200="","",VLOOKUP(B200,Índices!$A:$H,5,0)),"") ->  | D200: =IFERROR(IF(B200="","",VLOOKUP(B200,Índices!$A:$H,6,0)),"") ->  | E200: =IFERROR(IF(B200="","",$C$10*VLOOKUP(B200,Índices!$A:$H,7,0)/VLOOKUP(EDATE($C$8,-1),Índices!$A:$H,7,0)),"") ->  | F200: =IFERROR(IF(B200="","",E200*(VLOOKUP(B200,Índices!$A:$H,8,0)-VLOOKUP(EDATE($C$8,-1),Índices!$A:$H,8,0))),"") ->  | H200: vazia
B201: =IFERROR(IF(EDATE($C$8,180)>$C$9,"",IF(EDATE($C$8,180)>DATE(2099,12,1),"",EDATE($C$8,180))),"") ->  | C201: =IFERROR(IF(B201="","",VLOOKUP(B201,Índices!$A:$H,5,0)),"") ->  | D201: =IFERROR(IF(B201="","",VLOOKUP(B201,Índices!$A:$H,6,0)),"") ->  | E201: =IFERROR(IF(B201="","",$C$10*VLOOKUP(B201,Índices!$A:$H,7,0)/VLOOKUP(EDATE($C$8,-1),Índices!$A:$H,7,0)),"") ->  | F201: =IFERROR(IF(B201="","",E201*(VLOOKUP(B201,Índices!$A:$H,8,0)-VLOOKUP(EDATE($C$8,-1),Índices!$A:$H,8,0))),"") ->  | H201: vazia
B202: =IFERROR(IF(EDATE($C$8,181)>$C$9,"",IF(EDATE($C$8,181)>DATE(2099,12,1),"",EDATE($C$8,181))),"") ->  | C202: =IFERROR(IF(B202="","",VLOOKUP(B202,Índices!$A:$H,5,0)),"") ->  | D202: =IFERROR(IF(B202="","",VLOOKUP(B202,Índices!$A:$H,6,0)),"") ->  | E202: =IFERROR(IF(B202="","",$C$10*VLOOKUP(B202,Índices!$A:$H,7,0)/VLOOKUP(EDATE($C$8,-1),Índices!$A:$H,7,0)),"") ->  | F202: =IFERROR(IF(B202="","",E202*(VLOOKUP(B202,Índices!$A:$H,8,0)-VLOOKUP(EDATE($C$8,-1),Índices!$A:$H,8,0))),"") ->  | H202: vazia
B203: =IFERROR(IF(EDATE($C$8,182)>$C$9,"",IF(EDATE($C$8,182)>DATE(2099,12,1),"",EDATE($C$8,182))),"") ->  | C203: =IFERROR(IF(B203="","",VLOOKUP(B203,Índices!$A:$H,5,0)),"") ->  | D203: =IFERROR(IF(B203="","",VLOOKUP(B203,Índices!$A:$H,6,0)),"") ->  | E203: =IFERROR(IF(B203="","",$C$10*VLOOKUP(B203,Índices!$A:$H,7,0)/VLOOKUP(EDATE($C$8,-1),Índices!$A:$H,7,0)),"") ->  | F203: =IFERROR(IF(B203="","",E203*(VLOOKUP(B203,Índices!$A:$H,8,0)-VLOOKUP(EDATE($C$8,-1),Índices!$A:$H,8,0))),"") ->  | H203: vazia
B204: =IFERROR(IF(EDATE($C$8,183)>$C$9,"",IF(EDATE($C$8,183)>DATE(2099,12,1),"",EDATE($C$8,183))),"") ->  | C204: =IFERROR(IF(B204="","",VLOOKUP(B204,Índices!$A:$H,5,0)),"") ->  | D204: =IFERROR(IF(B204="","",VLOOKUP(B204,Índices!$A:$H,6,0)),"") ->  | E204: =IFERROR(IF(B204="","",$C$10*VLOOKUP(B204,Índices!$A:$H,7,0)/VLOOKUP(EDATE($C$8,-1),Índices!$A:$H,7,0)),"") ->  | F204: =IFERROR(IF(B204="","",E204*(VLOOKUP(B204,Índices!$A:$H,8,0)-VLOOKUP(EDATE($C$8,-1),Índices!$A:$H,8,0))),"") ->  | H204: vazia
B205: =IFERROR(IF(EDATE($C$8,184)>$C$9,"",IF(EDATE($C$8,184)>DATE(2099,12,1),"",EDATE($C$8,184))),"") ->  | C205: =IFERROR(IF(B205="","",VLOOKUP(B205,Índices!$A:$H,5,0)),"") ->  | D205: =IFERROR(IF(B205="","",VLOOKUP(B205,Índices!$A:$H,6,0)),"") ->  | E205: =IFERROR(IF(B205="","",$C$10*VLOOKUP(B205,Índices!$A:$H,7,0)/VLOOKUP(EDATE($C$8,-1),Índices!$A:$H,7,0)),"") ->  | F205: =IFERROR(IF(B205="","",E205*(VLOOKUP(B205,Índices!$A:$H,8,0)-VLOOKUP(EDATE($C$8,-1),Índices!$A:$H,8,0))),"") ->  | H205: vazia
B206: =IFERROR(IF(EDATE($C$8,185)>$C$9,"",IF(EDATE($C$8,185)>DATE(2099,12,1),"",EDATE($C$8,185))),"") ->  | C206: =IFERROR(IF(B206="","",VLOOKUP(B206,Índices!$A:$H,5,0)),"") ->  | D206: =IFERROR(IF(B206="","",VLOOKUP(B206,Índices!$A:$H,6,0)),"") ->  | E206: =IFERROR(IF(B206="","",$C$10*VLOOKUP(B206,Índices!$A:$H,7,0)/VLOOKUP(EDATE($C$8,-1),Índices!$A:$H,7,0)),"") ->  | F206: =IFERROR(IF(B206="","",E206*(VLOOKUP(B206,Índices!$A:$H,8,0)-VLOOKUP(EDATE($C$8,-1),Índices!$A:$H,8,0))),"") ->  | H206: vazia
... 295 more rows

Sheet atualização (hidden)
A1: ÍNDICES SELIC E IPCA – ATUALIZAÇÃO MONETÁRIA
A2: Período: 01/01/2026 a 31/12/2034 | Fonte: BCB (SELIC – Série 4390) e IBGE (IPCA) | Atualização automática via macro ao abrir
A4: ⚠ INSTRUÇÕES: Esta aba é alimentada automaticamente pela macro ao abrir a planilha. Os valores já preenchidos são os dados oficiais publicados. Para meses futuros ainda não divulgados, insira manualmente a SELIC (% a.m.) e o IPCA (% a.m.) nas colunas B e C.
A6: Mês/Ano | B6: SELIC (% a.m.) | C6: IPCA (% a.m.) | D6: Fonte SELIC | E6: Fonte IPCA
A7: 2026-01-01 | B7: 0.0116 | C7: 0.0033 | D7: BCB Oficial | E7: IBGE/IPCA Mensal
A8: 2026-02-01 | B8: 0.01 | C8: 0.007 | D8: BCB Oficial | E8: IBGE/IPCA Mensal
A9: 2026-03-01 | B9: 0.0121 | C9: 0.0088 | D9: BCB Oficial | E9: IBGE/IPCA Mensal
A10: 2026-04-01 | B10: 0.0109 | C10: 0.0067 | D10: BCB Oficial | E10: IBGE/IPCA Mensal
A11: 2026-05-01 | B11: 0.0107 | C11: 0.0058 | D11: BCB Oficial | E11: IBGE/IPCA Mensal
A12: 2026-06-01 | B12: 0.0112 | D12: BCB Oficial | E12: Não divulgado
A13: 2026-07-01 | B13: 0.0005 | D13: BCB Oficial | E13: Não divulgado
A14: 2026-08-01 | D14: Não divulgado | E14: Não divulgado
A15: 2026-09-01 | D15: Não divulgado | E15: Não divulgado
A16: 2026-10-01 | D16: Não divulgado | E16: Não divulgado
A17: 2026-11-01 | D17: Não divulgado | E17: Não divulgado
A18: 2026-12-01 | D18: Não divulgado | E18: Não divulgado
A19: 2027-01-01 | D19: Não divulgado | E19: Não divulgado
A20: 2027-02-01 | D20: Não divulgado | E20: Não divulgado
A21: 2027-03-01 | D21: Não divulgado | E21: Não divulgado
A22: 2027-04-01 | D22: Não divulgado | E22: Não divulgado
A23: 2027-05-01 | D23: Não divulgado | E23: Não divulgado
A24: 2027-06-01 | D24: Não divulgado | E24: Não divulgado
A25: 2027-07-01 | D25: Não divulgado | E25: Não divulgado
A26: 2027-08-01 | D26: Não divulgado | E26: Não divulgado
A27: 2027-09-01 | D27: Não divulgado | E27: Não divulgado
A28: 2027-10-01 | D28: Não divulgado | E28: Não divulgado
A29: 2027-11-01 | D29: Não divulgado | E29: Não divulgado
A30: 2027-12-01 | D30: Não divulgado | E30: Não divulgado
A31: 2028-01-01 | D31: Não divulgado | E31: Não divulgado
A32: 2028-02-01 | D32: Não divulgado | E32: Não divulgado
A33: 2028-03-01 | D33: Não divulgado | E33: Não divulgado
A34: 2028-04-01 | D34: Não divulgado | E34: Não divulgado
A35: 2028-05-01 | D35: Não divulgado | E35: Não divulgado
A36: 2028-06-01 | D36: Não divulgado | E36: Não divulgado
A37: 2028-07-01 | D37: Não divulgado | E37: Não divulgado
A38: 2028-08-01 | D38: Não divulgado | E38: Não divulgado
A39: 2028-09-01 | D39: Não divulgado | E39: Não divulgado
A40: 2028-10-01 | D40: Não divulgado | E40: Não divulgado
A41: 2028-11-01 | D41: Não divulgado | E41: Não divulgado
A42: 2028-12-01 | D42: Não divulgado | E42: Não divulgado
A43: 2029-01-01 | D43: Não divulgado | E43: Não divulgado
A44: 2029-02-01 | D44: Não divulgado | E44: Não divulgado
A45: 2029-03-01 | D45: Não divulgado | E45: Não divulgado
A46: 2029-04-01 | D46: Não divulgado | E46: Não divulgado
A47: 2029-05-01 | D47: Não divulgado | E47: Não divulgado
A48: 2029-06-01 | D48: Não divulgado | E48: Não divulgado
A49: 2029-07-01 | D49: Não divulgado | E49: Não divulgado
A50: 2029-08-01 | D50: Não divulgado | E50: Não divulgado
A51: 2029-09-01 | D51: Não divulgado | E51: Não divulgado
A52: 2029-10-01 | D52: Não divulgado | E52: Não divulgado
A53: 2029-11-01 | D53: Não divulgado | E53: Não divulgado
A54: 2029-12-01 | D54: Não divulgado | E54: Não divulgado
A55: 2030-01-01 | D55: Não divulgado | E55: Não divulgado
A56: 2030-02-01 | D56: Não divulgado | E56: Não divulgado
A57: 2030-03-01 | D57: Não divulgado | E57: Não divulgado
A58: 2030-04-01 | D58: Não divulgado | E58: Não divulgado
A59: 2030-05-01 | D59: Não divulgado | E59: Não divulgado
A60: 2030-06-01 | D60: Não divulgado | E60: Não divulgado
A61: 2030-07-01 | D61: Não divulgado | E61: Não divulgado
A62: 2030-08-01 | D62: Não divulgado | E62: Não divulgado
A63: 2030-09-01 | D63: Não divulgado | E63: Não divulgado
A64: 2030-10-01 | D64: Não divulgado | E64: Não divulgado
A65: 2030-11-01 | D65: Não divulgado | E65: Não divulgado
A66: 2030-12-01 | D66: Não divulgado | E66: Não divulgado
A67: 2031-01-01 | D67: Não divulgado | E67: Não divulgado
A68: 2031-02-01 | D68: Não divulgado | E68: Não divulgado
A69: 2031-03-01 | D69: Não divulgado | E69: Não divulgado
A70: 2031-04-01 | D70: Não divulgado | E70: Não divulgado
A71: 2031-05-01 | D71: Não divulgado | E71: Não divulgado
A72: 2031-06-01 | D72: Não divulgado | E72: Não divulgado
A73: 2031-07-01 | D73: Não divulgado | E73: Não divulgado
A74: 2031-08-01 | D74: Não divulgado | E74: Não divulgado
A75: 2031-09-01 | D75: Não divulgado | E75: Não divulgado
A76: 2031-10-01 | D76: Não divulgado | E76: Não divulgado
A77: 2031-11-01 | D77: Não divulgado | E77: Não divulgado
A78: 2031-12-01 | D78: Não divulgado | E78: Não divulgado
A79: 2032-01-01 | D79: Não divulgado | E79: Não divulgado
A80: 2032-02-01 | D80: Não divulgado | E80: Não divulgado
A81: 2032-03-01 | D81: Não divulgado | E81: Não divulgado
A82: 2032-04-01 | D82: Não divulgado | E82: Não divulgado
A83: 2032-05-01 | D83: Não divulgado | E83: Não divulgado
A84: 2032-06-01 | D84: Não divulgado | E84: Não divulgado
A85: 2032-07-01 | D85: Não divulgado | E85: Não divulgado
A86: 2032-08-01 | D86: Não divulgado | E86: Não divulgado
A87: 2032-09-01 | D87: Não divulgado | E87: Não divulgado
A88: 2032-10-01 | D88: Não divulgado | E88: Não divulgado
A89: 2032-11-01 | D89: Não divulgado | E89: Não divulgado
A90: 2032-12-01 | D90: Não divulgado | E90: Não divulgado
A91: 2033-01-01 | D91: Não divulgado | E91: Não divulgado
A92: 2033-02-01 | D92: Não divulgado | E92: Não divulgado
A93: 2033-03-01 | D93: Não divulgado | E93: Não divulgado
A94: 2033-04-01 | D94: Não divulgado | E94: Não divulgado
A95: 2033-05-01 | D95: Não divulgado | E95: Não divulgado
A96: 2033-06-01 | D96: Não divulgado | E96: Não divulgado
A97: 2033-07-01 | D97: Não divulgado | E97: Não divulgado
A98: 2033-08-01 | D98: Não divulgado | E98: Não divulgado
A99: 2033-09-01 | D99: Não divulgado | E99: Não divulgado
A100: 2033-10-01 | D100: Não divulgado | E100: Não divulgado
A101: 2033-11-01 | D101: Não divulgado | E101: Não divulgado
A102: 2033-12-01 | D102: Não divulgado | E102: Não divulgado
A103: 2034-01-01 | D103: Não divulgado | E103: Não divulgado
A104: 2034-02-01 | D104: Não divulgado | E104: Não divulgado
A105: 2034-03-01 | D105: Não divulgado | E105: Não divulgado
A106: 2034-04-01 | D106: Não divulgado | E106: Não divulgado
A107: 2034-05-01 | D107: Não divulgado | E107: Não divulgado
A108: 2034-06-01 | D108: Não divulgado | E108: Não divulgado
A109: 2034-07-01 | D109: Não divulgado | E109: Não divulgado
A110: 2034-08-01 | D110: Não divulgado | E110: Não divulgado
A111: 2034-09-01 | D111: Não divulgado | E111: Não divulgado
A112: 2034-10-01 | D112: Não divulgado | E112: Não divulgado
A113: 2034-11-01 | D113: Não divulgado | E113: Não divulgado
A114: 2034-12-01 | D114: Não divulgado | E114: Não divulgado
A116: LEGENDA:
A117: Verde: valor oficial já publicado e confirmado
A118: 📋 COMO ATIVAR A ATUALIZAÇÃO AUTOMÁTICA (Macro VBA)
A119: 1. Salve este arquivo como .xlsm (Arquivo → Salvar Como → Pasta de Trabalho Habilitada para Macro do Excel)
A120: 2. Pressione Alt+F11 para abrir o Editor VBA
A121: 3. Clique com botão direito em 'VBAProject' → Inserir → Módulo
A122: 4. Cole o código do arquivo 'macro_atualizar_indices.bas' (baixe junto com esta planilha)
A123: 5. Feche o editor e salve. A macro 'AtualizarIndices' estará disponível em Desenvolvedor → Macros
A124: 6. Execute a macro sempre que precisar atualizar os índices (requer internet)

Sheet Índices (hidden)
A2: TABELA DE ÍNDICES – SELIC, IPCA, ATUALIZAÇÃO E JUROS (02/2000 em diante)
A3: Fonte: Planilha de Apoio DSC/SEFAZ-PE (Nota Técnica nº 2/2026). Para atualizar: insira novos meses nas linhas seguintes com os índices SELIC e IPCA; as colunas Atualização e Juros são calculadas automaticamente.
A4: Mês/Ano | B4: SELIC (%) | C4: IPCA (%) | D4: Regime | E4: Índice Acum. Correção | F4: Índice Acum. Juros | G4: Fator Corr. Acumulado | H4: Fator Juros Acumulado
A5: 2000-02-01 | B5: 0.0145 | D5: SELIC | E5: 0 | F5: 0.0146 | G5: =1+E5 -> 1 | H5: =F5 -> 0.0146
A6: 2000-03-01 | B6: 0.0145 | D6: SELIC | E6: 0 | F6: 0.0145 | G6: =G5*(1+E6) -> 1 | H6: =H5+F6 -> 0.0291
A7: 2000-04-01 | B7: 0.013 | D7: SELIC | E7: 0 | F7: 0.0145 | G7: 1 | H7: 0.0436
A8: 2000-05-01 | B8: 0.0149 | D8: SELIC | E8: 0 | F8: 0.013 | G8: 1 | H8: 0.0566
A9: 2000-06-01 | B9: 0.0139 | D9: SELIC | E9: 0 | F9: 0.0149 | G9: 1 | H9: 0.0715
A10: 2000-07-01 | B10: 0.0131 | D10: SELIC | E10: 0 | F10: 0.0139 | G10: 1 | H10: 0.0854
A11: 2000-08-01 | B11: 0.0141 | D11: SELIC | E11: 0 | F11: 0.0131 | G11: 1 | H11: 0.0985
A12: 2000-09-01 | B12: 0.0122 | D12: SELIC | E12: 0 | F12: 0.0141 | G12: 1 | H12: 0.1126
A13: 2000-10-01 | B13: 0.0129 | D13: SELIC | E13: 0 | F13: 0.0122 | G13: 1 | H13: 0.1248
A14: 2000-11-01 | B14: 0.0122 | D14: SELIC | E14: 0 | F14: 0.0129 | G14: 1 | H14: 0.1377
A15: 2000-12-01 | B15: 0.012 | D15: SELIC | E15: 0 | F15: 0.0122 | G15: 1 | H15: 0.1499
A16: 2001-01-01 | B16: 0.0127 | D16: SELIC | E16: 0 | F16: 0.012 | G16: 1 | H16: 0.1619
A17: 2001-02-01 | B17: 0.0102 | D17: SELIC | E17: 0 | F17: 0.0127 | G17: 1 | H17: 0.1746
A18: 2001-03-01 | B18: 0.0126 | D18: SELIC | E18: 0 | F18: 0.0102 | G18: 1 | H18: 0.1848
A19: 2001-04-01 | B19: 0.0119 | D19: SELIC | E19: 0 | F19: 0.0126 | G19: 1 | H19: 0.1974
A20: 2001-05-01 | B20: 0.0134 | D20: SELIC | E20: 0 | F20: 0.0119 | G20: 1 | H20: 0.2093
A21: 2001-06-01 | B21: 0.0127 | D21: SELIC | E21: 0 | F21: 0.0134 | G21: 1 | H21: 0.2227
A22: 2001-07-01 | B22: 0.015 | D22: SELIC | E22: 0 | F22: 0.0127 | G22: 1 | H22: 0.2354
A23: 2001-08-01 | B23: 0.016 | D23: SELIC | E23: 0 | F23: 0.015 | G23: 1 | H23: 0.2504
A24: 2001-09-01 | B24: 0.0132 | D24: SELIC | E24: 0 | F24: 0.016 | G24: 1 | H24: 0.2664
A25: 2001-10-01 | B25: 0.0153 | D25: SELIC | E25: 0 | F25: 0.0132 | G25: 1 | H25: 0.2796
A26: 2001-11-01 | B26: 0.0139 | D26: SELIC | E26: 0 | F26: 0.0153 | G26: 1 | H26: 0.2949
A27: 2001-12-01 | B27: 0.0139 | D27: SELIC | E27: 0 | F27: 0.0139 | G27: 1 | H27: 0.3088
A28: 2002-01-01 | B28: 0.0153 | D28: SELIC | E28: 0 | F28: 0.0139 | G28: 1 | H28: 0.3227
A29: 2002-02-01 | B29: 0.0125 | D29: SELIC | E29: 0 | F29: 0.0153 | G29: 1 | H29: 0.338
A30: 2002-03-01 | B30: 0.0137 | D30: SELIC | E30: 0 | F30: 0.0125 | G30: 1 | H30: 0.3505
A31: 2002-04-01 | B31: 0.0148 | D31: SELIC | E31: 0 | F31: 0.0137 | G31: 1 | H31: 0.3642
A32: 2002-05-01 | B32: 0.0141 | D32: SELIC | E32: 0 | F32: 0.0148 | G32: 1 | H32: 0.379
A33: 2002-06-01 | B33: 0.0133 | D33: SELIC | E33: 0 | F33: 0.0141 | G33: 1 | H33: 0.3931
A34: 2002-07-01 | B34: 0.0154 | D34: SELIC | E34: 0 | F34: 0.0133 | G34: 1 | H34: 0.4064
A35: 2002-08-01 | B35: 0.0144 | D35: SELIC | E35: 0 | F35: 0.0154 | G35: 1 | H35: 0.4218
A36: 2002-09-01 | B36: 0.0138 | D36: SELIC | E36: 0 | F36: 0.0144 | G36: 1 | H36: 0.4362
A37: 2002-10-01 | B37: 0.0165 | D37: SELIC | E37: 0 | F37: 0.0138 | G37: 1 | H37: 0.45
A38: 2002-11-01 | B38: 0.0154 | D38: SELIC | E38: 0 | F38: 0.0165 | G38: 1 | H38: 0.4665
A39: 2002-12-01 | B39: 0.0174 | D39: SELIC | E39: 0 | F39: 0.0154 | G39: 1 | H39: 0.4819
A40: 2003-01-01 | B40: 0.0197 | D40: SELIC | E40: 0 | F40: 0.0174 | G40: 1 | H40: 0.4993
A41: 2003-02-01 | B41: 0.0183 | D41: SELIC | E41: 0 | F41: 0.0197 | G41: 1 | H41: 0.519
A42: 2003-03-01 | B42: 0.0178 | D42: SELIC | E42: 0 | F42: 0.0183 | G42: 1 | H42: 0.5373
A43: 2003-04-01 | B43: 0.0187 | D43: SELIC | E43: 0 | F43: 0.0178 | G43: 1 | H43: 0.5551
A44: 2003-05-01 | B44: 0.0197 | D44: SELIC | E44: 0 | F44: 0.0187 | G44: 1 | H44: 0.5738
A45: 2003-06-01 | B45: 0.0186 | D45: SELIC | E45: 0 | F45: 0.0197 | G45: 1 | H45: 0.5935
A46: 2003-07-01 | B46: 0.0208 | D46: SELIC | E46: 0 | F46: 0.0186 | G46: 1 | H46: 0.6121
A47: 2003-08-01 | B47: 0.0177 | D47: SELIC | E47: 0 | F47: 0.0208 | G47: 1 | H47: 0.6329
A48: 2003-09-01 | B48: 0.0168 | D48: SELIC | E48: 0 | F48: 0.0177 | G48: 1 | H48: 0.6506
A49: 2003-10-01 | B49: 0.0164 | D49: SELIC | E49: 0 | F49: 0.0168 | G49: 1 | H49: 0.6674
A50: 2003-11-01 | B50: 0.0134 | D50: SELIC | E50: 0 | F50: 0.0164 | G50: 1 | H50: 0.6838
A51: 2003-12-01 | B51: 0.0137 | D51: SELIC | E51: 0 | F51: 0.0134 | G51: 1 | H51: 0.6972
A52: 2004-01-01 | B52: 0.0127 | D52: SELIC | E52: 0 | F52: 0.0137 | G52: 1 | H52: 0.7109
A53: 2004-02-01 | B53: 0.0108 | D53: SELIC | E53: 0 | F53: 0.0127 | G53: 1 | H53: 0.7236
A54: 2004-03-01 | B54: 0.0138 | D54: SELIC | E54: 0 | F54: 0.0108 | G54: 1 | H54: 0.7344
A55: 2004-04-01 | B55: 0.0118 | D55: SELIC | E55: 0 | F55: 0.0138 | G55: 1 | H55: 0.7482
A56: 2004-05-01 | B56: 0.0123 | D56: SELIC | E56: 0 | F56: 0.0118 | G56: 1 | H56: 0.76
A57: 2004-06-01 | B57: 0.0123 | D57: SELIC | E57: 0 | F57: 0.0123 | G57: 1 | H57: 0.7723
A58: 2004-07-01 | B58: 0.0129 | D58: SELIC | E58: 0 | F58: 0.0123 | G58: 1 | H58: 0.7846
A59: 2004-08-01 | B59: 0.0129 | D59: SELIC | E59: 0 | F59: 0.0129 | G59: 1 | H59: 0.7975
A60: 2004-09-01 | B60: 0.0125 | D60: SELIC | E60: 0 | F60: 0.0129 | G60: 1 | H60: 0.8104
A61: 2004-10-01 | B61: 0.0121 | D61: SELIC | E61: 0 | F61: 0.0125 | G61: 1 | H61: 0.8229
A62: 2004-11-01 | B62: 0.0125 | D62: SELIC | E62: 0 | F62: 0.0121 | G62: 1 | H62: 0.835
A63: 2004-12-01 | B63: 0.0148 | D63: SELIC | E63: 0 | F63: 0.0125 | G63: 1 | H63: 0.8475
A64: 2005-01-01 | B64: 0.0138 | D64: SELIC | E64: 0 | F64: 0.0148 | G64: 1 | H64: 0.8623
A65: 2005-02-01 | B65: 0.0122 | D65: SELIC | E65: 0 | F65: 0.0138 | G65: 1 | H65: 0.8761
A66: 2005-03-01 | B66: 0.0153 | D66: SELIC | E66: 0 | F66: 0.0122 | G66: 1 | H66: 0.8883
A67: 2005-04-01 | B67: 0.0141 | D67: SELIC | E67: 0 | F67: 0.0153 | G67: 1 | H67: 0.9036
A68: 2005-05-01 | B68: 0.015 | D68: SELIC | E68: 0 | F68: 0.0141 | G68: 1 | H68: 0.9177
A69: 2005-06-01 | B69: 0.0159 | D69: SELIC | E69: 0 | F69: 0.015 | G69: 1 | H69: 0.9327
A70: 2005-07-01 | B70: 0.0151 | D70: SELIC | E70: 0 | F70: 0.0159 | G70: =G69*(1+E70) -> 1 | H70: =H69+F70 -> 0.9486
A71: 2005-08-01 | B71: 0.0166 | D71: SELIC | E71: 0 | F71: 0.0151 | G71: 1 | H71: 0.9637
A72: 2005-09-01 | B72: 0.015 | D72: SELIC | E72: 0 | F72: 0.0166 | G72: 1 | H72: 0.9803
A73: 2005-10-01 | B73: 0.0141 | D73: SELIC | E73: 0 | F73: 0.015 | G73: 1 | H73: 0.9953
A74: 2005-11-01 | B74: 0.0138 | D74: SELIC | E74: 0 | F74: 0.0141 | G74: 1 | H74: 1.0094
A75: 2005-12-01 | B75: 0.0147 | D75: SELIC | E75: 0 | F75: 0.0138 | G75: 1 | H75: 1.0232
A76: 2006-01-01 | B76: 0.0143 | D76: SELIC | E76: 0 | F76: 0.0147 | G76: 1 | H76: 1.0379
A77: 2006-02-01 | B77: 0.0114 | D77: SELIC | E77: 0 | F77: 0.0143 | G77: 1 | H77: 1.0522
A78: 2006-03-01 | B78: 0.0142 | D78: SELIC | E78: 0 | F78: 0.0114 | G78: 1 | H78: 1.0636
A79: 2006-04-01 | B79: 0.0108 | D79: SELIC | E79: 0 | F79: 0.0142 | G79: 1 | H79: 1.0778
A80: 2006-05-01 | B80: 0.0128 | D80: SELIC | E80: 0 | F80: 0.0108 | G80: 1 | H80: 1.0886
A81: 2006-06-01 | B81: 0.0118 | D81: SELIC | E81: 0 | F81: 0.0128 | G81: 1 | H81: 1.1014
A82: 2006-07-01 | B82: 0.0117 | D82: SELIC | E82: 0 | F82: 0.0118 | G82: 1 | H82: 1.1132
A83: 2006-08-01 | B83: 0.0126 | D83: SELIC | E83: 0 | F83: 0.0117 | G83: 1 | H83: 1.1249
A84: 2006-09-01 | B84: 0.0106 | D84: SELIC | E84: 0 | F84: 0.0126 | G84: 1 | H84: 1.1375
A85: 2006-10-01 | B85: 0.0109 | D85: SELIC | E85: 0 | F85: 0.0106 | G85: 1 | H85: 1.1481
A86: 2006-11-01 | B86: 0.0102 | D86: SELIC | E86: 0 | F86: 0.0109 | G86: 1 | H86: 1.159
A87: 2006-12-01 | B87: 0.0099 | D87: SELIC | E87: 0 | F87: 0.0102 | G87: 1 | H87: 1.1692
A88: 2007-01-01 | B88: 0.0108 | D88: SELIC | E88: 0 | F88: 0.0099 | G88: 1 | H88: 1.1791
A89: 2007-02-01 | B89: 0.0087 | D89: SELIC | E89: 0 | F89: 0.0108 | G89: 1 | H89: 1.1899
A90: 2007-03-01 | B90: 0.0105 | D90: SELIC | E90: 0 | F90: 0.0087 | G90: 1 | H90: 1.1986
A91: 2007-04-01 | B91: 0.0094 | D91: SELIC | E91: 0 | F91: 0.0105 | G91: 1 | H91: 1.2091
A92: 2007-05-01 | B92: 0.0103 | D92: SELIC | E92: 0 | F92: 0.0094 | G92: 1 | H92: 1.2185
A93: 2007-06-01 | B93: 0.0091 | D93: SELIC | E93: 0 | F93: 0.0103 | G93: 1 | H93: 1.2288
A94: 2007-07-01 | B94: 0.0097 | D94: SELIC | E94: 0 | F94: 0.0091 | G94: 1 | H94: 1.2379
A95: 2007-08-01 | B95: 0.0099 | D95: SELIC | E95: 0 | F95: 0.0097 | G95: 1 | H95: 1.2476
A96: 2007-09-01 | B96: 0.008 | D96: SELIC | E96: 0 | F96: 0.0099 | G96: 1 | H96: 1.2575
A97: 2007-10-01 | B97: 0.0093 | D97: SELIC | E97: 0 | F97: 0.008 | G97: 1 | H97: 1.2655
A98: 2007-11-01 | B98: 0.0084 | D98: SELIC | E98: 0 | F98: 0.0093 | G98: 1 | H98: 1.2748
A99: 2007-12-01 | B99: 0.0084 | D99: SELIC | E99: 0 | F99: 0.0084 | G99: 1 | H99: 1.2832
A100: 2008-01-01 | B100: 0.0093 | D100: SELIC | E100: 0 | F100: 0.0084 | G100: 1 | H100: 1.2916
A101: 2008-02-01 | B101: 0.008 | D101: SELIC | E101: 0 | F101: 0.0093 | G101: 1 | H101: 1.3009
A102: 2008-03-01 | B102: 0.0084 | D102: SELIC | E102: 0 | F102: 0.008 | G102: 1 | H102: 1.3089
A103: 2008-04-01 | B103: 0.009 | D103: SELIC | E103: 0 | F103: 0.0084 | G103: 1 | H103: 1.3173
A104: 2008-05-01 | B104: 0.0088 | D104: SELIC | E104: 0 | F104: 0.009 | G104: 1 | H104: 1.3263
A105: 2008-06-01 | B105: 0.0096 | D105: SELIC | E105: 0 | F105: 0.0088 | G105: 1 | H105: 1.3351
A106: 2008-07-01 | B106: 0.0107 | D106: SELIC | E106: 0 | F106: 0.0096 | G106: 1 | H106: 1.3447
A107: 2008-08-01 | B107: 0.0102 | D107: SELIC | E107: 0 | F107: 0.0107 | G107: 1 | H107: 1.3554
A108: 2008-09-01 | B108: 0.011 | D108: SELIC | E108: 0 | F108: 0.0102 | G108: 1 | H108: 1.3656
A109: 2008-10-01 | B109: 0.0118 | D109: SELIC | E109: 0 | F109: 0.011 | G109: 1 | H109: 1.3766
A110: 2008-11-01 | B110: 0.0102 | D110: SELIC | E110: 0 | F110: 0.0118 | G110: 1 | H110: 1.3884
A111: 2008-12-01 | B111: 0.0112 | D111: SELIC | E111: 0 | F111: 0.0102 | G111: 1 | H111: 1.3986
A112: 2009-01-01 | B112: 0.0105 | D112: SELIC | E112: 0 | F112: 0.0112 | G112: 1 | H112: 1.4098
A113: 2009-02-01 | B113: 0.0086 | D113: SELIC | E113: 0 | F113: 0.0105 | G113: 1 | H113: 1.4203
A114: 2009-03-01 | B114: 0.0097 | D114: SELIC | E114: 0 | F114: 0.0086 | G114: 1 | H114: 1.4289
A115: 2009-04-01 | B115: 0.0084 | D115: SELIC | E115: 0 | F115: 0.0097 | G115: 1 | H115: 1.4386
A116: 2009-05-01 | B116: 0.0077 | D116: SELIC | E116: 0 | F116: 0.0084 | G116: 1 | H116: 1.447
A117: 2009-06-01 | B117: 0.0076 | D117: SELIC | E117: 0 | F117: 0.0077 | G117: 1 | H117: 1.4547
A118: 2009-07-01 | B118: 0.0079 | D118: SELIC | E118: 0 | F118: 0.0076 | G118: 1 | H118: 1.4623
A119: 2009-08-01 | B119: 0.0069 | D119: SELIC | E119: 0 | F119: 0.0079 | G119: 1 | H119: 1.4702
A120: 2009-09-01 | B120: 0.0069 | D120: SELIC | E120: 0 | F120: 0.0069 | G120: 1 | H120: 1.4771
A121: 2009-10-01 | B121: 0.0069 | D121: SELIC | E121: 0 | F121: 0.0069 | G121: 1 | H121: 1.484
A122: 2009-11-01 | B122: 0.0066 | D122: SELIC | E122: 0 | F122: 0.0069 | G122: 1 | H122: 1.4909
A123: 2009-12-01 | B123: 0.0073 | D123: SELIC | E123: 0 | F123: 0.0066 | G123: 1 | H123: 1.4975
A124: 2010-01-01 | B124: 0.0066 | D124: SELIC | E124: 0 | F124: 0.0073 | G124: 1 | H124: 1.5048
A125: 2010-02-01 | B125: 0.0059 | D125: SELIC | E125: 0 | F125: 0.0066 | G125: 1 | H125: 1.5114
A126: 2010-03-01 | B126: 0.0076 | D126: SELIC | E126: 0 | F126: 0.0059 | G126: 1 | H126: 1.5173
A127: 2010-04-01 | B127: 0.0067 | D127: SELIC | E127: 0 | F127: 0.0076 | G127: 1 | H127: 1.5249
A128: 2010-05-01 | B128: 0.0075 | D128: SELIC | E128: 0 | F128: 0.0067 | G128: 1 | H128: 1.5316
A129: 2010-06-01 | B129: 0.0079 | D129: SELIC | E129: 0 | F129: 0.0075 | G129: 1 | H129: 1.5391
A130: 2010-07-01 | B130: 0.0086 | D130: SELIC | E130: 0 | F130: 0.0079 | G130: 1 | H130: 1.547
A131: 2010-08-01 | B131: 0.0089 | D131: SELIC | E131: 0 | F131: 0.0086 | G131: 1 | H131: 1.5556
A132: 2010-09-01 | B132: 0.0085 | D132: SELIC | E132: 0 | F132: 0.0089 | G132: 1 | H132: 1.5645
A133: 2010-10-01 | B133: 0.0081 | D133: SELIC | E133: 0 | F133: 0.0085 | G133: 1 | H133: 1.573
A134: 2010-11-01 | B134: 0.0081 | D134: SELIC | E134: 0 | F134: 0.0081 | G134: =G133*(1+E134) -> 1 | H134: =H133+F134 -> 1.5811
A135: 2010-12-01 | B135: 0.0093 | D135: SELIC | E135: 0 | F135: 0.0081 | G135: 1 | H135: 1.5892
A136: 2011-01-01 | B136: 0.0086 | D136: SELIC | E136: 0 | F136: 0.0093 | G136: 1 | H136: 1.5985
A137: 2011-02-01 | B137: 0.0084 | D137: SELIC | E137: 0 | F137: 0.0086 | G137: 1 | H137: 1.6071
A138: 2011-03-01 | B138: 0.0092 | D138: SELIC | E138: 0 | F138: 0.0084 | G138: 1 | H138: 1.6155
A139: 2011-04-01 | B139: 0.0084 | D139: SELIC | E139: 0 | F139: 0.0092 | G139: 1 | H139: 1.6247
A140: 2011-05-01 | B140: 0.0099 | D140: SELIC | E140: 0 | F140: 0.0084 | G140: 1 | H140: 1.6331
A141: 2011-06-01 | B141: 0.0096 | D141: SELIC | E141: 0 | F141: 0.0099 | G141: 1 | H141: 1.643
A142: 2011-07-01 | B142: 0.0097 | D142: SELIC | E142: 0 | F142: 0.0096 | G142: 1 | H142: 1.6526
A143: 2011-08-01 | B143: 0.0107 | D143: SELIC | E143: 0 | F143: 0.0097 | G143: 1 | H143: 1.6623
A144: 2011-09-01 | B144: 0.0094 | D144: SELIC | E144: 0 | F144: 0.0107 | G144: 1 | H144: 1.673
A145: 2011-10-01 | B145: 0.0088 | D145: SELIC | E145: 0 | F145: 0.0094 | G145: 1 | H145: 1.6824
A146: 2011-11-01 | B146: 0.0086 | D146: SELIC | E146: 0 | F146: 0.0088 | G146: 1 | H146: 1.6912
A147: 2011-12-01 | B147: 0.0091 | D147: SELIC | E147: 0 | F147: 0.0086 | G147: 1 | H147: 1.6998
A148: 2012-01-01 | B148: 0.0089 | D148: SELIC | E148: 0 | F148: 0.0091 | G148: 1 | H148: 1.7089
A149: 2012-02-01 | B149: 0.0075 | D149: SELIC | E149: 0 | F149: 0.0089 | G149: 1 | H149: 1.7178
A150: 2012-03-01 | B150: 0.0082 | D150: SELIC | E150: 0 | F150: 0.0075 | G150: 1 | H150: 1.7253
A151: 2012-04-01 | B151: 0.0071 | D151: SELIC | E151: 0 | F151: 0.0082 | G151: 1 | H151: 1.7335
A152: 2012-05-01 | B152: 0.0074 | D152: SELIC | E152: 0 | F152: 0.0071 | G152: 1 | H152: 1.7406
A153: 2012-06-01 | B153: 0.0064 | D153: SELIC | E153: 0 | F153: 0.0074 | G153: 1 | H153: 1.748
A154: 2012-07-01 | B154: 0.0068 | D154: SELIC | E154: 0 | F154: 0.0064 | G154: 1 | H154: 1.7544
A155: 2012-08-01 | B155: 0.0069 | D155: SELIC | E155: 0 | F155: 0.0068 | G155: 1 | H155: 1.7612
A156: 2012-09-01 | B156: 0.0054 | D156: SELIC | E156: 0 | F156: 0.0069 | G156: 1 | H156: 1.7681
A157: 2012-10-01 | B157: 0.0061 | D157: SELIC | E157: 0 | F157: 0.0054 | G157: 1 | H157: 1.7735
A158: 2012-11-01 | B158: 0.0055 | D158: SELIC | E158: 0 | F158: 0.0061 | G158: 1 | H158: 1.7796
A159: 2012-12-01 | B159: 0.0055 | D159: SELIC | E159: 0 | F159: 0.0055 | G159: 1 | H159: 1.7851
A160: 2013-01-01 | B160: 0.006 | D160: SELIC | E160: 0 | F160: 0.0055 | G160: 1 | H160: 1.7906
A161: 2013-02-01 | B161: 0.0049 | D161: SELIC | E161: 0 | F161: 0.006 | G161: 1 | H161: 1.7966
A162: 2013-03-01 | B162: 0.0055 | D162: SELIC | E162: 0 | F162: 0.0049 | G162: 1 | H162: 1.8015
A163: 2013-04-01 | B163: 0.0061 | D163: SELIC | E163: 0 | F163: 0.0055 | G163: 1 | H163: 1.807
A164: 2013-05-01 | B164: 0.006 | D164: SELIC | E164: 0 | F164: 0.0061 | G164: 1 | H164: 1.8131
A165: 2013-06-01 | B165: 0.0061 | D165: SELIC | E165: 0 | F165: 0.006 | G165: 1 | H165: 1.8191
A166: 2013-07-01 | B166: 0.0072 | D166: SELIC | E166: 0 | F166: 0.0061 | G166: 1 | H166: 1.8252
A167: 2013-08-01 | B167: 0.0071 | D167: SELIC | E167: 0 | F167: 0.0072 | G167: 1 | H167: 1.8324
A168: 2013-09-01 | B168: 0.0071 | D168: SELIC | E168: 0 | F168: 0.0071 | G168: 1 | H168: 1.8395
A169: 2013-10-01 | B169: 0.0081 | D169: SELIC | E169: 0 | F169: 0.0071 | G169: 1 | H169: 1.8466
A170: 2013-11-01 | B170: 0.0072 | D170: SELIC | E170: 0 | F170: 0.0081 | G170: 1 | H170: 1.8547
A171: 2013-12-01 | B171: 0.0079 | D171: SELIC | E171: 0 | F171: 0.0072 | G171: 1 | H171: 1.8619
A172: 2014-01-01 | B172: 0.0085 | D172: SELIC | E172: 0 | F172: 0.0079 | G172: 1 | H172: 1.8698
A173: 2014-02-01 | B173: 0.0079 | D173: SELIC | E173: 0 | F173: 0.0085 | G173: 1 | H173: 1.8783
A174: 2014-03-01 | B174: 0.0077 | D174: SELIC | E174: 0 | F174: 0.0079 | G174: 1 | H174: 1.8862
A175: 2014-04-01 | B175: 0.0082 | D175: SELIC | E175: 0 | F175: 0.0077 | G175: 1 | H175: 1.8939
A176: 2014-05-01 | B176: 0.0087 | D176: SELIC | E176: 0 | F176: 0.0082 | G176: 1 | H176: 1.9021
A177: 2014-06-01 | B177: 0.0082 | D177: SELIC | E177: 0 | F177: 0.0087 | G177: 1 | H177: 1.9108
A178: 2014-07-01 | B178: 0.0095 | D178: SELIC | E178: 0 | F178: 0.0082 | G178: 1 | H178: 1.919
A179: 2014-08-01 | B179: 0.0087 | D179: SELIC | E179: 0 | F179: 0.0095 | G179: 1 | H179: 1.9285
A180: 2014-09-01 | B180: 0.0091 | D180: SELIC | E180: 0 | F180: 0.0087 | G180: 1 | H180: 1.9372
A181: 2014-10-01 | B181: 0.0095 | D181: SELIC | E181: 0 | F181: 0.0091 | G181: 1 | H181: 1.9463
A182: 2014-11-01 | B182: 0.0084 | D182: SELIC | E182: 0 | F182: 0.0095 | G182: 1 | H182: 1.9558
A183: 2014-12-01 | B183: 0.0096 | D183: SELIC | E183: 0 | F183: 0.0084 | G183: 1 | H183: 1.9642
A184: 2015-01-01 | B184: 0.0094 | D184: SELIC | E184: 0 | F184: 0.0096 | G184: 1 | H184: 1.9738
A185: 2015-02-01 | B185: 0.0082 | D185: SELIC | E185: 0 | F185: 0.0094 | G185: 1 | H185: 1.9832
A186: 2015-03-01 | B186: 0.0104 | D186: SELIC | E186: 0 | F186: 0.0082 | G186: 1 | H186: 1.9914
A187: 2015-04-01 | B187: 0.0095 | D187: SELIC | E187: 0 | F187: 0.0104 | G187: 1 | H187: 2.0018
A188: 2015-05-01 | B188: 0.0099 | D188: SELIC | E188: 0 | F188: 0.0095 | G188: 1 | H188: 2.0113
A189: 2015-06-01 | B189: 0.0107 | D189: SELIC | E189: 0 | F189: 0.0099 | G189: 1 | H189: 2.0212
A190: 2015-07-01 | B190: 0.0118 | D190: SELIC | E190: 0 | F190: 0.0107 | G190: 1 | H190: 2.0319
A191: 2015-08-01 | B191: 0.0111 | D191: SELIC | E191: 0 | F191: 0.0118 | G191: 1 | H191: 2.0437
A192: 2015-09-01 | B192: 0.0111 | D192: SELIC | E192: 0 | F192: 0.0111 | G192: 1 | H192: 2.0548
A193: 2015-10-01 | B193: 0.0111 | D193: SELIC | E193: 0 | F193: 0.0111 | G193: 1 | H193: 2.0659
A194: 2015-11-01 | B194: 0.0106 | D194: SELIC | E194: 0 | F194: 0.0111 | G194: 1 | H194: 2.077
A195: 2015-12-01 | B195: 0.0116 | D195: SELIC | E195: 0 | F195: 0.0106 | G195: 1 | H195: 2.0876
A196: 2016-01-01 | B196: 0.0106 | D196: SELIC | E196: 0 | F196: 0.0116 | G196: 1 | H196: 2.0992
A197: 2016-02-01 | B197: 0.01 | D197: SELIC | E197: 0 | F197: 0.0106 | G197: 1 | H197: 2.1098
A198: 2016-03-01 | B198: 0.0116 | D198: SELIC | E198: 0 | F198: 0.01 | G198: =G197*(1+E198) -> 1 | H198: =H197+F198 -> 2.1198
A199: 2016-04-01 | B199: 0.0106 | D199: SELIC | E199: 0 | F199: 0.0116 | G199: 1 | H199: 2.1314
A200: 2016-05-01 | B200: 0.0111 | D200: SELIC | E200: 0 | F200: 0.0106 | G200: 1 | H200: 2.142
A201: 2016-06-01 | B201: 0.0116 | D201: SELIC | E201: 0 | F201: 0.0111 | G201: 1 | H201: 2.1531
... 223 more rows
